Workbook

Sheet Resumo do Orçamento
B1: Obra | C1: Bancos | D1: B.D.I. | E1: Encargos Sociais
B2: REFORMA DO MERCADO PÚBLICO MUNICIPAL DE SÃO MIGUEL DOS CAMPOS - AL | C2: SINAPI - 08/2025 - Alagoas SBC - 09/2025 - Alagoas SICRO3 - 07/2025 - Alagoas ORSE - 07/2025 - Sergipe | D2: 24,09% | E2: Não Desonerado: Horista: 114,41% Mensalista: 70,12%
A3: Planilha Orçamentária Resumida
A4: Item | B4: Descrição | D4: Quant. | E4: Total | F4: Peso (%)
A5: 1 | B5: SERVIÇOS PRELIMINARES | D5: 1 | E5: 474536.97 | F5: 0.03954483407
A6: 2 | B6: ADMINISTRAÇÃO DE OBRA | D6: 1 | E6: 771380.44 | F6: 0.06428184406
A7: 3 | B7: MOVIMENTO DE TERRA | D7: 1 | E7: 11551.88 | F7: 0.0009626587741
A8: 4 | B8: INFRAESTRUTURA | D8: 1 | E8: 492295.88 | F8: 0.04102474648
A9: 5 | B9: SUPERESTRUTURA | D9: 1 | E9: 1010241.98 | F9: 0.08418701597
A10: 6 | B10: COBERTA | D10: 1 | E10: 3246999.58 | F10: 0.2705838907
A11: 7 | B11: PAVIMENTAÇÃO | D11: 1 | E11: 1601574.36 | F11: 0.1334648222
A12: 8 | B12: REVESTIMENTOS | D12: 1 | E12: 964964.69 | F12: 0.08041390021
A13: 9 | B13: INSTALAÇÕES HIDROSSANITARIAS | D13: 1 | E13: 274405.09 | F13: 0.02286714089
A14: 10 | B14: INSTALAÇÕES ELETRICAS | D14: 1 | E14: 629016.01 | F14: 0.05241811559
A15: 11 | B15: ESQUADRIAS | D15: 1 | E15: 901169.54 | F15: 0.07509762607
A16: 12 | B16: LOUÇAS E ACESSORIOS | D16: 1 | E16: 485144.51 | F16: 0.04042879767
A17: 13 | B17: PINTURA | D17: 1 | E17: 792661.38 | F17: 0.06605525961
A18: 14 | B18: SERVIÇOS COMPLEMENTARES | D18: 1 | E18: 344031.42 | F18: 0.02866934776
D20: Total sem BDI | E20: 9671013.51
D21: Total do BDI | E21: 2328960.22
D22: Total Geral | E22: 11999973.73

Sheet Orçamento Sintético
D1: Obra | E1: Bancos | G1: B.D.I. | I1: Encargos Sociais
D2: REFORMA DO MERCADO PÚBLICO MUNICIPAL DE SÃO MIGUEL DOS CAMPOS - AL | E2: SINAPI - 08/2025 - Alagoas SBC - 09/2025 - Alagoas SICRO3 - 07/2025 - Alagoas ORSE - 07/2025 - Sergipe | G2: 24,09% | I2: Não Desonerado: Horista: 114,41% Mensalista: 70,12%
A3: Orçamento Sintético
A4: Item | B4: Código | C4: Banco | D4: Descrição | E4: Und | F4: Quant. | G4: Valor Unit | H4: Valor Unit com BDI | I4: Total | J4: Peso (%)
A5: 1 | D5: SERVIÇOS PRELIMINARES | F5: 1 | H5: 474536.97 | I5: 474536.97 | J5: 0.03954483407
A6: 1.1 | B6: 97622 | C6: SINAPI | D6: DEMOLIÇÃO DE ALVENARIA DE BLOCO FURADO, DE FORMA MANUAL, SEM REAPROVEITAMENTO. AF_09/2023 | E6: m³ | F6: 19.75 | G6: 56.28 | H6: 69.83 | I6: 1379.14 | J6: 0.0001149285849
A7: 1.2 | B7: 97633 | C7: SINAPI | D7: DEMOLIÇÃO DE REVESTIMENTO CERÂMICO, DE FORMA MANUAL, SEM REAPROVEITAMENTO. AF_09/2023 | E7: m² | F7: 2799.72 | G7: 22.6 | H7: 28.04 | I7: 78504.14 | J7: 0.006542025988
A8: 1.3 | B8: 104790 | C8: SINAPI | D8: DEMOLIÇÃO DE PISO DE CONCRETO SIMPLES, DE FORMA MECANIZADA COM MARTELETE, SEM REAPROVEITAMENTO. AF_09/2023 | E8: m³ | F8: 528.49 | G8: 97.78 | H8: 121.33 | I8: 64121.69 | J8: 0.005343485864
A9: 1.4 | B9: 104803 | C9: SINAPI | D9: REMOÇÃO CALHAS E RUFOS, DE FORMA MANUAL, SEM REAPROVEITAMENTO. AF_09/2023 | E9: M | F9: 542.5 | G9: 4.5 | H9: 5.58 | I9: 3027.15 | J9: 0.0002522630522
A10: 1.5 | B10: 97640 | C10: SINAPI | D10: REMOÇÃO DE FORROS DE DRYWALL, PVC E FIBROMINERAL, DE FORMA MANUAL, SEM REAPROVEITAMENTO. AF_09/2023 | E10: m² | F10: 1042.8 | G10: 1.86 | H10: 2.3 | I10: 2398.44 | J10: 0.0001998704375
A11: 1.6 | B11: 104793 | C11: SINAPI | D11: REMOÇÃO DE CABOS ELÉTRICOS, COM SEÇÃO MAIOR QUE 2,5 MM² E MENOR QUE 10 MM², DE FORMA MANUAL, SEM REAPROVEITAMENTO. AF_09/2023 | E11: M | F11: 5220.8 | G11: 0.57 | H11: 0.7 | I11: 3654.56 | J11: 0.0003045473334
A12: 1.7 | B12: 97665 | C12: SINAPI | D12: REMOÇÃO DE LUMINÁRIAS, DE FORMA MANUAL, SEM REAPROVEITAMENTO. AF_09/2023 | E12: UN | F12: 379 | G12: 1.89 | H12: 2.34 | I12: 886.86 | J12: 7.390516179e-05
A13: 1.8 | B13: 97647 | C13: SINAPI | D13: REMOÇÃO DE TELHAS DE FIBROCIMENTO METÁLICA E CERÂMICA, DE FORMA MANUAL, SEM REAPROVEITAMENTO. AF_09/2023 | E13: m² | F13: 7666.63 | G13: 3.51 | H13: 4.35 | I13: 33349.84 | J13: 0.002779159417
A14: 1.9 | B14: 100981 | C14: SINAPI | D14: CARGA, MANOBRA E DESCARGA DE ENTULHO EM CAMINHÃO BASCULANTE 6 M³ - CARGA COM ESCAVADEIRA HIDRÁULICA (CAÇAMBA DE 0,80 M³ / 111 HP) E DESCARGA LIVRE (UNIDADE: M3). AF_07/2020 | E14: m³ | F14: 1208.47 | G14: 9.3 | H14: 11.54 | I14: 13945.74 | J14: 0.001162147544
A15: 1.10 | B15: 97914 | C15: SINAPI | D15: TRANSPORTE COM CAMINHÃO BASCULANTE DE 6 M³, EM VIA URBANA PAVIMENTADA, DMT ATÉ 30 KM (UNIDADE: M3XKM). AF_07/2020 | E15: M3XKM | F15: 9063.51 | G15: 2.97 | H15: 3.68 | I15: 33353.71 | J15: 0.002779481918
A16: 1.11 | B16: 99059 | C16: SINAPI | D16: LOCAÇÃO CONVENCIONAL DE OBRA, UTILIZANDO GABARITO DE TÁBUAS CORRIDAS PONTALETADAS A CADA 2,00M - 2 UTILIZAÇÕES. AF_03/2024 | E16: M | F16: 181.74 | G16: 60.1 | H16: 74.57 | I16: 13552.35 | J16: 0.001129364972
A17: 1.12 | B17: 4654 | C17: ORSE | D17: Locação de container - Almoxarifado sem banheiro - 6,00 x 2,40m - Rev 02_02/2022 | E17: mês | F17: 14 | G17: 800 | H17: 992.72 | I17: 13898.08 | J17: 0.001158175869
A18: 1.13 | B18: 105118 | C18: SINAPI | D18: TAPUME EM CHAPA DE MADEIRA OSB. AF_03/2024 | E18: m² | F18: 260 | G18: 67.91 | H18: 84.26 | I18: 21907.6 | J18: 0.00182563733
A19: 1.14 | B19: 103689 | C19: SINAPI | D19: FORNECIMENTO E INSTALAÇÃO DE PLACA DE OBRA COM CHAPA GALVANIZADA E ESTRUTURA DE MADEIRA. AF_03/2022_PS | E19: m² | F19: 6 | G19: 465.11 | H19: 577.15 | I19: 3462.9 | J19: 0.0002885756317
A20: 1.15 | B20: 505 | C20: Próprio | D20: Projeto Executivo | E20: un | F20: 1 | G20: 150773.45 | H20: 187094.77 | I20: 187094.77 | J20: 0.01559126497
A21: 2 | D21: ADMINISTRAÇÃO DE OBRA | F21: 1 | H21: 771380.44 | I21: 771380.44 | J21: 0.06428184406
A22: 2.1 | B22: 506 | C22: Próprio | D22: ADMINISTRAÇÃO LOCAL / MANUTENÇÃO DO CANTEIRO DE OBRAS | E22: GLOBAL | F22: 1 | G22: 621629.82 | H22: 771380.44 | I22: 771380.44 | J22: 0.06428184406
A23: 3 | D23: MOVIMENTO DE TERRA | F23: 1 | H23: 11551.88 | I23: 11551.88 | J23: 0.0009626587741
A24: 3.1 | B24: 96527 | C24: SINAPI | D24: ESCAVAÇÃO MANUAL PARA VIGA BALDRAME OU SAPATA CORRIDA (INCLUINDO ESCAVAÇÃO PARA COLOCAÇÃO DE FÔRMAS). AF_01/2024 | E24: m³ | F24: 23.15 | G24: 101.73 | H24: 126.23 | I24: 2922.22 | J24: 0.0002435188664
A25: 3.2 | B25: 96523 | C25: SINAPI | D25: ESCAVAÇÃO MANUAL PARA BLOCO DE COROAMENTO OU SAPATA (INCLUINDO ESCAVAÇÃO PARA COLOCAÇÃO DE FÔRMAS). AF_01/2024 | E25: m³ | F25: 58.7 | G25: 92.42 | H25: 114.68 | I25: 6731.71 | J25: 0.0005609770614
A26: 3.3 | B26: 104737 | C26: SINAPI | D26: REATERRO MANUAL DE VALAS, COM PLACA VIBRATÓRIA. AF_08/2023 | E26: m³ | F26: 31.93 | G26: 21.52 | H26: 26.7 | I26: 852.53 | J26: 7.104432219e-05
A27: 3.4 | B27: 100975 | C27: SINAPI | D27: CARGA, MANOBRA E DESCARGA DE SOLOS E MATERIAIS GRANULARES EM CAMINHÃO BASCULANTE 14 M³ - CARGA COM PÁ CARREGADEIRA (CAÇAMBA DE 1,7 A 2,8 M³ / 128 HP) E DESCARGA LIVRE (UNIDADE: M3). AF_07/2020 | E27: m³ | F27: 99.85 | G27: 8.44 | H27: 10.47 | I27: 1045.42 | J27: 8.711852405e-05
A28: 4 | D28: INFRAESTRUTURA | F28: 1 | H28: 492295.88 | I28: 492295.88 | J28: 0.04102474648
A29: 4.1 | B29: 96619 | C29: SINAPI | D29: LASTRO DE CONCRETO MAGRO, APLICADO EM BLOCOS DE COROAMENTO OU SAPATAS, ESPESSURA DE 5 CM. AF_01/2024 | E29: m² | F29: 144.53 | G29: 38.25 | H29: 47.46 | I29: 6859.39 | J29: 0.0005716170847
A30: 4.2 | B30: 104916 | C30: SINAPI | D30: ARMAÇÃO DE SAPATA ISOLADA, VIGA BALDRAME E SAPATA CORRIDA UTILIZANDO AÇO CA-60 DE 5 MM - MONTAGEM. AF_01/2024 | E30: KG | F30: 460.54 | G30: 18.26 | H30: 22.65 | I30: 10431.23 | J30: 0.0008692710696
A31: 4.3 | B31: 104918 | C31: SINAPI | D31: ARMAÇÃO DE SAPATA ISOLADA, VIGA BALDRAME E SAPATA CORRIDA UTILIZANDO AÇO CA-50 DE 8 MM - MONTAGEM. AF_01/2024 | E31: KG | F31: 1209.69 | G31: 16.29 | H31: 20.21 | I31: 24447.83 | J31: 0.002037323627
A32: 4.4 | B32: 104919 | C32: SINAPI | D32: ARMAÇÃO DE SAPATA ISOLADA, VIGA BALDRAME E SAPATA CORRIDA UTILIZANDO AÇO CA-50 DE 10 MM - MONTAGEM. AF_01/2024 | E32: KG | F32: 632.79 | G32: 14.65 | H32: 18.17 | I32: 11497.79 | J32: 0.0009581512642
A33: 4.5 | B33: 104920 | C33: SINAPI | D33: ARMAÇÃO DE BLOCO, SAPATA ISOLADA, VIGA BALDRAME E SAPATA CORRIDA UTILIZANDO AÇO CA-50 DE 12,5 MM - MONTAGEM. AF_01/2024 | E33: KG | F33: 27.73 | G33: 12.46 | H33: 15.46 | I33: 428.7 | J33: 3.572507821e-05
A34: 4.6 | B34: 96536 | C34: SINAPI | D34: FABRICAÇÃO, MONTAGEM E DESMONTAGEM DE FÔRMA PARA VIGA BALDRAME, EM MADEIRA SERRADA, E=25 MM, 4 UTILIZAÇÕES. AF_01/2024 | E34: m² | F34: 283.06 | G34: 73.59 | H34: 91.31 | I34: 25846.2 | J34: 0.002153854715
A35: 4.7 | B35: 96555 | C35: SINAPI | D35: CONCRETAGEM DE BLOCO DE COROAMENTO OU VIGA BALDRAME, FCK 30 MPA, COM USO DE JERICA - LANÇAMENTO, ADENSAMENTO E ACABAMENTO. AF_01/2024 | E35: m³ | F35: 51.52 | G35: 725.19 | H35: 899.88 | I35: 46361.81 | J35: 0.003863492624
A36: 4.8 | B36: 98557 | C36: SINAPI | D36: IMPERMEABILIZAÇÃO DE SUPERFÍCIE COM EMULSÃO ASFÁLTICA, 2 DEMÃOS. AF_09/2023 | E36: m² | F36: 271.82 | G36: 48.13 | H36: 59.72 | I36: 16233.09 | J36: 0.001352760461
A37: 4.9 | B37: 031512 | C37: SBC | D37: ESTACA HELICE CONTINUA 30CM 40MPA LANC.MEC.BOMBEA.+FERRAGENS | E37: M | F37: 496 | G37: 241.29 | H37: 299.41 | I37: 148507.36 | J37: 0.01237564043
A38: 4.10 | B38: 94962 | C38: SINAPI | D38: CONCRETO MAGRO PARA LASTRO, TRAÇO 1:4,5:4,5 (EM MASSA SECA DE CIMENTO/ AREIA MÉDIA/ BRITA 1) - PREPARO MECÂNICO COM BETONEIRA 400 L. AF_05/2021 | E38: m³ | F38: 4.77 | G38: 388.71 | H38: 482.35 | I38: 2300.8 | J38: 0.0001917337531
A39: 4.11 | B39: 7369 | C39: ORSE | D39: Concreto Armado fck=30,0MPa, usinado, bombeado, adensado e lançado, para uso Geral, com formas planas em compensado resinado 12mm (05 usos) | E39: m³ | F39: 65.47 | G39: 2454.18 | H39: 3045.39 | I39: 199381.68 | J39: 0.01661517637
A40: 5 | D40: SUPERESTRUTURA | F40: 1 | H40: 1010241.98 | I40: 1010241.98 | J40: 0.08418701597
A41: 5.1 | B41: 103328 | C41: SINAPI | D41: ALVENARIA DE VEDAÇÃO DE BLOCOS CERÂMICOS FURADOS NA HORIZONTAL DE 9X19X19 CM (ESPESSURA 9 CM) E ARGAMASSA DE ASSENTAMENTO COM PREPARO EM BETONEIRA. AF_12/2021 | E41: m² | F41: 897.41 | G41: 94.01 | H41: 116.65 | I41: 104682.87 | J41: 0.008723591597
A42: 5.2 | B42: 104111 | C42: SINAPI | D42: ARMAÇÃO DE PILAR OU VIGA DE ESTRUTURA DE CONCRETO ARMADO EMBUTIDA EM ALVENARIA DE VEDAÇÃO UTILIZANDO AÇO CA-60 DE 5,0 MM - MONTAGEM. AF_06/2022 | E42: KG | F42: 803.52 | G42: 21.82 | H42: 27.07 | I42: 21751.28 | J42: 0.001812610635
A43: 5.3 | B43: 92761 | C43: SINAPI | D43: ARMAÇÃO DE PILAR OU VIGA DE ESTRUTURA CONVENCIONAL DE CONCRETO ARMADO UTILIZANDO AÇO CA-50 DE 8,0 MM - MONTAGEM. AF_06/2022 | E43: KG | F43: 690.17 | G43: 14.46 | H43: 17.94 | I43: 12381.64 | J43: 0.001031805592
A44: 5.4 | B44: 104108 | C44: SINAPI | D44: ARMAÇÃO DE PILAR OU VIGA DE ESTRUTURA DE CONCRETO ARMADO EMBUTIDA EM ALVENARIA DE VEDAÇÃO UTILIZANDO AÇO CA-50 DE 10,0 MM - MONTAGEM. AF_06/2022 | E44: KG | F44: 1317.92 | G44: 14.72 | H44: 18.26 | I44: 24065.21 | J44: 0.002005438557
A45: 5.5 | B45: 92763 | C45: SINAPI | D45: ARMAÇÃO DE PILAR OU VIGA DE ESTRUTURA CONVENCIONAL DE CONCRETO ARMADO UTILIZANDO AÇO CA-50 DE 12,5 MM - MONTAGEM. AF_06/2022 | E45: KG | F45: 77.04 | G45: 11.01 | H45: 13.66 | I45: 1052.36 | J45: 8.769685865e-05
A46: 5.6 | B46: 92423 | C46: SINAPI | D46: MONTAGEM E DESMONTAGEM DE FÔRMA DE PILARES RETANGULARES E ESTRUTURAS SIMILARES, PÉ-DIREITO SIMPLES, EM CHAPA DE MADEIRA COMPENSADA RESINADA, 6 UTILIZAÇÕES. AF_09/2020 | E46: m² | F46: 588.49 | G46: 92.37 | H46: 114.62 | I46: 67452.72 | J46: 0.005621072305
A47: 5.7 | B47: 103669 | C47: SINAPI | D47: CONCRETAGEM DE PILARES, FCK = 25 MPA, COM USO DE BALDES - LANÇAMENTO, ADENSAMENTO E ACABAMENTO. AF_02/2022 | E47: m³ | F47: 25.08 | G47: 941.35 | H47: 1168.12 | I47: 29296.44 | J47: 0.002441375345
A48: 5.8 | B48: 103682 | C48: SINAPI | D48: CONCRETAGEM DE VIGAS E LAJES, FCK=25 MPA, PARA QUALQUER TIPO DE LAJE COM BALDES EM EDIFICAÇÃO TÉRREA - LANÇAMENTO, ADENSAMENTO E ACABAMENTO. AF_02/2022 | E48: m³ | F48: 19.65 | G48: 958.88 | H48: 1189.87 | I48: 23380.94 | J48: 0.001948415932
A49: 5.9 | B49: 105036 | C49: SINAPI | D49: VERGA PRÉ-FABRICADA COM ATÉ 1,5 M DE VÃO, ESPESSURA DE *15* CM. AF_03/2024 | E49: M | F49: 267.6 | G49: 47.16 | H49: 58.52 | I49: 15659.95 | J49: 0.00130499869
A50: 5.10 | B50: 101959 | C50: SINAPI | D50: LAJE PRÉ-MOLDADA UNIDIRECIONAL COM VÃOS MAIORES QUE 3,0 M, BIAPOIADA, PARA PISO, ENCHIMENTO EM EPS, VIGOTA PROTENDIDA, ALTURA TOTAL DA LAJE "LT" = 12 CM (ENCHIMENTO+CAPA) = (8+4). AF_08/2025 | E50: m² | F50: 475.91 | G50: 84.36 | H50: 104.68 | I50: 49818.25 | J50: 0.004151529922
A51: 5.11 | B51: 4348 | C51: ORSE | D51: Estrutura Galpões em Pórticos Pré-Moldados de Concreto Armado, com Lanternim,montada e com telha de 6mm, inclusive fundação - Rev 05 - 09/2021 | E51: m² | F51: 1176 | G51: 452.76 | H51: 561.82 | I51: 660700.32 | J51: 0.05505848053
A52: 6 | D52: COBERTA | F52: 1 | H52: 3246999.58 | I52: 3246999.58 | J52: 0.2705838907
A53: 6.1 | B53: 92580 | C53: SINAPI | D53: TRAMA DE AÇO COMPOSTA POR TERÇAS PARA TELHADOS DE ATÉ 2 ÁGUAS PARA TELHA ONDULADA DE FIBROCIMENTO, METÁLICA, PLÁSTICA OU TERMOACÚSTICA, INCLUSO TRANSPORTE VERTICAL. AF_07/2019 | E53: m² | F53: 7246.29 | G53: 45.94 | H53: 57 | I53: 413038.53 | J53: 0.03441995285
A54: 6.2 | B54: 94216 | C54: SINAPI | D54: TELHAMENTO COM TELHA METÁLICA TERMOACÚSTICA E = 30 MM, COM ATÉ 2 ÁGUAS, INCLUSO IÇAMENTO. AF_07/2019 | E54: m² | F54: 7246.29 | G54: 198.49 | H54: 246.3 | I54: 1784761.22 | J54: 0.1487304273
A55: 6.3 | B55: 9077 | C55: ORSE | D55: Cumeeira termoacústica | E55: m | F55: 443.68 | G55: 153.53 | H55: 190.51 | I55: 84525.47 | J55: 0.007043804587
A56: 6.4 | B56: 9101 | C56: ORSE | D56: Calha em chapa de aluminio, desenvolvimento 85 cm | E56: m | F56: 542.5 | G56: 143.42 | H56: 177.96 | I56: 96543.3 | J56: 0.008045292612
A57: 6.5 | B57: 481 | C57: Próprio | D57: FONECIMENTO E INSTALAÇÃO DE ESTRUTURA METALICA EM METALON 50X30 MM, PARA FIXAÇÃO DE PLACA CIMENTICIA | E57: m² | F57: 1564.62 | G57: 153.08 | H57: 189.95 | I57: 297199.56 | J57: 0.02476668422
A58: 6.6 | B58: 12828 | C58: ORSE | D58: Placa cimentícia e =6mm, para fechamento da fachada (1 lado/face), juntas aparentes, fixada em estrutura metalica, exclusive esta (fornecimento e assentamento) | E58: m² | F58: 1564.62 | G58: 79.91 | H58: 99.16 | I58: 155147.71 | J58: 0.01292900414
A59: 6.7 | B59: 96116 | C59: SINAPI | D59: FORRO EM RÉGUAS DE PVC, FRISADO, PARA AMBIENTES COMERCIAIS, INCLUSIVE ESTRUTURA BIDIRECIONAL DE FIXAÇÃO. AF_08/2023_PS | E59: m² | F59: 2130.14 | G59: 79.76 | H59: 98.97 | I59: 210819.95 | J59: 0.01756836763
A60: 6.8 | B60: 98546 | C60: SINAPI | D60: IMPERMEABILIZAÇÃO DE SUPERFÍCIE COM MANTA ASFÁLTICA, UMA CAMADA, INCLUSIVE APLICAÇÃO DE PRIMER ASFÁLTICO, E=4MM. AF_09/2023 | E60: m² | F60: 406.84 | G60: 131.2 | H60: 162.8 | I60: 66233.55 | J60: 0.005519474583
A61: 6.9 | B61: 98562 | C61: SINAPI | D61: IMPERMEABILIZAÇÃO DE SUPERFÍCIE COM ARGAMASSA DE CIMENTO E AREIA, COM ADITIVO IMPERMEABILIZANTE, E = 1,5CM. AF_09/2023 | E61: m² | F61: 406.84 | G61: 49.1 | H61: 60.92 | I61: 24784.69 | J61: 0.002065395355
A62: 6.10 | B62: 00010527 | C62: SINAPI | D62: LOCACAO DE ANDAIME METALICO TUBULAR DE ENCAIXE, TIPO DE TORRE, CADA PAINEL COM LARGURA DE 1 ATE 1,5 M E ALTURA DE *1,00* M, INCLUINDO DIAGONAL, BARRAS DE LIGACAO, SAPATAS OU RODIZIOS E DEMAIS ITENS NECESSARIOS A MONTAGEM (NAO INCLUI INSTALACAO) | E62: MXMES | F62: 1920 | G62: 44 | H62: 54.59 | I62: 104812.8 | J62: 0.008734419121
A63: 6.11 | B63: 97064 | C63: SINAPI | D63: MONTAGEM E DESMONTAGEM DE ANDAIME TUBULAR TIPO "TORRE" (EXCLUSIVE ANDAIME E LIMPEZA). AF_03/2024 | E63: M | F63: 320 | G63: 23 | H63: 28.54 | I63: 9132.8 | J63: 0.0007610683328
A64: 7 | D64: PAVIMENTAÇÃO | F64: 1 | H64: 1601574.36 | I64: 1601574.36 | J64: 0.1334648222
A65: 7.1 | B65: 95241 | C65: SINAPI | D65: LASTRO DE CONCRETO MAGRO, APLICADO EM PISOS, LAJES SOBRE SOLO OU RADIERS, ESPESSURA DE 5 CM. AF_01/2024 | E65: m² | F65: 6808 | G65: 35.34 | H65: 43.85 | I65: 298530.8 | J65: 0.02487762113
A66: 7.2 | B66: 101750 | C66: SINAPI | D66: PISO CIMENTADO, TRAÇO 1:3 (CIMENTO E AREIA), ACABAMENTO RÚSTICO, ESPESSURA 4,0 CM, PREPARO MECÂNICO DA ARGAMASSA. AF_09/2020 | E66: m² | F66: 6808 | G66: 51.85 | H66: 64.34 | I66: 438026.72 | J66: 0.03650230658
A67: 7.3 | B67: 87263 | C67: SINAPI | D67: REVESTIMENTO CERÂMICO PARA PISO COM PLACAS TIPO PORCELANATO DE DIMENSÕES 60X60 CM APLICADA EM AMBIENTES DE ÁREA MAIOR QUE 10 M². AF_02/2023_PE | E67: m² | F67: 555.89 | G67: 117.85 | H67: 146.24 | I67: 81293.35 | J67: 0.006774460664
A68: 7.4 | B68: 87250 | C68: SINAPI | D68: REVESTIMENTO CERÂMICO PARA PISO COM PLACAS TIPO ESMALTADA DE DIMENSÕES 45X45 CM APLICADA EM AMBIENTES DE ÁREA ENTRE 5 M2 E 10 M2. AF_02/2023_PE | E68: m² | F68: 454.18 | G68: 62.43 | H68: 77.46 | I68: 35180.78 | J68: 0.002931738085
A69: 7.5 | B69: 104162 | C69: SINAPI | D69: PISO EM GRANILITE, MARMORITE OU GRANITINA EM AMBIENTES INTERNOS, COM ESPESSURA DE 8 MM, INCLUSO MISTURA EM BETONEIRA, COLOCAÇÃO DAS JUNTAS, APLICAÇÃO DO PISO, 4 POLIMENTOS COM POLITRIZ, ESTUCAMENTO, SELADOR E CERA. AF_06/2022 | E69: m² | F69: 5989.3 | G69: 100.72 | H69: 124.98 | I69: 748542.71 | J69: 0.06237869572
A70: 8 | D70: REVESTIMENTOS | F70: 1 | H70: 964964.69 | I70: 964964.69 | J70: 0.08041390021
A71: 8.1 | B71: 87879 | C71: SINAPI | D71: CHAPISCO APLICADO EM ALVENARIAS E ESTRUTURAS DE CONCRETO INTERNAS, COM COLHER DE PEDREIRO. ARGAMASSA TRAÇO 1:3 COM PREPARO EM BETONEIRA 400L. AF_10/2022 | E71: m² | F71: 2259.34 | G71: 4.3 | H71: 5.33 | I71: 12042.28 | J71: 0.00100352553
A72: 8.2 | B72: 104951 | C72: SINAPI | D72: MASSA ÚNICA, EM ARGAMASSA TRAÇO 1:2:8, PREPARO MECÂNICO, APLICADA MANUALMENTE EM PAREDES INTERNAS DE AMBIENTES COM ÁREA MAIOR QUE 10M², E = 17,5MM, COM TALISCAS. AF_03/2024 | E72: m² | F72: 2259.34 | G72: 31.35 | H72: 38.9 | I72: 87888.32 | J72: 0.0073240427
A73: 8.3 | B73: 87547 | C73: SINAPI | D73: MASSA ÚNICA, EM ARGAMASSA TRAÇO 1:2:8, PREPARO MECÂNICO, APLICADA MANUALMENTE EM PAREDES INTERNAS DE AMBIENTES COM ÁREA ENTRE 5M² E 10M², E = 10MM, COM TALISCAS. AF_03/2024 | E73: m² | F73: 2799.72 | G73: 24.84 | H73: 30.82 | I73: 86287.37 | J73: 0.007190629908
A74: 8.4 | B74: 499 | C74: Próprio | D74: REVESTIMENTO CERÂMICO PARA PAREDES PLACAS ACETINADO 7x26cm NEUTAL GRAFITE, OU SIMILAR, FORNECIMENTO E INSTALAÇÃO | E74: m² | F74: 2425.02 | G74: 213.58 | H74: 265.03 | I74: 642703.05 | J74: 0.05355870475
A75: 8.5 | B75: 87273 | C75: SINAPI | D75: REVESTIMENTO CERÂMICO PARA PAREDES INTERNAS COM PLACAS TIPO ESMALTADA DE DIMENSÕES 33X45 CM APLICADAS NA ALTURA INTEIRA DAS PAREDES. AF_02/2023_PE | E75: m² | F75: 1539.44 | G75: 66.25 | H75: 82.2 | I75: 126541.96 | J75: 0.01054518642
A76: 8.6 | B76: 105941 | C76: SINAPI | D76: REVESTIMENTO NÃO ADERIDO DE PAREDES EXTERNAS COM PLACAS DE GRANITO DE ÁREA MAIOR QUE 10000 CM2, FIXADAS COM INSERTE METÁLICO. AF_03/2025 | E76: m² | F76: 182.06 | G76: 42.06 | H76: 52.19 | I76: 9501.71 | J76: 0.0007918109001
A77: 9 | D77: INSTALAÇÕES HIDROSSANITARIAS | F77: 1 | H77: 274405.09 | I77: 274405.09 | J77: 0.02286714089
A78: 9.1 | B78: 89356 | C78: SINAPI | D78: TUBO, PVC, SOLDÁVEL, DE 25MM, INSTALADO EM RAMAL OU SUB-RAMAL DE ÁGUA - FORNECIMENTO E INSTALAÇÃO. AF_06/2022 | E78: M | F78: 500 | G78: 24.84 | H78: 30.82 | I78: 15410 | J78: 0.001284169478
A79: 9.2 | B79: 89357 | C79: SINAPI | D79: TUBO, PVC, SOLDÁVEL, DE 32MM, INSTALADO EM RAMAL OU SUB-RAMAL DE ÁGUA - FORNECIMENTO E INSTALAÇÃO. AF_06/2022 | E79: M | F79: 100 | G79: 33.98 | H79: 42.16 | I79: 4216 | J79: 0.0003513341025
A80: 9.3 | B80: 103979 | C80: SINAPI | D80: TUBO, PVC, SOLDÁVEL, DE 50MM, INSTALADO EM RAMAL DE DISTRIBUIÇÃO DE ÁGUA - FORNECIMENTO E INSTALAÇÃO. AF_06/2022 | E80: M | F80: 50 | G80: 31.02 | H80: 38.49 | I80: 1924.5 | J80: 0.0001603753511
A81: 9.4 | B81: 89362 | C81: SINAPI | D81: JOELHO 90 GRAUS, PVC, SOLDÁVEL, DN 25MM, INSTALADO EM RAMAL OU SUB-RAMAL DE ÁGUA - FORNECIMENTO E INSTALAÇÃO. AF_06/2022 | E81: UN | F81: 195 | G81: 9.72 | H81: 12.06 | I81: 2351.7 | J81: 0.000195975429
A82: 9.5 | B82: 89367 | C82: SINAPI | D82: JOELHO 90 GRAUS, PVC, SOLDÁVEL, DN 32MM, INSTALADO EM RAMAL OU SUB-RAMAL DE ÁGUA - FORNECIMENTO E INSTALAÇÃO. AF_06/2022 | E82: UN | F82: 60 | G82: 13.35 | H82: 16.56 | I82: 993.6 | J82: 8.280018126e-05
A83: 9.6 | B83: 103984 | C83: SINAPI | D83: JOELHO 90 GRAUS, PVC, SOLDÁVEL, DN 50MM, INSTALADO EM RAMAL DE DISTRIBUIÇÃO DE ÁGUA - FORNECIMENTO E INSTALAÇÃO. AF_06/2022 | E83: UN | F83: 12 | G83: 19.65 | H83: 24.38 | I83: 292.56 | J83: 2.438005337e-05
A84: 9.7 | B84: 89395 | C84: SINAPI | D84: TE, PVC, SOLDÁVEL, DN 25MM, INSTALADO EM RAMAL OU SUB-RAMAL DE ÁGUA - FORNECIMENTO E INSTALAÇÃO. AF_06/2022 | E84: UN | F84: 100 | G84: 13.36 | H84: 16.57 | I84: 1657 | J84: 0.0001380836356
A85: 9.8 | B85: 89398 | C85: SINAPI | D85: TE, PVC, SOLDÁVEL, DN 32MM, INSTALADO EM RAMAL OU SUB-RAMAL DE ÁGUA - FORNECIMENTO E INSTALAÇÃO. AF_06/2022 | E85: UN | F85: 30 | G85: 18.58 | H85: 23.05 | I85: 691.5 | J85: 5.762512615e-05
A86: 9.9 | B86: 104004 | C86: SINAPI | D86: TE, PVC, SOLDÁVEL, DN 50MM, INSTALADO EM RAMAL DE DISTRIBUIÇÃO DE ÁGUA - FORNECIMENTO E INSTALAÇÃO. AF_06/2022 | E86: UN | F86: 10 | G86: 29.67 | H86: 36.81 | I86: 368.1 | J86: 3.067506715e-05
A87: 9.10 | B87: 90373 | C87: SINAPI | D87: JOELHO 90 GRAUS COM BUCHA DE LATÃO, PVC, SOLDÁVEL, DN 25MM, X 1/2 INSTALADO EM RAMAL OU SUB-RAMAL DE ÁGUA - FORNECIMENTO E INSTALAÇÃO. AF_06/2022 | E87: UN | F87: 195 | G87: 13.29 | H87: 16.49 | I87: 3215.55 | J87: 0.0002679630866
A88: 9.11 | B88: 89712 | C88: SINAPI | D88: TUBO PVC, SERIE NORMAL, ESGOTO PREDIAL, DN 50 MM, FORNECIDO E INSTALADO EM RAMAL DE DESCARGA OU RAMAL DE ESGOTO SANITÁRIO. AF_08/2022 | E88: M | F88: 585 | G88: 28.07 | H88: 34.83 | I88: 20375.55 | J88: 0.001697966217
A89: 9.12 | B89: 89714 | C89: SINAPI | D89: TUBO PVC, SERIE NORMAL, ESGOTO PREDIAL, DN 100 MM, FORNECIDO E INSTALADO EM RAMAL DE DESCARGA OU RAMAL DE ESGOTO SANITÁRIO. AF_08/2022 | E89: M | F89: 900 | G89: 39.1 | H89: 48.51 | I89: 43659 | J89: 0.003638257965
A90: 9.13 | B90: 89732 | C90: SINAPI | D90: JOELHO 45 GRAUS, PVC, SERIE NORMAL, ESGOTO PREDIAL, DN 50 MM, JUNTA ELÁSTICA, FORNECIDO E INSTALADO EM RAMAL DE DESCARGA OU RAMAL DE ESGOTO SANITÁRIO. AF_08/2022 | E90: UN | F90: 195 | G90: 16.39 | H90: 20.33 | I90: 3964.35 | J90: 0.0003303632232
A91: 9.14 | B91: 89746 | C91: SINAPI | D91: JOELHO 45 GRAUS, PVC, SERIE NORMAL, ESGOTO PREDIAL, DN 100 MM, JUNTA ELÁSTICA, FORNECIDO E INSTALADO EM RAMAL DE DESCARGA OU RAMAL DE ESGOTO SANITÁRIO. AF_08/2022 | E91: UN | F91: 50 | G91: 29.25 | H91: 36.29 | I91: 1814.5 | J91: 0.0001512086644
A92: 9.15 | B92: 89731 | C92: SINAPI | D92: JOELHO 90 GRAUS, PVC, SERIE NORMAL, ESGOTO PREDIAL, DN 50 MM, JUNTA ELÁSTICA, FORNECIDO E INSTALADO EM RAMAL DE DESCARGA OU RAMAL DE ESGOTO SANITÁRIO. AF_08/2022 | E92: UN | F92: 390 | G92: 15.67 | H92: 19.44 | I92: 7581.6 | J92: 0.0006318013831
A93: 9.16 | B93: 89744 | C93: SINAPI | D93: JOELHO 90 GRAUS, PVC, SERIE NORMAL, ESGOTO PREDIAL, DN 100 MM, JUNTA ELÁSTICA, FORNECIDO E INSTALADO EM RAMAL DE DESCARGA OU RAMAL DE ESGOTO SANITÁRIO. AF_08/2022 | E93: UN | F93: 30 | G93: 28.43 | H93: 35.27 | I93: 1058.1 | J93: 8.817519303e-05
A94: 9.17 | B94: 89797 | C94: SINAPI | D94: JUNÇÃO SIMPLES, PVC, SERIE NORMAL, ESGOTO PREDIAL, DN 100 X 100 MM, JUNTA ELÁSTICA, FORNECIDO E INSTALADO EM RAMAL DE DESCARGA OU RAMAL DE ESGOTO SANITÁRIO. AF_08/2022 | E94: UN | F94: 140 | G94: 52.31 | H94: 64.91 | I94: 9087.4 | J94: 0.0007572849912
A95: 9.18 | B95: 98109 | C95: SINAPI | D95: CAIXA DE GORDURA ESPECIAL (CAPACIDADE: 312 L - PARA ATÉ 146 PESSOAS SERVIDAS NO PICO), RETANGULAR, EM ALVENARIA COM BLOCOS DE CONCRETO, DIMENSÕES INTERNAS = 0,4X1,2 M, ALTURA INTERNA = 1 M. AF_12/2020 | E95: UN | F95: 100 | G95: 776.28 | H95: 963.28 | I95: 96328 | J95: 0.008027350907
A96: 9.19 | B96: 99268 | C96: SINAPI | D96: POÇO DE INSPEÇÃO CIRCULAR PARA DRENAGEM, EM CONCRETO PRÉ-MOLDADO, DIÂMETRO INTERNO = 0,60 M, PROFUNDIDADE = 0,90 M, EXCLUINDO TAMPÃO. AF_12/2020 | E96: UN | F96: 38 | G96: 403.34 | H96: 500.5 | I96: 19019 | J96: 0.001584920136
A97: 9.20 | B97: 98114 | C97: SINAPI | D97: TAMPA CIRCULAR PARA ESGOTO E DRENAGEM, EM FERRO FUNDIDO, DIÂMETRO INTERNO = 0,6 M. AF_12/2020 | E97: UN | F97: 38 | G97: 602.32 | H97: 747.41 | I97: 28401.58 | J97: 0.002366803515
A98: 9.21 | B98: 89585 | C98: SINAPI | D98: JOELHO 45 GRAUS, PVC, SERIE R, ÁGUA PLUVIAL, DN 100 MM, JUNTA ELÁSTICA, FORNECIDO E INSTALADO EM CONDUTORES VERTICAIS DE ÁGUAS PLUVIAIS. AF_06/2022 | E98: UN | F98: 50 | G98: 45.93 | H98: 56.99 | I98: 2849.5 | J98: 0.0002374588532
A99: 9.22 | B99: 89584 | C99: SINAPI | D99: JOELHO 90 GRAUS, PVC, SERIE R, ÁGUA PLUVIAL, DN 100 MM, JUNTA ELÁSTICA, FORNECIDO E INSTALADO EM CONDUTORES VERTICAIS DE ÁGUAS PLUVIAIS. AF_06/2022 | E99: UN | F99: 25 | G99: 44.92 | H99: 55.74 | I99: 1393.5 | J99: 0.0001161252542
A100: 9.23 | B100: 89512 | C100: SINAPI | D100: TUBO PVC, SÉRIE R, ÁGUA PLUVIAL, DN 100 MM, FORNECIDO E INSTALADO EM RAMAL DE ENCAMINHAMENTO. AF_06/2022 | E100: M | F100: 125 | G100: 49.98 | H100: 62.02 | I100: 7752.5 | J100: 0.000646043081
A101: 10 | D101: INSTALAÇÕES ELETRICAS | F101: 1 | H101: 629016.01 | I101: 629016.01 | J101: 0.05241811559
A102: 10.1 | B102: 91953 | C102: SINAPI | D102: INTERRUPTOR SIMPLES (1 MÓDULO), 10A/250V, INCLUINDO SUPORTE E PLACA - FORNECIMENTO E INSTALAÇÃO. AF_03/2023 | E102: UN | F102: 237 | G102: 36.75 | H102: 45.6 | I102: 10807.2 | J102: 0.0009006019716
A103: 10.2 | B103: 91959 | C103: SINAPI | D103: INTERRUPTOR SIMPLES (2 MÓDULOS), 10A/250V, INCLUINDO SUPORTE E PLACA - FORNECIMENTO E INSTALAÇÃO. AF_03/2023 | E103: UN | F103: 10 | G103: 56.4 | H103: 69.98 | I103: 699.8 | J103: 5.831679433e-05
A104: 10.3 | B104: 91996 | C104: SINAPI | D104: TOMADA MÉDIA DE EMBUTIR (1 MÓDULO), 2P+T 10 A, INCLUINDO SUPORTE E PLACA - FORNECIMENTO E INSTALAÇÃO. AF_03/2023 | E104: UN | F104: 1088 | G104: 42.87 | H104: 53.19 | I104: 57870.72 | J104: 0.004822570557
A105: 10.4 | B105: 91940 | C105: SINAPI | D105: CAIXA RETANGULAR 4" X 2" MÉDIA (1,30 M DO PISO), PVC, INSTALADA EM PAREDE - FORNECIMENTO E INSTALAÇÃO. AF_03/2023 | E105: UN | F105: 1380 | G105: 18.53 | H105: 22.99 | I105: 31726.2 | J105: 0.002643855788
A106: 10.5 | B106: 91936 | C106: SINAPI | D106: CAIXA OCTOGONAL 4" X 4", PVC, INSTALADA EM LAJE - FORNECIMENTO E INSTALAÇÃO. AF_03/2023 | E106: UN | F106: 379 | G106: 17.04 | H106: 21.14 | I106: 8012.06 | J106: 0.0006676731283
A107: 10.6 | B107: 90456 | C107: SINAPI | D107: QUEBRA EM ALVENARIA PARA INSTALAÇÃO DE CAIXA DE TOMADA (4X4 OU 4X2). AF_09/2023 | E107: UN | F107: 1380 | G107: 6.03 | H107: 7.48 | I107: 10322.4 | J107: 0.0008602018831
A108: 10.7 | B108: 91852 | C108: SINAPI | D108: ELETRODUTO FLEXÍVEL CORRUGADO, PVC, DN 20 MM (1/2"), PARA CIRCUITOS TERMINAIS, INSTALADO EM PAREDE - FORNECIMENTO E INSTALAÇÃO. AF_03/2023 | E108: M | F108: 1352.05 | G108: 9.92 | H108: 12.3 | I108: 16630.21 | J108: 0.001385853867
A109: 10.8 | B109: 91854 | C109: SINAPI | D109: ELETRODUTO FLEXÍVEL CORRUGADO, PVC, DN 25 MM (3/4"), PARA CIRCUITOS TERMINAIS, INSTALADO EM PAREDE - FORNECIMENTO E INSTALAÇÃO. AF_03/2023 | E109: M | F109: 2866.53 | G109: 10.71 | H109: 13.29 | I109: 38096.18 | J109: 0.003174688617
A110: 10.9 | B110: 91856 | C110: SINAPI | D110: ELETRODUTO FLEXÍVEL CORRUGADO, PVC, DN 32 MM (1"), PARA CIRCUITOS TERMINAIS, INSTALADO EM PAREDE - FORNECIMENTO E INSTALAÇÃO. AF_03/2023 | E110: M | F110: 8.95 | G110: 13.92 | H110: 17.27 | I110: 154.56 | J110: 1.28800282e-05
A111: 10.10 | B111: 90447 | C111: SINAPI | D111: RASGO LINEAR MANUAL EM ALVENARIA, PARA ELETRODUTOS, DIÂMETROS MENORES OU IGUAIS A 40 MM. AF_09/2023 | E111: M | F111: 2029.2 | G111: 9.11 | H111: 11.3 | I111: 22929.96 | J111: 0.001910834183
A112: 10.11 | B112: 91862 | C112: SINAPI | D112: ELETRODUTO RÍGIDO ROSCÁVEL, PVC, DN 20 MM (1/2"), PARA CIRCUITOS TERMINAIS, INSTALADO EM FORRO - FORNECIMENTO E INSTALAÇÃO. AF_03/2023 | E112: M | F112: 27.22 | G112: 10.87 | H112: 13.48 | I112: 366.92 | J112: 3.05767336e-05
A113: 10.12 | B113: 91870 | C113: SINAPI | D113: ELETRODUTO RÍGIDO ROSCÁVEL, PVC, DN 20 MM (1/2"), PARA CIRCUITOS TERMINAIS, INSTALADO EM PAREDE - FORNECIMENTO E INSTALAÇÃO. AF_03/2023 | E113: M | F113: 169.1 | G113: 14.08 | H113: 17.47 | I113: 2954.17 | J113: 0.0002461813723
A114: 10.13 | B114: 91864 | C114: SINAPI | D114: ELETRODUTO RÍGIDO ROSCÁVEL, PVC, DN 32 MM (1"), PARA CIRCUITOS TERMINAIS, INSTALADO EM FORRO - FORNECIMENTO E INSTALAÇÃO. AF_03/2023 | E114: M | F114: 3.93 | G114: 17.56 | H114: 21.79 | I114: 85.63 | J114: 7.135848955e-06
A115: 10.14 | B115: 91887 | C115: SINAPI | D115: CURVA 90 GRAUS PARA ELETRODUTO, PVC, ROSCÁVEL, DN 20 MM (1/2"), PARA CIRCUITOS TERMINAIS, INSTALADA EM FORRO - FORNECIMENTO E INSTALAÇÃO. AF_03/2023 | E115: UN | F115: 7 | G115: 12.17 | H115: 15.1 | I115: 105.7 | J115: 8.808352616e-06
A116: 10.15 | B116: 91890 | C116: SINAPI | D116: CURVA 90 GRAUS PARA ELETRODUTO, PVC, ROSCÁVEL, DN 25 MM (3/4"), PARA CIRCUITOS TERMINAIS, INSTALADA EM FORRO - FORNECIMENTO E INSTALAÇÃO. AF_03/2023 | E116: UN | F116: 41 | G116: 13.53 | H116: 16.78 | I116: 687.98 | J116: 5.733179218e-05
A117: 10.16 | B117: 91893 | C117: SINAPI | D117: CURVA 90 GRAUS PARA ELETRODUTO, PVC, ROSCÁVEL, DN 32 MM (1"), PARA CIRCUITOS TERMINAIS, INSTALADA EM FORRO - FORNECIMENTO E INSTALAÇÃO. AF_03/2023 | E117: UN | F117: 2 | G117: 16.5 | H117: 20.47 | I117: 40.94 | J117: 3.411674135e-06
A118: 10.17 | B118: 97236 | C118: SINAPI | D118: ELETROCALHA LISA OU PERFURADA EM AÇO GALVANIZADO, LARGURA 50MM E ALTURA 50MM, INCLUSIVE EMENDA E FIXAÇÃO - FORNECIMENTO E INSTALAÇÃO. AF_04/2023 | E118: M | F118: 498 | G118: 85.87 | H118: 106.55 | I118: 53061.9 | J118: 0.00442183468
A119: 10.18 | B119: 97237 | C119: SINAPI | D119: ELETROCALHA LISA OU PERFURADA EM AÇO GALVANIZADO, LARGURA 75MM E ALTURA 50MM, INCLUSIVE EMENDA E FIXAÇÃO - FORNECIMENTO E INSTALAÇÃO. AF_04/2023 | E119: M | F119: 166 | G119: 87.12 | H119: 108.1 | I119: 17944.6 | J119: 0.001495386607
A120: 10.19 | B120: 97274 | C120: SINAPI | D120: CURVA HORIZONTAL 90º PARA ELETROCALHA, LISA OU PERFURADA EM AÇO GALVANIZADO, LARGURA DE 50MM E ALTURA DE 50MM - FORNECIMENTO E INSTALAÇÃO. AF_04/2023 | E120: UN | F120: 10 | G120: 75.36 | H120: 93.51 | I120: 935.1 | J120: 7.792517059e-05
A121: 10.20 | B121: 97277 | C121: SINAPI | D121: CURVA HORIZONTAL 90º, PARA ELETROCALHA, LISA OU PERFURADA EM AÇO GALVANIZADO, LARGURA DE 75MM E ALTURA DE 50MM - FORNECIMENTO E INSTALAÇÃO. AF_04/2023 | E121: UN | F121: 5 | G121: 78.17 | H121: 97 | I121: 485 | J121: 4.041675515e-05
A122: 10.21 | B122: 97249 | C122: SINAPI | D122: EMENDA PARA ELETROCALHA, LISA OU PERFURADA EM AÇO GALVANIZADO, LARGURA 50MM E ALTURA 50MM - FORNECIMENTO E INSTALAÇÃO. AF_04/2023 | E122: UN | F122: 11 | G122: 70.17 | H122: 87.07 | I122: 957.77 | J122: 7.981434139e-05
A123: 10.22 | B123: 97250 | C123: SINAPI | D123: EMENDA PARA ELETROCALHA, LISA OU PERFURADA EM AÇO GALVANIZADO, LARGURA 75MM E ALTURA 50MM - FORNECIMENTO E INSTALAÇÃO. AF_04/2023 | E123: UN | F123: 29 | G123: 72.05 | H123: 89.4 | I123: 2592.6 | J123: 0.000216050473
A124: 10.23 | B124: 97253 | C124: SINAPI | D124: REDUÇÃO PARA ELETROCALHA, LISA OU PERFURADA EM AÇO GALVANIZADO, 75X50MM E ALTURA 50MM - FORNECIMENTO E INSTALAÇÃO. AF_04/2023 | E124: UN | F124: 47 | G124: 71.11 | H124: 88.24 | I124: 4147.28 | J124: 0.0003456074233
A125: 10.24 | B125: 97313 | C125: SINAPI | D125: TÊ HORIZONTAL 90º, PARA ELETROCALHA, LISA OU PERFURADA EM AÇO GALVANIZADO, LARGURA DE 50MM E ALTURA DE 50MM - FORNECIMENTO E INSTALAÇÃO. AF_04/2023 | E125: UN | F125: 191 | G125: 110.46 | H125: 137.06 | I125: 26178.46 | J125: 0.002181543109
A126: 10.25 | B126: 97314 | C126: SINAPI | D126: TÊ HORIZONTAL 90º, PARA ELETROCALHA, LISA OU PERFURADA EM AÇO GALVANIZADO, LARGURA DE 75MM E ALTURA DE 50MM - FORNECIMENTO E INSTALAÇÃO. AF_04/2023 | E126: UN | F126: 79 | G126: 114.21 | H126: 141.72 | I126: 11195.88 | J126: 0.0009329920425
A127: 10.26 | B127: 96563 | C127: SINAPI | D127: SUPORTE PARA ELETROCALHA LISA OU PERFURADA EM AÇO GALVANIZADO, LARGURA 800 MM, EM PERFILADO COM COMPRIMENTO DE 85 CM FIXADO EM LAJE, POR METRO DE ELETROCALHA FIXADA. AF_09/2023 | E127: M | F127: 664 | G127: 67.87 | H127: 84.21 | I127: 55915.44 | J127: 0.004659630201
A128: 10.27 | B128: 063104 | C128: SBC | D128: ABERTURA E FECHAMENTO DE ELETROCALHA | E128: M | F128: 4 | G128: 121.78 | H128: 151.11 | I128: 604.44 | J128: 5.037011027e-05
A129: 10.28 | B129: 063052 | C129: SBC | D129: CURVA VERTICAL EXTERNA PARA ELETROCALHA 100X50mm | E129: UN | F129: 4 | G129: 42.89 | H129: 53.22 | I129: 212.88 | J129: 1.774003884e-05
A130: 10.29 | B130: 053778 | C130: SBC | D130: SUPORTE SUSPENSAO VERTICAL PARA ELETROCALHA 75 x 50 mm | E130: UN | F130: 20 | G130: 4.66 | H130: 5.78 | I130: 115.6 | J130: 9.633354422e-06
A131: 10.30 | B131: 101874 | C131: SINAPI | D131: QUADRO DE DISTRIBUIÇÃO DE LUZ EM PVC PARA 24 DISJUNTORES - FORNECIMENTO E INSTALAÇÃO. AF_07/2025 | E131: UN | F131: 1 | G131: 290.12 | H131: 360 | I131: 360 | J131: 3.000006568e-05
A132: 10.31 | B132: 106025 | C132: SINAPI | D132: QUADRO DE DISTRIBUIÇÃO DE ENERGIA EM CHAPA DE AÇO GALVANIZADO, DE SOBREPOR, COM BARRAMENTO TRIFÁSICO, PARA 36 DISJUNTORES DIN 100A - FORNECIMENTO E INSTALAÇÃO. AF_07/2025 | E132: UN | F132: 3 | G132: 982.58 | H132: 1219.28 | I132: 3657.84 | J132: 0.0003048206673
A133: 10.32 | B133: 93654 | C133: SINAPI | D133: DISJUNTOR MONOPOLAR TIPO DIN, CORRENTE NOMINAL DE 16A - FORNECIMENTO E INSTALAÇÃO. AF_07/2025 | E133: UN | F133: 17 | G133: 13.62 | H133: 16.9 | I133: 287.3 | J133: 2.394171908e-05
A134: 10.33 | B134: 93655 | C134: SINAPI | D134: DISJUNTOR MONOPOLAR TIPO DIN, CORRENTE NOMINAL DE 20A - FORNECIMENTO E INSTALAÇÃO. AF_07/2025 | E134: UN | F134: 52 | G134: 14.59 | H134: 18.1 | I134: 941.2 | J134: 7.843350504e-05
A135: 10.34 | B135: 106020 | C135: SINAPI | D135: DISJUNTOR TRIPOLAR DIN 63A - FORNECIMENTO E INSTALAÇÃO. AF_07/2025 | E135: UN | F135: 1 | G135: 124.44 | H135: 154.41 | I135: 154.41 | J135: 1.286752817e-05
A136: 10.35 | B136: 106031 | C136: SINAPI | D136: DISJUNTOR TRIPOLAR DIN 80A - FORNECIMENTO E INSTALAÇÃO. AF_07/2025 | E136: UN | F136: 1 | G136: 49.57 | H136: 61.51 | I136: 61.51 | J136: 5.125844555e-06
A137: 10.36 | B137: 101894 | C137: SINAPI | D137: DISJUNTOR TRIPOLAR TIPO NEMA, CORRENTE NOMINAL DE 60 ATÉ 100A - FORNECIMENTO E INSTALAÇÃO. AF_07/2025 | E137: UN | F137: 1 | G137: 178.67 | H137: 221.71 | I137: 221.71 | J137: 1.847587378e-05
A138: 10.37 | B138: 101895 | C138: SINAPI | D138: DISJUNTOR TERMOMAGNÉTICO TRIPOLAR, CORRENTE NOMINAL DE 125A - FORNECIMENTO E INSTALAÇÃO. AF_07/2025 | E138: UN | F138: 1 | G138: 489.63 | H138: 607.58 | I138: 607.58 | J138: 5.063177751e-05
A139: 10.38 | B139: 101896 | C139: SINAPI | D139: DISJUNTOR TERMOMAGNÉTICO TRIPOLAR, CORRENTE NOMINAL DE 200A - FORNECIMENTO E INSTALAÇÃO. AF_07/2025 | E139: UN | F139: 1 | G139: 738.53 | H139: 916.44 | I139: 916.44 | J139: 7.637016719e-05
A140: 10.39 | B140: 91924 | C140: SINAPI | D140: CABO DE COBRE FLEXÍVEL ISOLADO, 1,5 MM², ANTI-CHAMA 450/750 V, PARA CIRCUITOS TERMINAIS - FORNECIMENTO E INSTALAÇÃO. AF_03/2023 | E140: M | F140: 3021.8 | G140: 3.49 | H140: 4.33 | I140: 13084.39 | J140: 0.00109036822
A141: 10.40 | B141: 91926 | C141: SINAPI | D141: CABO DE COBRE FLEXÍVEL ISOLADO, 2,5 MM², ANTI-CHAMA 450/750 V, PARA CIRCUITOS TERMINAIS - FORNECIMENTO E INSTALAÇÃO. AF_03/2023 | E141: M | F141: 12028.6 | G141: 5.11 | H141: 6.34 | I141: 76261.32 | J141: 0.006355123912
A142: 10.41 | B142: 101560 | C142: SINAPI | D142: CABO DE COBRE FLEXÍVEL ISOLADO, 10 MM², 0,6/1,0 KV, PARA REDE AÉREA DE DISTRIBUIÇÃO DE ENERGIA ELÉTRICA DE BAIXA TENSÃO - FORNECIMENTO E INSTALAÇÃO. AF_07/2020 | E142: M | F142: 360 | G142: 12.7 | H142: 15.75 | I142: 5670 | J142: 0.0004725010344
A143: 10.42 | B143: 92984 | C143: SINAPI | D143: CABO DE COBRE FLEXÍVEL ISOLADO, 25 MM², ANTI-CHAMA 0,6/1,0 KV, PARA REDE ENTERRADA DE DISTRIBUIÇÃO DE ENERGIA ELÉTRICA - FORNECIMENTO E INSTALAÇÃO. AF_12/2021 | E143: M | F143: 600 | G143: 33.79 | H143: 41.93 | I143: 25158 | J143: 0.00209650459
A144: 10.43 | B144: 101563 | C144: SINAPI | D144: CABO DE COBRE FLEXÍVEL ISOLADO, 35 MM², 0,6/1,0 KV, PARA REDE AÉREA DE DISTRIBUIÇÃO DE ENERGIA ELÉTRICA DE BAIXA TENSÃO - FORNECIMENTO E INSTALAÇÃO. AF_07/2020 | E144: M | F144: 400 | G144: 44.1 | H144: 54.72 | I144: 21888 | J144: 0.001824003993
A145: 10.44 | B145: 101565 | C145: SINAPI | D145: CABO DE COBRE FLEXÍVEL ISOLADO, 70 MM², 0,6/1,0 KV, PARA REDE AÉREA DE DISTRIBUIÇÃO DE ENERGIA ELÉTRICA DE BAIXA TENSÃO - FORNECIMENTO E INSTALAÇÃO. AF_07/2020 | E145: M | F145: 300 | G145: 91.15 | H145: 113.1 | I145: 33930 | J145: 0.00282750619
A146: 10.45 | B146: 100910 | C146: SINAPI | D146: LUMINÁRIA TIPO CALHA, DE SOBREPOR, COM 2 LÂMPADAS TUBULARES LED DE 18 W, SEM REATOR - FORNECIMENTO E INSTALAÇÃO. AF_09/2024 | E146: UN | F146: 74 | G146: 44.27 | H146: 54.93 | I146: 4064.82 | J146: 0.0003387357415
A147: 10.46 | B147: 103782 | C147: SINAPI | D147: LUMINÁRIA TIPO PLAFON CIRCULAR, DE SOBREPOR, COM LED DE 12/13 W - FORNECIMENTO E INSTALAÇÃO. AF_09/2024 | E147: UN | F147: 247 | G147: 32.86 | H147: 40.77 | I147: 10070.19 | J147: 0.0008391843371
A148: 10.47 | B148: 97607 | C148: SINAPI | D148: LUMINÁRIA ARANDELA TIPO TARTARUGA, DE SOBREPOR, COM 1 LÂMPADA LED DE 6 W, SEM REATOR - FORNECIMENTO E INSTALAÇÃO. AF_09/2024 | E148: UN | F148: 9 | G148: 108.79 | H148: 134.99 | I148: 1214.91 | J148: 0.0001012427216
A149: 10.48 | B149: 102106 | C149: SINAPI | D149: TRANSFORMADOR DE DISTRIBUIÇÃO, 150 KVA, TRIFÁSICO, 60 HZ, CLASSE 15 KV, IMERSO EM ÓLEO MINERAL, INSTALAÇÃO EM POSTE (NÃO INCLUSO SUPORTE) - FORNECIMENTO E INSTALAÇÃO. AF_12/2020 | E149: UN | F149: 1 | G149: 24832.83 | H149: 30815.05 | I149: 30815.05 | J149: 0.002567926455
A150: 10.49 | B150: 102110 | C150: SINAPI | D150: SUPORTE PARA TRANSFORMADOR EM POSTE DE CONCRETO DUPLO T - FORNECIMENTO E INSTALAÇÃO. AF_12/2020 | E150: UN | F150: 1 | G150: 285.63 | H150: 354.43 | I150: 354.43 | J150: 2.953589799e-05
A151: 10.50 | B151: 100606 | C151: SINAPI | D151: ASSENTAMENTO DE POSTE DE CONCRETO COM COMPRIMENTO NOMINAL DE 10 M, CARGA NOMINAL DE 1000 DAN, ENGASTAMENTO BASE CONCRETADA COM 1 M DE CONCRETO E 0,6 M DE SOLO (NÃO INCLUI FORNECIMENTO). AF_04/2025 | E151: UN | F151: 2 | G151: 1681.71 | H151: 2086.83 | I151: 4173.66 | J151: 0.0003478057614
A152: 10.51 | B152: 2935 | C152: ORSE | D152: Poste de concreto duplo T (DT) 10/1000 - fornecimento | E152: un | F152: 2 | G152: 2860 | H152: 3548.97 | I152: 7097.94 | J152: 0.0005914962949
A153: 10.52 | B153: 11381 | C153: ORSE | D153: Quadro de medição indireta para transformadores de até 225 kva | E153: un | F153: 1 | G153: 2534.04 | H153: 3144.49 | I153: 3144.49 | J153: 0.000262041407
A154: 10.53 | B154: 13535 | C154: ORSE | D154: Montagem de acessórios para subestação transformadora em poste com elo fusível 3H, em poste com 11 m | E154: un | F154: 1 | G154: 7287.65 | H154: 9043.24 | I154: 9043.24 | J154: 0.0007536049831
A155: 11 | D155: ESQUADRIAS | F155: 1 | H155: 901169.54 | I155: 901169.54 | J155: 0.07509762607
A156: 11.1 | B156: 100701 | C156: SINAPI | D156: PORTA DE FERRO, DE ABRIR, TIPO GRADE COM CHAPA, COM GUARNIÇÕES. AF_12/2019 | E156: m² | F156: 22.5 | G156: 696.86 | H156: 864.73 | I156: 19456.42 | J156: 0.001621371883
A157: 11.2 | B157: 12710 | C157: ORSE | D157: Porta de enrolar, em perfil meia cana fechado, em chapa de aço galvanizado nº22 | E157: m² | F157: 1420.23 | G157: 356.36 | H157: 442.2 | I157: 628025.7 | J157: 0.05233558957
A158: 11.3 | B158: 13135 | C158: ORSE | D158: Portão em chapa de ferro n.º 18(1,25mm), de correr, quadro em tubo de ferro galvanizado/inter horizontal de 2", inclusive trancas/ferrolho - Rev 01 | E158: m² | F158: 170 | G158: 952.63 | H158: 1182.11 | I158: 200958.7 | J158: 0.01674659499
A159: 11.4 | B159: 500 | C159: Próprio | D159: FORNECIMENTO E INSTALAÇÃO DE PERGOLADO METALICO EM PERFIL "U" DE 5" | E159: m² | F159: 150.43 | G159: 282.48 | H159: 350.52 | I159: 52728.72 | J159: 0.004394069619
A160: 12 | D160: LOUÇAS E ACESSORIOS | F160: 1 | H160: 485144.51 | I160: 485144.51 | J160: 0.04042879767
A161: 12.1 | B161: 86935 | C161: SINAPI | D161: CUBA DE EMBUTIR DE AÇO INOXIDÁVEL MÉDIA, INCLUSO VÁLVULA TIPO AMERICANA EM METAL CROMADO E SIFÃO FLEXÍVEL EM PVC - FORNECIMENTO E INSTALAÇÃO. AF_01/2020 | E161: UN | F161: 227 | G161: 295.1 | H161: 366.18 | I161: 83122.86 | J161: 0.006926920164
A162: 12.2 | B162: 86885 | C162: SINAPI | D162: ENGATE FLEXÍVEL EM PLÁSTICO BRANCO, 1/2" X 40CM - FORNECIMENTO E INSTALAÇÃO. AF_01/2020 | E162: UN | F162: 227 | G162: 11.94 | H162: 14.81 | I162: 3361.87 | J162: 0.0002801564466
A163: 12.3 | B163: 86909 | C163: SINAPI | D163: TORNEIRA CROMADA TUBO MÓVEL, DE MESA, 1/2" OU 3/4", PARA PIA DE COZINHA, PADRÃO ALTO - FORNECIMENTO E INSTALAÇÃO. AF_01/2020 | E163: UN | F163: 227 | G163: 144.42 | H163: 179.21 | I163: 40680.67 | J163: 0.003390063255
A164: 12.4 | B164: 104328 | C164: SINAPI | D164: CAIXA SIFONADA, COM GRELHA QUADRADA, PVC, DN 150 X 150 X 50 MM, JUNTA SOLDÁVEL, FORNECIDA E INSTALADA EM RAMAL DE DESCARGA OU EM RAMAL DE ESGOTO SANITÁRIO. AF_08/2022 | E164: UN | F164: 76 | G164: 64.35 | H164: 79.85 | I164: 6068.6 | J164: 0.0005057177738
A165: 12.5 | B165: 89987 | C165: SINAPI | D165: REGISTRO DE GAVETA BRUTO, LATÃO, ROSCÁVEL, 3/4", COM ACABAMENTO E CANOPLA CROMADOS - FORNECIMENTO E INSTALAÇÃO. AF_08/2021 | E165: UN | F165: 227 | G165: 101.75 | H165: 126.26 | I165: 28661.02 | J165: 0.002388423562
A166: 12.6 | B166: 10759 | C166: ORSE | D166: Bancada em granito cinza andorinha, e=2cm | E166: m² | F166: 469.43 | G166: 554.92 | H166: 688.6 | I166: 323249.49 | J166: 0.02693751647
A167: 13 | D167: PINTURA | F167: 1 | H167: 792661.38 | I167: 792661.38 | J167: 0.06605525961
A168: 13.1 | B168: 88497 | C168: SINAPI | D168: EMASSAMENTO COM MASSA LÁTEX, APLICAÇÃO EM PAREDE, DUAS DEMÃOS, LIXAMENTO MANUAL. AF_04/2023 | E168: m² | F168: 7985.03 | G168: 16.63 | H168: 20.63 | I168: 164731.16 | J168: 0.01372762672
A169: 13.2 | B169: 95626 | C169: SINAPI | D169: APLICAÇÃO MANUAL DE TINTA LÁTEX ACRÍLICA EM PAREDE EXTERNAS DE CASAS, DUAS DEMÃOS. AF_03/2024 | E169: m² | F169: 14183.03 | G169: 15.84 | H169: 19.65 | I169: 278696.53 | J169: 0.02322476168
A170: 13.3 | B170: 100758 | C170: SINAPI | D170: PINTURA COM TINTA ALQUÍDICA DE ACABAMENTO (ESMALTE SINTÉTICO ACETINADO) APLICADA A ROLO OU PINCEL SOBRE SUPERFÍCIES METÁLICAS (EXCETO PERFIL) EXECUTADO EM OBRA (02 DEMÃOS). AF_01/2020 | E170: m² | F170: 5652.86 | G170: 49.79 | H170: 61.78 | I170: 349233.69 | J170: 0.02910287121
A171: 14 | D171: SERVIÇOS COMPLEMENTARES | F171: 1 | H171: 344031.42 | I171: 344031.42 | J171: 0.02866934776
A172: 14.1 | D172: INCENDIO E PANICO | F172: 1 | H172: 328154.34 | I172: 328154.34 | J172: 0.02734625487
A173: 14.1.1 | B173: 92336 | C173: SINAPI | D173: TUBO DE AÇO GALVANIZADO COM COSTURA, CLASSE MÉDIA, CONEXÃO RANHURADA, DN 65 (2 1/2"), INSTALADO EM PRUMADAS - FORNECIMENTO E INSTALAÇÃO. AF_10/2020 | E173: M | F173: 1220 | G173: 112.07 | H173: 139.06 | I173: 169653.2 | J173: 0.01413779762
A174: 14.1.2 | B174: 92337 | C174: SINAPI | D174: TUBO DE AÇO GALVANIZADO COM COSTURA, CLASSE MÉDIA, CONEXÃO RANHURADA, DN 80 (3"), INSTALADO EM PRUMADAS - FORNECIMENTO E INSTALAÇÃO. AF_10/2020 | E174: M | F174: 12 | G174: 147.32 | H174: 182.8 | I174: 2193.6 | J174: 0.0001828004002
A175: 14.1.3 | B175: 11283 | C175: ORSE | D175: Flange sextavado de ferro galvanizado, com rosca bsp, de 4" | E175: un | F175: 1 | G175: 219.12 | H175: 271.9 | I175: 271.9 | J175: 2.265838294e-05
A176: 14.1.4 | B176: 94473 | C176: SINAPI | D176: COTOVELO 90 GRAUS, EM FERRO GALVANIZADO, CONEXÃO ROSQUEADA, DN 65 MM (2 1/2"), INSTALADO EM RESERVAÇÃO PREDIAL DE ÁGUA - FORNECIMENTO E INSTALAÇÃO. AF_04/2024 | E176: UN | F176: 14 | G176: 124.43 | H176: 154.4 | I176: 2161.6 | J176: 0.0001801337277
A177: 14.1.5 | B177: 94475 | C177: SINAPI | D177: COTOVELO 90 GRAUS, EM FERRO GALVANIZADO, CONEXÃO ROSQUEADA, DN 80 MM (3"), INSTALADO EM RESERVAÇÃO PREDIAL DE ÁGUA - FORNECIMENTO E INSTALAÇÃO. AF_04/2024 | E177: UN | F177: 2 | G177: 168.66 | H177: 209.29 | I177: 418.58 | J177: 3.488174303e-05
A178: 14.1.6 | B178: 97488 | C178: SINAPI | D178: CURVA 90 GRAUS, EM AÇO, CONEXÃO SOLDADA, DN 65 (2 1/2"), INSTALADO EM REDE DE ALIMENTAÇÃO PARA HIDRANTE - FORNECIMENTO E INSTALAÇÃO. AF_10/2020 | E178: UN | F178: 5 | G178: 325.95 | H178: 404.47 | I178: 2022.35 | J178: 0.0001685295356
A179: 14.1.7 | B179: 92377 | C179: SINAPI | D179: NIPLE, EM FERRO GALVANIZADO, DN 65 (2 1/2"), CONEXÃO ROSQUEADA, INSTALADO EM REDE DE ALIMENTAÇÃO PARA HIDRANTE - FORNECIMENTO E INSTALAÇÃO. AF_10/2020 | E179: UN | F179: 1 | G179: 95.79 | H179: 118.86 | I179: 118.86 | J179: 9.905021684e-06
A180: 14.1.8 | B180: 92379 | C180: SINAPI | D180: NIPLE, EM FERRO GALVANIZADO, DN 80 (3"), CONEXÃO ROSQUEADA, INSTALADO EM REDE DE ALIMENTAÇÃO PARA HIDRANTE - FORNECIMENTO E INSTALAÇÃO. AF_10/2020 | E180: UN | F180: 2 | G180: 135.92 | H180: 168.66 | I180: 337.32 | J180: 2.811006154e-05
A181: 14.1.9 | B181: 92897 | C181: SINAPI | D181: UNIÃO, EM FERRO GALVANIZADO, DN 80 (3"), CONEXÃO ROSQUEADA, INSTALADO EM REDE DE ALIMENTAÇÃO PARA HIDRANTE - FORNECIMENTO E INSTALAÇÃO. AF_10/2020 | E181: UN | F181: 2 | G181: 316.83 | H181: 393.15 | I181: 786.3 | J181: 6.552514345e-05
A182: 14.1.10 | B182: 96765 | C182: SINAPI | D182: ABRIGO PARA HIDRANTE, 90X60X17CM, COM REGISTRO GLOBO ANGULAR 45 GRAUS 2 1/2", ADAPTADOR STORZ 2 1/2", MANGUEIRA DE INCÊNDIO 20M, REDUÇÃO 2 1/2" X 1 1/2" E ESGUICHO EM LATÃO 1 1/2" - FORNECIMENTO E INSTALAÇÃO. AF_10/2020 | E182: UN | F182: 5 | G182: 1911.47 | H182: 2371.94 | I182: 11859.7 | J182: 0.0009883104969
A183: 14.1.11 | B183: 94499 | C183: SINAPI | D183: REGISTRO DE GAVETA BRUTO, LATÃO, ROSCÁVEL, 2 1/2" - FORNECIMENTO E INSTALAÇÃO. AF_08/2021 | E183: UN | F183: 4 | G183: 313.57 | H183: 389.1 | I183: 1556.4 | J183: 0.0001297002839
A184: 14.1.12 | B184: 1510 | C184: ORSE | D184: Fornecimento e instalação de adaptador storz para engate rápido 2 1/2" x 2 1/2" com tampão e corrente (incêndio) | E184: un | F184: 5 | G184: 510.29 | H184: 633.21 | I184: 3166.05 | J184: 0.0002638380776
A185: 14.1.13 | B185: 2662 | C185: ORSE | D185: Fornecimento e assentamento de tampão de ferro fundido TDA-600mm, 300kg/cm², para poço de visita e caixas de passagem | E185: un | F185: 1 | G185: 717.18 | H185: 889.94 | I185: 889.94 | J185: 7.416182902e-05
A186: 14.1.14 | B186: 94500 | C186: SINAPI | D186: REGISTRO DE GAVETA BRUTO, LATÃO, ROSCÁVEL, 3" - FORNECIMENTO E INSTALAÇÃO. AF_08/2021 | E186: UN | F186: 2 | G186: 380.63 | H186: 472.32 | I186: 944.64 | J186: 7.872017233e-05
A187: 14.1.15 | B187: 99625 | C187: SINAPI | D187: VÁLVULA DE RETENÇÃO HORIZONTAL, DE BRONZE, ROSCÁVEL, 3" - FORNECIMENTO E INSTALAÇÃO. AF_08/2021 | E187: UN | F187: 2 | G187: 914.16 | H187: 1134.38 | I187: 2268.76 | J187: 0.0001890637472
A188: 14.1.16 | B188: 13835 | C188: ORSE | D188: Manômetro D. 63mm (2.1/2"), 0-250kgf/cm², rosca 1/4" NPT-M, ligação vertical,com enchimento de glicerina, caixa inox - fornecimento e instalação | E188: un | F188: 1 | G188: 330.39 | H188: 409.98 | I188: 409.98 | J188: 3.416507479e-05
A189: 14.1.17 | B189: 11894 | C189: ORSE | D189: Hidrante de recalque incluindo caixa em alvenaria de tijolos maciços esp. = 0,12m, dim. int. = 0.40 x 0.60 x 0.35m, com tampa em ferro fundido 0,40 x 0,60 e fundo com brita | E189: un | F189: 1 | G189: 1269.52 | H189: 1575.34 | I189: 1575.34 | J189: 0.0001312786207
A190: 14.1.18 | B190: 13319 | C190: ORSE | D190: Conjunto moto-bomba centrífuga, trifasica, motor 7.5 cv, 1 1/4", Schneider BC-22 R ou similar | E190: un | F190: 2 | G190: 8934.01 | H190: 11086.21 | I190: 22172.42 | J190: 0.001847705712
A191: 14.1.19 | B191: 101908 | C191: SINAPI | D191: EXTINTOR DE INCÊNDIO PORTÁTIL COM CARGA DE PQS DE 4 KG, CLASSE BC - FORNECIMENTO E INSTALAÇÃO. AF_10/2020_PE | E191: UN | F191: 16 | G191: 260.33 | H191: 323.04 | I191: 5168.64 | J191: 0.0004307209429
A192: 14.1.20 | B192: 101905 | C192: SINAPI | D192: EXTINTOR DE INCÊNDIO PORTÁTIL COM CARGA DE ÁGUA PRESSURIZADA DE 10 L, CLASSE A - FORNECIMENTO E INSTALAÇÃO. AF_10/2020_PE | E192: UN | F192: 7 | G192: 268.34 | H192: 332.98 | I192: 2330.86 | J192: 0.0001942387586
A193: 14.1.21 | B193: 10446 | C193: ORSE | D193: Avisador sonoro tipo sirene para incêndio - Fornecimento | E193: un | F193: 5 | G193: 330.01 | H193: 409.5 | I193: 2047.5 | J193: 0.0001706253735
A194: 14.1.22 | B194: 7861 | C194: ORSE | D194: Acionador manual (botoeira) tipo quebra-vidro, p/instal. incendio | E194: un | F194: 5 | G194: 154.59 | H194: 191.83 | I194: 959.15 | J194: 7.992934165e-05
A195: 14.1.23 | B195: 12136 | C195: ORSE | D195: Central de alarme de incendio com sistema de 04 laços para até 396 dispositivos, marca JFL, modelo Vulcano - 400 ou similar | E195: un | F195: 1 | G195: 2249.38 | H195: 2791.25 | I195: 2791.25 | J195: 0.0002326046759
A196: 14.1.24 | B196: 8693 | C196: ORSE | D196: Bateria industrial para acionamento de sirene (p/penitenciária) | E196: un | F196: 1 | G196: 304.02 | H196: 377.25 | I196: 377.25 | J196: 3.143756882e-05
A197: 14.1.25 | B197: 12138 | C197: ORSE | D197: Placa de indicativa de "EXTINTOR" em pvc, dim.: 20 x 20 cm | E197: Un | F197: 25 | G197: 24.8 | H197: 30.77 | I197: 769.25 | J197: 6.4104307e-05
A198: 14.1.26 | B198: 10363 | C198: ORSE | D198: Placa de sinalização em acrílico, dimensões 0.12 x 0.12 m, e=2mm | E198: un | F198: 32 | G198: 27.98 | H198: 34.72 | I198: 1111.04 | J198: 9.258686935e-05
A199: 14.1.27 | B199: 97599 | C199: SINAPI | D199: LUMINÁRIA DE EMERGÊNCIA, COM 30 LÂMPADAS LED DE 2 W, SEM REATOR - FORNECIMENTO E INSTALAÇÃO. AF_09/2024 | E199: UN | F199: 30 | G199: 22.02 | H199: 27.32 | I199: 819.6 | J199: 6.830014952e-05
A200: 14.1.28 | B200: 91993 | C200: SINAPI | D200: TOMADA ALTA DE EMBUTIR (1 MÓDULO), 2P+T 20 A, INCLUINDO SUPORTE E PLACA - FORNECIMENTO E INSTALAÇÃO. AF_03/2023 | E200: UN | F200: 30 | G200: 56.85 | H200: 70.54 | I200: 2116.2 | J200: 0.0001763503861
... 10 more rows

Sheet Cronograma
A1: Obra | F1: Bancos | I1: B.D.I. | K1: Encargos Sociais
B2: REFORMA DO MERCADO PÚBLICO MUNICIPAL DE SÃO MIGUEL DOS CAMPOS - AL | F2: SINAPI - 08/2025 - Alagoas SBC - 09/2025 - Alagoas SICRO3 - 07/2025 - Alagoas ORSE - 07/2025 - Sergipe | I2: 24,09% | K2: Não Desonerado: Horista: 114,41% Mensalista: 70,12%
A3: Cronograma Físico e Financeiro
A4: Item | B4: Descrição | C4: Total Por Etapa | D4: 30 DIAS | E4: 60 DIAS | F4: 90 DIAS | G4: 120 DIAS | H4: 150 DIAS | I4: 180 DIAS | J4: 210 DIAS | K4: 240 DIAS | L4: 270 DIAS | M4: 300 DIAS | N4: 330 DIAS | O4: 360 DIAS | P4: 390 DIAS | Q4: 420 DIAS
A5: 1 | B5: SERVIÇOS PRELIMINARES | C5: 100,00% 474.536,97 | D5: 24,71% 117.258,09 | E5: 23,98% 113.793,97 | F5: 4,28% 20.310,18 | G5: 4,28% 20.310,18 | H5: 4,28% 20.310,18 | I5: 4,28% 20.310,18 | J5: 4,28% 20.310,18 | K5: 4,28% 20.310,18 | L5: 4,28% 20.310,18 | M5: 4,27% 20.262,73 | N5: 4,27% 20.262,73 | O5: 4,27% 20.262,73 | P5: 4,27% 20.262,73 | Q5: 4,27% 20.262,73
A6: 2 | B6: ADMINISTRAÇÃO DE OBRA | C6: 100,00% 771.380,44 | D6: 3,91% 30.160,98 | E6: 5,47% 42.194,51 | F6: 8,76% 67.572,93 | G6: 7,59% 58.547,78 | H6: 8,63% 66.570,13 | I6: 8,50% 65.567,34 | J6: 7,04% 54.305,18 | K6: 7,04% 54.305,18 | L6: 6,64% 51.219,66 | M6: 8,28% 63.870,30 | N6: 7,07% 54.536,60 | O6: 8,09% 62.404,68 | P6: 6,79% 52.376,73 | Q6: 6,19% 47.748,45
A7: 3 | B7: MOVIMENTO DE TERRA | C7: 100,00% 11.551,88 | D7: 100,00% 11.551,88
A8: 4 | B8: INFRAESTRUTURA | C8: 100,00% 492.295,88 | D8: 30,00% 147.688,76 | E8: 40,00% 196.918,35 | F8: 30,00% 147.688,76
A9: 5 | B9: SUPERESTRUTURA | C9: 100,00% 1.010.241,98 | F9: 20,00% 202.048,40 | G9: 20,00% 202.048,40 | H9: 30,00% 303.072,59 | I9: 30,00% 303.072,59
A10: 6 | B10: COBERTA | C10: 100,00% 3.246.999,58 | D10: 5,00% 162.349,98 | E10: 5,00% 162.349,98 | F10: 10,00% 324.699,96 | G10: 10,00% 324.699,96 | H10: 10,00% 324.699,96 | I10: 10,00% 324.699,96 | J10: 10,00% 324.699,96 | K10: 10,00% 324.699,96 | L10: 10,00% 324.699,96 | M10: 10,00% 324.699,96 | N10: 5,00% 162.349,98 | O10: 5,00% 162.349,98
A11: 7 | B11: PAVIMENTAÇÃO | C11: 100,00% 1.601.574,36 | E11: 4,00% 64.062,97 | F11: 4,00% 64.062,97 | G11: 5,00% 80.078,72 | H11: 6,00% 96.094,46 | I11: 6,00% 96.094,46 | J11: 11,00% 176.173,18 | K11: 11,00% 176.173,18 | L11: 11,00% 176.173,18 | M11: 20,00% 320.314,87 | N11: 11,00% 176.173,18 | O11: 11,00% 176.173,18
A12: 8 | B12: REVESTIMENTOS | C12: 100,00% 964.964,69 | F12: 12,50% 120.620,59 | G12: 12,50% 120.620,59 | H12: 12,50% 120.620,59 | I12: 12,50% 120.620,59 | J12: 12,50% 120.620,59 | K12: 12,50% 120.620,59 | L12: 12,50% 120.620,59 | M12: 12,50% 120.620,59
A13: 9 | B13: INSTALAÇÕES HIDROSSANITARIAS | C13: 100,00% 274.405,09 | E13: 5,00% 13.720,25 | F13: 10,00% 27.440,51 | G13: 10,00% 27.440,51 | H13: 10,00% 27.440,51 | I13: 5,00% 13.720,25 | J13: 10,00% 27.440,51 | K13: 10,00% 27.440,51 | L13: 10,00% 27.440,51 | M13: 10,00% 27.440,51 | N13: 10,00% 27.440,51 | O13: 10,00% 27.440,51
A14: 10 | B14: INSTALAÇÕES ELETRICAS | C14: 100,00% 629.016,01 | E14: 10,00% 62.901,60 | F14: 5,00% 31.450,80 | G14: 5,00% 31.450,80 | H14: 5,00% 31.450,80 | I14: 5,00% 31.450,80 | J14: 5,00% 31.450,80 | K14: 5,00% 31.450,80 | L14: 5,00% 31.450,80 | M14: 5,00% 31.450,80 | N14: 10,00% 62.901,60 | O14: 10,00% 62.901,60 | P14: 30,00% 188.704,80
A15: 11 | B15: ESQUADRIAS | C15: 100,00% 901.169,54 | F15: 5,00% 45.058,48 | G15: 5,00% 45.058,48 | H15: 5,00% 45.058,48 | I15: 5,00% 45.058,48 | J15: 10,00% 90.116,95 | K15: 10,00% 90.116,95 | L15: 5,00% 45.058,48 | M15: 5,00% 45.058,48 | N15: 13,00% 117.152,04 | O15: 15,00% 135.175,43 | P15: 20,00% 180.233,91 | Q15: 2,00% 18.023,39
A16: 12 | B16: LOUÇAS E ACESSORIOS | C16: 100,00% 485.144,51 | O16: 20,00% 97.028,90 | P16: 30,00% 145.543,35 | Q16: 50,00% 242.572,26
A17: 13 | B17: PINTURA | C17: 100,00% 792.661,38 | M17: 5,00% 39.633,07 | N17: 20,00% 158.532,28 | O17: 20,00% 158.532,28 | P17: 20,00% 158.532,28 | Q17: 35,00% 277.431,48
A18: 14 | B18: SERVIÇOS COMPLEMENTARES | C18: 100,00% 344.031,42 | N18: 20,00% 68.806,28 | O18: 20,00% 68.806,28 | P18: 20,00% 68.806,28 | Q18: 40,00% 137.612,57
A19: Porcentagem | D19: 3,91% | E19: 5,47% | F19: 8,76% | G19: 7,59% | H19: 8,63% | I19: 8,5% | J19: 7,04% | K19: 7,04% | L19: 6,64% | M19: 8,28% | N19: 7,07% | O19: 8,09% | P19: 6,79% | Q19: 6,2%
A20: Custo | D20: 469.009,68 | E20: 655.941,63 | F20: 1.050.953,57 | G20: 910.255,40 | H20: 1.035.317,70 | I20: 1.020.594,65 | J20: 845.117,35 | K20: 845.117,35 | L20: 796.973,35 | M20: 993.351,30 | N20: 848.155,19 | O20: 971.075,56 | P20: 814.460,08 | Q20: 743.650,87
A21: Porcentagem Acumulado | D21: 3,91% | E21: 9,37% | F21: 18,13% | G21: 25,72% | H21: 34,35% | I21: 42,85% | J21: 49,89% | K21: 56,94% | L21: 63,58% | M21: 71,86% | N21: 78,92% | O21: 87,02% | P21: 93,8% | Q21: 100,0%
A22: Custo Acumulado | D22: 469.009,68 | E22: 1.124.951,31 | F22: 2.175.904,88 | G22: 3.086.160,28 | H22: 4.121.477,98 | I22: 5.142.072,63 | J22: 5.987.189,98 | K22: 6.832.307,33 | L22: 7.629.280,68 | M22: 8.622.631,98 | N22: 9.470.787,17 | O22: 10.441.862,73 | P22: 11.256.322,81 | Q22: 11.999.973,73

Sheet 4-BDI
A1: DETALHAMENTO DOS BDI
A2: Obra: REFORMA DO MERCADO PÚBLICO MUNICIPAL DE SÃO MIGUEL DOS CAMPOS - AL
A4: DETALHAMENTO DO BDI - SERVIÇOS
B6: Item | C6: Descrição dos serviços | D6: Preço de Venda (%) | E6: Custo Direto (%)
B8: 1 | C8: Administração Central (A) | E8: 0.0468
B10: 2 | C10: Impostos e Taxas (I) | D10: =SUM(D11:D14) -> 0.0615
B11: 2.1 | C11: ISS | D11: 0.025
B12: 2.2 | C12: PIS | D12: 0.0065
B13: 2.3 | C13: Cofins | D13: 0.03
B16: 3 | C16: Risco, seguro e garantia (R) | E16: =E17+E18 -> 0.0227
B17: 3.1 | C17: Seguro + Garantias | E17: 0.01
B18: 3.2 | C18: Risco | E18: 0.0127
B21: 4 | C21: Despesas Financeiras (DF) | E21: 0.0139
B23: 5 | C23: Lucro (L) | E23: 0.074
C25: BDI* (%) | E25: =ROUND(((((1+E8+E16)*(1+E21)*(1+E23))/(1-D10))-1),4) -> 0.2409
A27: Considerações: | B27: Acórdão nº 2369/2011 - TCU - Plenário - DOU nº174 em 20 de setembro de 2011
B28: (*) BDI (%) = ((((1+AC+R)*(1+DF)*(1+L))/(1-I))-1)
B29: e ACÓRDÃO Nº 2622/2013 – TCU – Plenário de 25/9/2013
B30: (**) Contribuição sobre a receita bruta devido a Desoneração em folha

Sheet Encargos Sociais
A1: DETALHAMENTO DOS ENCARGOS SOCIAIS
A2: Obra: REFORMA DO MERCADO PÚBLICO MUNICIPAL DE SÃO MIGUEL DOS CAMPOS - AL
A6: CÓDIGO | B6: DESCRIÇÃO | C6: HORISTA % | D6: MENSALISTA %
B7: GRUPO A
A8: A1 | B8: INSS | C8: 20 | D8: 20
A9: A2 | B9: SESI | C9: 1.5 | D9: 1.5
A10: A3 | B10: SENAI | C10: 1 | D10: 1
A11: A4 | B11: INCRA | C11: 0.2 | D11: 0.2
A12: A5 | B12: SEBRAE | C12: 0.6 | D12: 0.6
A13: A6 | B13: SALÁRIO EDUCAÇÃO | C13: 2.5 | D13: 2.5
A14: A7 | B14: SEGURO CONTRA ACIDENTES TRABALHO | C14: 3 | D14: 3
A15: A8 | B15: FGTS | C15: 8 | D15: 8
A16: A9 | B16: SECONCI | C16: 0 | D16: 0
A17: A | B17: TOTAL DOS ENCARGOS SOCIAIS BÁSICOS | C17: =SUM(C8:C16) -> 36.8 | D17: =SUM(D8:D16) -> 36.8
B18: GRUPO B
A19: B1 | B19: REPOUSO SEMANAL REMUNERADO | C19: 18.05
A20: B2 | B20: FERIADOS | C20: 4.67
A21: B3 | B21: AUXÍLIO-ENFERMIDADE | C21: 0.86 | D21: 0.65
A22: B4 | B22: 13º SALÁRIO | C22: 11.02 | D22: 8.33
A23: B5 | B23: LICENÇA PATERNIDADE | C23: 0.07 | D23: 0.05
A24: B6 | B24: FALTAS JUSTIFICADAS | C24: 0.73 | D24: 0.56
A25: B7 | B25: DIAS DE CHUVAS | C25: 1.81
A26: B8 | B26: AUXÍLIO ACIDENTE DE TRABALHO | C26: 0.1 | D26: 0.07
A27: B9 | B27: FÉRIAS GOZADAS | C27: 10.51 | D27: 7.95
A28: B10 | B28: SALÁRIO MATERNIDADE | C28: 0.03 | D28: 0.03
A29: B | B29: TOTAL DE ENCARGOS SOCIAIS QUE RECEBEM INCIDÊNCIAS DE A | C29: =SUM(C19:C28) -> 47.85 | D29: =SUM(D19:D28) -> 17.64
B30: GRUPO C
A31: C1 | B31: AVISO PRÉVIO INDENIZADO | C31: 4.79 | D31: 3.62
A32: C2 | B32: AVISO PRÉVIO TRABALHADO | C32: 0.11 | D32: 0.09
A33: C3 | B33: FÉRIAS INDENIZADAS | C33: 3.51 | D33: 2.65
A34: C4 | B34: DEPÓSITO RESCISÃO SEM JUSTA CAUSA | C34: 2.92 | D34: 2.21
A35: C5 | B35: INDENIZAÇÃO ADICIONAL | C35: 0.4 | D35: 0.3
A36: C | B36: TOTAL DOS E.SOCIAIS QUE NÃO RECEBEM AS INCIDÊNCIAS GLOBAIS DE A | C36: =SUM(C31:C35) -> 11.73 | D36: =SUM(D31:D35) -> 8.87
B37: GRUPO D
A38: D1 | B38: REINCIDÊNCIA DE A SOBRE B | C38: 17.61 | D38: 6.49
A39: D2 | B39: REINCIDÊNCIA DE A SOBRE AVISO PRÉVIO TRABALHADO E REINCIDÊNCIA DO FGTS SOBRE AVISO PRÉVIO INDENIZADO | C39: 0.42 | D39: 0.32
A40: D | B40: TOTAL DAS TAXAS INCIDÊNCIAS E REINCIDÊNCIAS | C40: =SUM(C38:C39) -> 18.03 | D40: =SUM(D38:D39) -> 6.81
A43: TOTAL (A+B+C+D) | C43: =C17+C29+C36+C40 -> 114.41 | D43: =D17+D29+D36+D40 -> 70.12

Sheet CPUs
C1: Composições Analíticas com Preço Unitário | E1: Bancos | G1: B.D.I. | I1: Encargos Sociais
C2: REFORMA DO MERCADO PÚBLICO MUNICIPAL DE SÃO MIGUEL DOS CAMPOS - AL | E2: SINAPI - 08/2025 - Alagoas SBC - 09/2025 - Alagoas SICRO3 - 07/2025 - Alagoas ORSE - 07/2025 - Sergipe | G2: 24,09% | I2: Não Desonerado: Horista: 114,41% Mensalista: 70,12%
A3: Composições Analíticas com Preço Unitário
A4: Composições Principais
A5: 1.1 | B5: Código | C5: Banco | D5: Descrição | E5: Tipo | G5: Und | H5: Quant. | I5: Valor Unit | J5: Total
A6: Composição | B6: 97622 | C6: SINAPI | D6: DEMOLIÇÃO DE ALVENARIA DE BLOCO FURADO, DE FORMA MANUAL, SEM REAPROVEITAMENTO. AF_09/2023 | E6: SERP - SERVIÇOS PRELIMINARES | G6: m³ | H6: 1 | I6: 56.28 | J6: 56.28
A7: Composição Auxiliar | B7: 88316 | C7: SINAPI | D7: SERVENTE COM ENCARGOS COMPLEMENTARES | E7: SEDI - SERVIÇOS DIVERSOS | G7: H | H7: 2.1957 | I7: 21.35 | J7: 46.87
A8: Composição Auxiliar | B8: 88309 | C8: SINAPI | D8: PEDREIRO COM ENCARGOS COMPLEMENTARES | E8: SEDI - SERVIÇOS DIVERSOS | G8: H | H8: 0.3541 | I8: 26.59 | J8: 9.41
E9: MO sem LS => | F9: 19.13 | G9: LS => | H9: 21.89 | I9: MO com LS => | J9: 41.02
E10: Valor do BDI => | F10: 13.55 | H10: Valor com BDI => | J10: 69.83
A12: 1.2 | B12: Código | C12: Banco | D12: Descrição | E12: Tipo | G12: Und | H12: Quant. | I12: Valor Unit | J12: Total
A13: Composição | B13: 97633 | C13: SINAPI | D13: DEMOLIÇÃO DE REVESTIMENTO CERÂMICO, DE FORMA MANUAL, SEM REAPROVEITAMENTO. AF_09/2023 | E13: SERP - SERVIÇOS PRELIMINARES | G13: m² | H13: 1 | I13: 22.6 | J13: 22.6
A14: Composição Auxiliar | B14: 88256 | C14: SINAPI | D14: AZULEJISTA OU LADRILHEIRO COM ENCARGOS COMPLEMENTARES | E14: SEDI - SERVIÇOS DIVERSOS | G14: H | H14: 0.2301 | I14: 26.46 | J14: 6.08
A15: Composição Auxiliar | B15: 88316 | C15: SINAPI | D15: SERVENTE COM ENCARGOS COMPLEMENTARES | E15: SEDI - SERVIÇOS DIVERSOS | G15: H | H15: 0.774 | I15: 21.35 | J15: 16.52
E16: MO sem LS => | F16: 7.73 | G16: LS => | H16: 8.86 | I16: MO com LS => | J16: 16.59
E17: Valor do BDI => | F17: 5.44 | H17: Valor com BDI => | J17: 28.04
A19: 1.3 | B19: Código | C19: Banco | D19: Descrição | E19: Tipo | G19: Und | H19: Quant. | I19: Valor Unit | J19: Total
A20: Composição | B20: 104790 | C20: SINAPI | D20: DEMOLIÇÃO DE PISO DE CONCRETO SIMPLES, DE FORMA MECANIZADA COM MARTELETE, SEM REAPROVEITAMENTO. AF_09/2023 | E20: SERP - SERVIÇOS PRELIMINARES | G20: m³ | H20: 1 | I20: 97.78 | J20: 97.78
A21: Composição Auxiliar | B21: 5795 | C21: SINAPI | D21: MARTELETE OU ROMPEDOR PNEUMÁTICO MANUAL, 28 KG, COM SILENCIADOR - CHP DIURNO. AF_07/2016 | E21: CHOR - CUSTOS HORÁRIOS DE MÁQUINAS E EQUIPAMENTOS | G21: CHP | H21: 1.137 | I21: 20.94 | J21: 23.8
A22: Composição Auxiliar | B22: 90965 | C22: SINAPI | D22: COMPRESSOR DE AR REBOCÁVEL, VAZÃO 89 PCM, PRESSÃO EFETIVA DE TRABALHO 102 PSI, MOTOR DIESEL, POTÊNCIA 20 CV - CHI DIURNO. AF_06/2015 | E22: CHOR - CUSTOS HORÁRIOS DE MÁQUINAS E EQUIPAMENTOS | G22: CHI | H22: 0.8695 | I22: 8.9 | J22: 7.73
A23: Composição Auxiliar | B23: 90964 | C23: SINAPI | D23: COMPRESSOR DE AR REBOCÁVEL, VAZÃO 89 PCM, PRESSÃO EFETIVA DE TRABALHO 102 PSI, MOTOR DIESEL, POTÊNCIA 20 CV - CHP DIURNO. AF_06/2015 | E23: CHOR - CUSTOS HORÁRIOS DE MÁQUINAS E EQUIPAMENTOS | G23: CHP | H23: 1.137 | I23: 32.54 | J23: 36.99
A24: Composição Auxiliar | B24: 88316 | C24: SINAPI | D24: SERVENTE COM ENCARGOS COMPLEMENTARES | E24: SEDI - SERVIÇOS DIVERSOS | G24: H | H24: 0.4479 | I24: 21.35 | J24: 9.56
A25: Composição Auxiliar | B25: 88309 | C25: SINAPI | D25: PEDREIRO COM ENCARGOS COMPLEMENTARES | E25: SEDI - SERVIÇOS DIVERSOS | G25: H | H25: 0.0722 | I25: 26.59 | J25: 1.91
A26: Composição Auxiliar | B26: 5952 | C26: SINAPI | D26: MARTELETE OU ROMPEDOR PNEUMÁTICO MANUAL, 28 KG, COM SILENCIADOR - CHI DIURNO. AF_07/2016 | E26: CHOR - CUSTOS HORÁRIOS DE MÁQUINAS E EQUIPAMENTOS | G26: CHI | H26: 0.8695 | I26: 20.47 | J26: 17.79
E27: MO sem LS => | F27: 18.07 | G27: LS => | H27: 20.68 | I27: MO com LS => | J27: 38.75
E28: Valor do BDI => | F28: 23.55 | H28: Valor com BDI => | J28: 121.33
A30: 1.4 | B30: Código | C30: Banco | D30: Descrição | E30: Tipo | G30: Und | H30: Quant. | I30: Valor Unit | J30: Total
A31: Composição | B31: 104803 | C31: SINAPI | D31: REMOÇÃO CALHAS E RUFOS, DE FORMA MANUAL, SEM REAPROVEITAMENTO. AF_09/2023 | E31: SERP - SERVIÇOS PRELIMINARES | G31: M | H31: 1 | I31: 4.5 | J31: 4.5
A32: Composição Auxiliar | B32: 88323 | C32: SINAPI | D32: TELHADISTA COM ENCARGOS COMPLEMENTARES | E32: SEDI - SERVIÇOS DIVERSOS | G32: H | H32: 0.0829 | I32: 25.91 | J32: 2.14
A33: Composição Auxiliar | B33: 88316 | C33: SINAPI | D33: SERVENTE COM ENCARGOS COMPLEMENTARES | E33: SEDI - SERVIÇOS DIVERSOS | G33: H | H33: 0.111 | I33: 21.35 | J33: 2.36
E34: MO sem LS => | F34: 1.56 | G34: LS => | H34: 1.8 | I34: MO com LS => | J34: 3.36
E35: Valor do BDI => | F35: 1.08 | H35: Valor com BDI => | J35: 5.58
A37: 1.5 | B37: Código | C37: Banco | D37: Descrição | E37: Tipo | G37: Und | H37: Quant. | I37: Valor Unit | J37: Total
A38: Composição | B38: 97640 | C38: SINAPI | D38: REMOÇÃO DE FORROS DE DRYWALL, PVC E FIBROMINERAL, DE FORMA MANUAL, SEM REAPROVEITAMENTO. AF_09/2023 | E38: SERP - SERVIÇOS PRELIMINARES | G38: m² | H38: 1 | I38: 1.86 | J38: 1.86
A39: Composição Auxiliar | B39: 88278 | C39: SINAPI | D39: MONTADOR DE ESTRUTURAS METÁLICAS COM ENCARGOS COMPLEMENTARES | E39: SEDI - SERVIÇOS DIVERSOS | G39: H | H39: 0.0229 | I39: 21.38 | J39: 0.48
A40: Composição Auxiliar | B40: 88316 | C40: SINAPI | D40: SERVENTE COM ENCARGOS COMPLEMENTARES | E40: SEDI - SERVIÇOS DIVERSOS | G40: H | H40: 0.0647 | I40: 21.35 | J40: 1.38
E41: MO sem LS => | F41: 0.63 | G41: LS => | H41: 0.73 | I41: MO com LS => | J41: 1.36
E42: Valor do BDI => | F42: 0.44 | H42: Valor com BDI => | J42: 2.3
A44: 1.6 | B44: Código | C44: Banco | D44: Descrição | E44: Tipo | G44: Und | H44: Quant. | I44: Valor Unit | J44: Total
A45: Composição | B45: 104793 | C45: SINAPI | D45: REMOÇÃO DE CABOS ELÉTRICOS, COM SEÇÃO MAIOR QUE 2,5 MM² E MENOR QUE 10 MM², DE FORMA MANUAL, SEM REAPROVEITAMENTO. AF_09/2023 | E45: SERP - SERVIÇOS PRELIMINARES | G45: M | H45: 1 | I45: 0.57 | J45: 0.57
A46: Composição Auxiliar | B46: 88316 | C46: SINAPI | D46: SERVENTE COM ENCARGOS COMPLEMENTARES | E46: SEDI - SERVIÇOS DIVERSOS | G46: H | H46: 0.0176 | I46: 21.35 | J46: 0.37
A47: Composição Auxiliar | B47: 88264 | C47: SINAPI | D47: ELETRICISTA COM ENCARGOS COMPLEMENTARES | E47: SEDI - SERVIÇOS DIVERSOS | G47: H | H47: 0.0062 | I47: 32.43 | J47: 0.2
E48: MO sem LS => | F48: 0.2 | G48: LS => | H48: 0.23 | I48: MO com LS => | J48: 0.43
E49: Valor do BDI => | F49: 0.13 | H49: Valor com BDI => | J49: 0.7
A51: 1.7 | B51: Código | C51: Banco | D51: Descrição | E51: Tipo | G51: Und | H51: Quant. | I51: Valor Unit | J51: Total
A52: Composição | B52: 97665 | C52: SINAPI | D52: REMOÇÃO DE LUMINÁRIAS, DE FORMA MANUAL, SEM REAPROVEITAMENTO. AF_09/2023 | E52: SERP - SERVIÇOS PRELIMINARES | G52: UN | H52: 1 | I52: 1.89 | J52: 1.89
A53: Composição Auxiliar | B53: 88264 | C53: SINAPI | D53: ELETRICISTA COM ENCARGOS COMPLEMENTARES | E53: SEDI - SERVIÇOS DIVERSOS | G53: H | H53: 0.0205 | I53: 32.43 | J53: 0.66
A54: Composição Auxiliar | B54: 88316 | C54: SINAPI | D54: SERVENTE COM ENCARGOS COMPLEMENTARES | E54: SEDI - SERVIÇOS DIVERSOS | G54: H | H54: 0.058 | I54: 21.35 | J54: 1.23
E55: MO sem LS => | F55: 0.66 | G55: LS => | H55: 0.76 | I55: MO com LS => | J55: 1.42
E56: Valor do BDI => | F56: 0.45 | H56: Valor com BDI => | J56: 2.34
A58: 1.8 | B58: Código | C58: Banco | D58: Descrição | E58: Tipo | G58: Und | H58: Quant. | I58: Valor Unit | J58: Total
A59: Composição | B59: 97647 | C59: SINAPI | D59: REMOÇÃO DE TELHAS DE FIBROCIMENTO METÁLICA E CERÂMICA, DE FORMA MANUAL, SEM REAPROVEITAMENTO. AF_09/2023 | E59: SERP - SERVIÇOS PRELIMINARES | G59: m² | H59: 1 | I59: 3.51 | J59: 3.51
A60: Composição Auxiliar | B60: 88323 | C60: SINAPI | D60: TELHADISTA COM ENCARGOS COMPLEMENTARES | E60: SEDI - SERVIÇOS DIVERSOS | G60: H | H60: 0.0408 | I60: 25.91 | J60: 1.05
A61: Composição Auxiliar | B61: 88316 | C61: SINAPI | D61: SERVENTE COM ENCARGOS COMPLEMENTARES | E61: SEDI - SERVIÇOS DIVERSOS | G61: H | H61: 0.1153 | I61: 21.35 | J61: 2.46
E62: MO sem LS => | F62: 1.2 | G62: LS => | H62: 1.38 | I62: MO com LS => | J62: 2.58
E63: Valor do BDI => | F63: 0.84 | H63: Valor com BDI => | J63: 4.35
A65: 1.9 | B65: Código | C65: Banco | D65: Descrição | E65: Tipo | G65: Und | H65: Quant. | I65: Valor Unit | J65: Total
A66: Composição | B66: 100981 | C66: SINAPI | D66: CARGA, MANOBRA E DESCARGA DE ENTULHO EM CAMINHÃO BASCULANTE 6 M³ - CARGA COM ESCAVADEIRA HIDRÁULICA (CAÇAMBA DE 0,80 M³ / 111 HP) E DESCARGA LIVRE (UNIDADE: M3). AF_07/2020 | E66: Transporte, Carga e Descarga de Materiais | G66: m³ | H66: 1 | I66: 9.3 | J66: 9.3
A67: Composição Auxiliar | B67: 5632 | C67: SINAPI | D67: ESCAVADEIRA HIDRÁULICA SOBRE ESTEIRAS, CAÇAMBA 0,80 M3, PESO OPERACIONAL 17 T, POTENCIA BRUTA 111 HP - CHI DIURNO. AF_06/2014 | E67: Custos Horários Produtivo e Improdutivo dos Equipamentos | G67: CHI | H67: 0.0151 | I67: 85.79 | J67: 1.29
A68: Composição Auxiliar | B68: 67827 | C68: SINAPI | D68: CAMINHÃO BASCULANTE 6 M3 TOCO, PESO BRUTO TOTAL 16.000 KG, CARGA ÚTIL MÁXIMA 11.130 KG, DISTÂNCIA ENTRE EIXOS 5,36 M, POTÊNCIA 185 CV, INCLUSIVE CAÇAMBA METÁLICA - CHI DIURNO. AF_06/2014 | E68: Custos Horários Produtivo e Improdutivo dos Equipamentos | G68: CHI | H68: 0.0203 | I68: 63.83 | J68: 1.29
A69: Composição Auxiliar | B69: 5631 | C69: SINAPI | D69: ESCAVADEIRA HIDRÁULICA SOBRE ESTEIRAS, CAÇAMBA 0,80 M3, PESO OPERACIONAL 17 T, POTENCIA BRUTA 111 HP - CHP DIURNO. AF_06/2014 | E69: Custos Horários Produtivo e Improdutivo dos Equipamentos | G69: CHP | H69: 0.0083 | I69: 209.66 | J69: 1.74
A70: Composição Auxiliar | B70: 67826 | C70: SINAPI | D70: CAMINHÃO BASCULANTE 6 M3 TOCO, PESO BRUTO TOTAL 16.000 KG, CARGA ÚTIL MÁXIMA 11.130 KG, DISTÂNCIA ENTRE EIXOS 5,36 M, POTÊNCIA 185 CV, INCLUSIVE CAÇAMBA METÁLICA - CHP DIURNO. AF_06/2014 | E70: Custos Horários Produtivo e Improdutivo dos Equipamentos | G70: CHP | H70: 0.0267 | I70: 186.61 | J70: 4.98
E71: MO sem LS => | F71: 0.71 | G71: LS => | H71: 0.83 | I71: MO com LS => | J71: 1.54
E72: Valor do BDI => | F72: 2.24 | H72: Valor com BDI => | J72: 11.54
A74: 1.10 | B74: Código | C74: Banco | D74: Descrição | E74: Tipo | G74: Und | H74: Quant. | I74: Valor Unit | J74: Total
A75: Composição | B75: 97914 | C75: SINAPI | D75: TRANSPORTE COM CAMINHÃO BASCULANTE DE 6 M³, EM VIA URBANA PAVIMENTADA, DMT ATÉ 30 KM (UNIDADE: M3XKM). AF_07/2020 | E75: Transporte, Carga e Descarga de Materiais | G75: M3XKM | H75: 1 | I75: 2.97 | J75: 2.97
A76: Composição Auxiliar | B76: 67826 | C76: SINAPI | D76: CAMINHÃO BASCULANTE 6 M3 TOCO, PESO BRUTO TOTAL 16.000 KG, CARGA ÚTIL MÁXIMA 11.130 KG, DISTÂNCIA ENTRE EIXOS 5,36 M, POTÊNCIA 185 CV, INCLUSIVE CAÇAMBA METÁLICA - CHP DIURNO. AF_06/2014 | E76: Custos Horários Produtivo e Improdutivo dos Equipamentos | G76: CHP | H76: 0.0139 | I76: 186.61 | J76: 2.59
A77: Composição Auxiliar | B77: 67827 | C77: SINAPI | D77: CAMINHÃO BASCULANTE 6 M3 TOCO, PESO BRUTO TOTAL 16.000 KG, CARGA ÚTIL MÁXIMA 11.130 KG, DISTÂNCIA ENTRE EIXOS 5,36 M, POTÊNCIA 185 CV, INCLUSIVE CAÇAMBA METÁLICA - CHI DIURNO. AF_06/2014 | E77: Custos Horários Produtivo e Improdutivo dos Equipamentos | G77: CHI | H77: 0.006 | I77: 63.83 | J77: 0.38
E78: MO sem LS => | F78: 0.2 | G78: LS => | H78: 0.25 | I78: MO com LS => | J78: 0.45
E79: Valor do BDI => | F79: 0.71 | H79: Valor com BDI => | J79: 3.68
A81: 1.11 | B81: Código | C81: Banco | D81: Descrição | E81: Tipo | G81: Und | H81: Quant. | I81: Valor Unit | J81: Total
A82: Composição | B82: 99059 | C82: SINAPI | D82: LOCAÇÃO CONVENCIONAL DE OBRA, UTILIZANDO GABARITO DE TÁBUAS CORRIDAS PONTALETADAS A CADA 2,00M - 2 UTILIZAÇÕES. AF_03/2024 | E82: SERT - SERVIÇOS TÉCNICOS | G82: M | H82: 1 | I82: 60.1 | J82: 60.1
A83: Composição Auxiliar | B83: 91693 | C83: SINAPI | D83: SERRA CIRCULAR DE BANCADA COM MOTOR ELÉTRICO POTÊNCIA DE 5HP, COM COIFA PARA DISCO 10" - CHI DIURNO. AF_08/2015 | E83: CHOR - CUSTOS HORÁRIOS DE MÁQUINAS E EQUIPAMENTOS | G83: CHI | H83: 0.028 | I83: 23.25 | J83: 0.65
A84: Composição Auxiliar | B84: 88239 | C84: SINAPI | D84: AJUDANTE DE CARPINTEIRO COM ENCARGOS COMPLEMENTARES | E84: SEDI - SERVIÇOS DIVERSOS | G84: H | H84: 0.7247 | I84: 22.21 | J84: 16.09
A85: Composição Auxiliar | B85: 94974 | C85: SINAPI | D85: CONCRETO MAGRO PARA LASTRO, TRAÇO 1:4,5:4,5 (EM MASSA SECA DE CIMENTO/ AREIA MÉDIA/ BRITA 1) - PREPARO MANUAL. AF_05/2021 | E85: FUES - FUNDAÇÕES E ESTRUTURAS | G85: m³ | H85: 0.004 | I85: 454.33 | J85: 1.81
A86: Composição Auxiliar | B86: 88262 | C86: SINAPI | D86: CARPINTEIRO DE FORMAS COM ENCARGOS COMPLEMENTARES | E86: SEDI - SERVIÇOS DIVERSOS | G86: H | H86: 0.7247 | I86: 26.18 | J86: 18.97
A87: Composição Auxiliar | B87: 91692 | C87: SINAPI | D87: SERRA CIRCULAR DE BANCADA COM MOTOR ELÉTRICO POTÊNCIA DE 5HP, COM COIFA PARA DISCO 10" - CHP DIURNO. AF_08/2015 | E87: CHOR - CUSTOS HORÁRIOS DE MÁQUINAS E EQUIPAMENTOS | G87: CHP | H87: 0.007 | I87: 24.71 | J87: 0.17
A88: Insumo | B88: 00007356 | C88: SINAPI | D88: TINTA LATEX ACRILICA PREMIUM, COR BRANCO FOSCO | E88: Material | G88: L | H88: 0.0256 | I88: 32.79 | J88: 0.83
A89: Insumo | B89: 00010567 | C89: SINAPI | D89: TABUA *2,5 X 23* CM EM PINUS, MISTA OU EQUIVALENTE DA REGIAO - BRUTA | E89: Material | G89: M | H89: 0.55 | I89: 12.92 | J89: 7.1
A90: Insumo | B90: 00004433 | C90: SINAPI | D90: CAIBRO NAO APARELHADO *6 X 6* CM, EM MACARANDUBA/MASSARANDUBA, ANGELIM OU EQUIVALENTE DA REGIAO - BRUTA | E90: Material | G90: M | H90: 0.4125 | I90: 19.06 | J90: 7.86
A91: Insumo | B91: 00005068 | C91: SINAPI | D91: PREGO DE ACO POLIDO COM CABECA 17 X 21 (2 X 11) | E91: Material | G91: KG | H91: 0.111 | I91: 24.17 | J91: 2.68
A92: Insumo | B92: 00004417 | C92: SINAPI | D92: SARRAFO NAO APARELHADO *2,5 X 7* CM, EM MACARANDUBA/MASSARANDUBA, ANGELIM, PEROBA-ROSA OU EQUIVALENTE DA REGIAO - BRUTA | E92: Material | G92: M | H92: 0.7445 | I92: 5.3 | J92: 3.94
E93: MO sem LS => | F93: 12.87 | G93: LS => | H93: 14.74 | I93: MO com LS => | J93: 27.61
E94: Valor do BDI => | F94: 14.47 | H94: Valor com BDI => | J94: 74.57
A96: 1.12 | B96: Código | C96: Banco | D96: Descrição | E96: Tipo | G96: Und | H96: Quant. | I96: Valor Unit | J96: Total
A97: Composição | B97: 4654 | C97: ORSE | D97: Locação de container - Almoxarifado sem banheiro - 6,00 x 2,40m - Rev 02_02/2022 | E97: Mobilização / Instalações Provisórias / Desmobilização | G97: mês | H97: 1 | I97: 800 | J97: 800
A98: Item | B98: Código | C98: Banco | D98: Descrição | E98: Tipo | G98: Und | H98: Quant. | I98: Valor Unit | J98: Total
A99: Insumo | B99: 4299 | C99: ORSE | D99: Aluguel de container - Almoxarifado sem banheiro - 6,00 x 2,40m | E99: Serviços | G99: mês | H99: 1 | I99: 800,00 | J99: 800,00
A100: Detalhamento de Cálculo ORSE
A101: Item | B101: Código | C101: Banco | D101: Descrição | E101: Tipo | G101: Und | H101: Quant. | I101: Valor Unit | J101: Total
A102: Insumo | B102: 4299 | C102: ORSE | D102: Aluguel de container - Almoxarifado sem banheiro - 6,00 x 2,40m | E102: Serviços | G102: mês | H102: 1 | I102: 800,00 | J102: 800,00
E103: MO sem LS => | F103: 0 | G103: LS => | H103: 0 | I103: MO com LS => | J103: 0
E104: Valor do BDI => | F104: 192.72 | H104: Valor com BDI => | J104: 992.72
A106: 1.13 | B106: Código | C106: Banco | D106: Descrição | E106: Tipo | G106: Und | H106: Quant. | I106: Valor Unit | J106: Total
A107: Composição | B107: 105118 | C107: SINAPI | D107: TAPUME EM CHAPA DE MADEIRA OSB. AF_03/2024 | E107: Instalações para Canteiros de Obras | G107: m² | H107: 1 | I107: 67.91 | J107: 67.91
A108: Composição Auxiliar | B108: 91693 | C108: SINAPI | D108: SERRA CIRCULAR DE BANCADA COM MOTOR ELÉTRICO POTÊNCIA DE 5HP, COM COIFA PARA DISCO 10" - CHI DIURNO. AF_08/2015 | E108: CHOR - CUSTOS HORÁRIOS DE MÁQUINAS E EQUIPAMENTOS | G108: CHI | H108: 0.0264 | I108: 23.25 | J108: 0.61
A109: Composição Auxiliar | B109: 94974 | C109: SINAPI | D109: CONCRETO MAGRO PARA LASTRO, TRAÇO 1:4,5:4,5 (EM MASSA SECA DE CIMENTO/ AREIA MÉDIA/ BRITA 1) - PREPARO MANUAL. AF_05/2021 | E109: FUES - FUNDAÇÕES E ESTRUTURAS | G109: m³ | H109: 0.0061 | I109: 454.33 | J109: 2.77
A110: Composição Auxiliar | B110: 88262 | C110: SINAPI | D110: CARPINTEIRO DE FORMAS COM ENCARGOS COMPLEMENTARES | E110: SEDI - SERVIÇOS DIVERSOS | G110: H | H110: 0.79 | I110: 26.18 | J110: 20.68
A111: Composição Auxiliar | B111: 91692 | C111: SINAPI | D111: SERRA CIRCULAR DE BANCADA COM MOTOR ELÉTRICO POTÊNCIA DE 5HP, COM COIFA PARA DISCO 10" - CHP DIURNO. AF_08/2015 | E111: CHOR - CUSTOS HORÁRIOS DE MÁQUINAS E EQUIPAMENTOS | G111: CHP | H111: 0.0066 | I111: 24.71 | J111: 0.16
A112: Composição Auxiliar | B112: 88239 | C112: SINAPI | D112: AJUDANTE DE CARPINTEIRO COM ENCARGOS COMPLEMENTARES | E112: SEDI - SERVIÇOS DIVERSOS | G112: H | H112: 0.529 | I112: 22.21 | J112: 11.74
A113: Insumo | B113: 00044673 | C113: SINAPI | D113: CHAPA DE MADEIRA OSB, DE 2,20 X 1,10 M, E = 14 MM | E113: Material | G113: m² | H113: 1.05 | I113: 0 | J113: 0
A114: Insumo | B114: 00006194 | C114: SINAPI | D114: TABUA *2,5 X 15 CM EM PINUS, MISTA OU EQUIVALENTE DA REGIAO - BRUTA | E114: Material | G114: M | H114: 2 | I114: 8.16 | J114: 16.32
A115: Insumo | B115: 00005061 | C115: SINAPI | D115: PREGO DE ACO POLIDO COM CABECA 18 X 27 (2 1/2 X 10) | E115: Material | G115: KG | H115: 0.068 | I115: 23.76 | J115: 1.61
A116: Insumo | B116: 00004491 | C116: SINAPI | D116: PONTALETE *7,5 X 7,5* CM EM PINUS, MISTA OU EQUIVALENTE DA REGIAO - BRUTA | E116: Material | G116: M | H116: 1.2273 | I116: 11.43 | J116: 14.02
E117: MO sem LS => | F117: 12.07 | G117: LS => | H117: 13.82 | I117: MO com LS => | J117: 25.89
E118: Valor do BDI => | F118: 16.35 | H118: Valor com BDI => | J118: 84.26
A120: 1.14 | B120: Código | C120: Banco | D120: Descrição | E120: Tipo | G120: Und | H120: Quant. | I120: Valor Unit | J120: Total
A121: Composição | B121: 103689 | C121: SINAPI | D121: FORNECIMENTO E INSTALAÇÃO DE PLACA DE OBRA COM CHAPA GALVANIZADA E ESTRUTURA DE MADEIRA. AF_03/2022_PS | E121: Sinalização Vertical Viária | G121: m² | H121: 1 | I121: 465.11 | J121: 465.11
A122: Composição Auxiliar | B122: 88262 | C122: SINAPI | D122: CARPINTEIRO DE FORMAS COM ENCARGOS COMPLEMENTARES | E122: SEDI - SERVIÇOS DIVERSOS | G122: H | H122: 0.3729 | I122: 26.18 | J122: 9.76
A123: Composição Auxiliar | B123: 88316 | C123: SINAPI | D123: SERVENTE COM ENCARGOS COMPLEMENTARES | E123: SEDI - SERVIÇOS DIVERSOS | G123: H | H123: 1.1186 | I123: 21.35 | J123: 23.88
A124: Composição Auxiliar | B124: 102234 | C124: SINAPI | D124: PINTURA IMUNIZANTE PARA MADEIRA, 2 DEMÃOS. AF_01/2021 | E124: Pintura em Madeira | G124: m² | H124: 0.5 | I124: 24.08 | J124: 12.04
A125: Insumo | B125: 00005069 | C125: SINAPI | D125: PREGO DE ACO POLIDO COM CABECA 17 X 27 (2 1/2 X 11) | E125: Material | G125: KG | H125: 0.0132 | I125: 24.63 | J125: 0.32
A126: Insumo | B126: 00004509 | C126: SINAPI | D126: SARRAFO *2,5 X 10* CM EM PINUS, MISTA OU EQUIVALENTE DA REGIAO - BRUTA | E126: Material | G126: M | H126: 3.2083 | I126: 5.8 | J126: 18.6
A127: Insumo | B127: 00005065 | C127: SINAPI | D127: PREGO DE ACO POLIDO COM CABECA 10 X 10 (7/8 X 17) | E127: Material | G127: KG | H127: 0.0113 | I127: 45.98 | J127: 0.51
A128: Insumo | B128: 00004813 | C128: SINAPI | D128: PLACA DE OBRA (PARA CONSTRUCAO CIVIL) EM CHAPA GALVANIZADA *N. 22*, ADESIVADA, DE *2,4 X 1,2* M (SEM POSTES PARA FIXACAO) | E128: Material | G128: m² | H128: 1 | I128: 400 | J128: 400
E129: MO sem LS => | F129: 13.7 | G129: LS => | H129: 15.69 | I129: MO com LS => | J129: 29.39
E130: Valor do BDI => | F130: 112.04 | H130: Valor com BDI => | J130: 577.15
A132: 1.15 | B132: Código | C132: Banco | D132: Descrição | E132: Tipo | G132: Und | H132: Quant. | I132: Valor Unit | J132: Total
A133: Composição | B133: 505 | C133: Próprio | D133: Projeto Executivo | G133: un | H133: 1 | I133: 150773.45 | J133: 150773.45
A134: Composição Auxiliar | B134: 90775 | C134: SINAPI | D134: DESENHISTA PROJETISTA COM ENCARGOS COMPLEMENTARES | E134: Livro SINAPI: Cálculos e Parâmetros | G134: H | H134: 800 | I134: 39.18 | J134: 31344
A135: Composição Auxiliar | B135: 93570 | C135: SINAPI | D135: ARQUITETO PLENO COM ENCARGOS COMPLEMENTARES | E135: Livro SINAPI: Cálculos e Parâmetros | G135: MES | H135: 2.5 | I135: 24733.38 | J135: 61833.45
A136: Composição Auxiliar | B136: 90778 | C136: SINAPI | D136: ENGENHEIRO CIVIL DE OBRA PLENO COM ENCARGOS COMPLEMENTARES | E136: Livro SINAPI: Cálculos e Parâmetros | G136: H | H136: 400 | I136: 143.99 | J136: 57596
E137: MO sem LS => | F137: 75904.58 | G137: LS => | H137: 71027.07 | I137: MO com LS => | J137: 146931.65
E138: Valor do BDI => | F138: 36321.32 | H138: Valor com BDI => | J138: 187094.77
A140: 2.1 | B140: Código | C140: Banco | D140: Descrição | E140: Tipo | G140: Und | H140: Quant. | I140: Valor Unit | J140: Total
A141: Composição | B141: 506 | C141: Próprio | D141: ADMINISTRAÇÃO LOCAL / MANUTENÇÃO DO CANTEIRO DE OBRAS | G141: GLOBAL | H141: 1 | I141: 621629.82 | J141: 621629.82
A142: Composição Auxiliar | B142: 94295 | C142: SINAPI | D142: MESTRE DE OBRAS COM ENCARGOS COMPLEMENTARES | E142: Livro SINAPI: Cálculos e Parâmetros | G142: MES | H142: 14 | I142: 7573.93 | J142: 106035.02
A143: Composição Auxiliar | B143: 101460 | C143: SINAPI | D143: VIGIA DIURNO COM ENCARGOS COMPLEMENTARES | E143: Livro SINAPI: Cálculos e Parâmetros | G143: MES | H143: 14 | I143: 3840.21 | J143: 53762.94
A144: Composição Auxiliar | B144: 93567 | C144: SINAPI | D144: ENGENHEIRO CIVIL DE OBRA PLENO COM ENCARGOS COMPLEMENTARES | E144: Livro SINAPI: Cálculos e Parâmetros | G144: MES | H144: 14 | I144: 25083.23 | J144: 351165.22
A145: Composição Auxiliar | B145: 93572 | C145: SINAPI | D145: ENCARREGADO GERAL DE OBRAS COM ENCARGOS COMPLEMENTARES | E145: Livro SINAPI: Cálculos e Parâmetros | G145: MES | H145: 14 | I145: 5049.26 | J145: 70689.64
A146: Insumo | B146: 00014250 | C146: SINAPI | D146: ENERGIA ELETRICA COMERCIAL, BAIXA TENSAO, RELATIVA AO CONSUMO DE ATE 100 KWH, INCLUINDO ICMS, PIS/PASEP E COFINS | E146: Franquia | G146: KWH | H146: 2800 | I146: 1.05 | J146: 2940
A147: Insumo | B147: 8978 | C147: ORSE | D147: Água - Consumo em volume | E147: Serviços | G147: m³ | H147: 280 | I147: 3.77 | J147: 1055.6
A148: Insumo | B148: 4415 | C148: ORSE | D148: Veículo leve - Volkswagen:GOL ou similar | E148: Equipamento | G148: h | H148: 2730 | I148: 13.18 | J148: 35981.4
E149: MO sem LS => | F149: 320127.29 | G149: LS => | H149: 224473.27 | I149: MO com LS => | J149: 544600.56
E150: Valor do BDI => | F150: 149750.62 | H150: Valor com BDI => | J150: 771380.44
A152: 3.1 | B152: Código | C152: Banco | D152: Descrição | E152: Tipo | G152: Und | H152: Quant. | I152: Valor Unit | J152: Total
A153: Composição | B153: 96527 | C153: SINAPI | D153: ESCAVAÇÃO MANUAL PARA VIGA BALDRAME OU SAPATA CORRIDA (INCLUINDO ESCAVAÇÃO PARA COLOCAÇÃO DE FÔRMAS). AF_01/2024 | E153: MOVT - MOVIMENTO DE TERRA | G153: m³ | H153: 1 | I153: 101.73 | J153: 101.73
A154: Composição Auxiliar | B154: 88316 | C154: SINAPI | D154: SERVENTE COM ENCARGOS COMPLEMENTARES | E154: SEDI - SERVIÇOS DIVERSOS | G154: H | H154: 3.515 | I154: 21.35 | J154: 75.04
A155: Composição Auxiliar | B155: 88309 | C155: SINAPI | D155: PEDREIRO COM ENCARGOS COMPLEMENTARES | E155: SEDI - SERVIÇOS DIVERSOS | G155: H | H155: 1.004 | I155: 26.59 | J155: 26.69
E156: MO sem LS => | F156: 34.82 | G156: LS => | H156: 39.85 | I156: MO com LS => | J156: 74.67
E157: Valor do BDI => | F157: 24.5 | H157: Valor com BDI => | J157: 126.23
A159: 3.2 | B159: Código | C159: Banco | D159: Descrição | E159: Tipo | G159: Und | H159: Quant. | I159: Valor Unit | J159: Total
A160: Composição | B160: 96523 | C160: SINAPI | D160: ESCAVAÇÃO MANUAL PARA BLOCO DE COROAMENTO OU SAPATA (INCLUINDO ESCAVAÇÃO PARA COLOCAÇÃO DE FÔRMAS). AF_01/2024 | E160: MOVT - MOVIMENTO DE TERRA | G160: m³ | H160: 1 | I160: 92.42 | J160: 92.42
A161: Composição Auxiliar | B161: 88309 | C161: SINAPI | D161: PEDREIRO COM ENCARGOS COMPLEMENTARES | E161: SEDI - SERVIÇOS DIVERSOS | G161: H | H161: 0.966 | I161: 26.59 | J161: 25.68
A162: Composição Auxiliar | B162: 88316 | C162: SINAPI | D162: SERVENTE COM ENCARGOS COMPLEMENTARES | E162: SEDI - SERVIÇOS DIVERSOS | G162: H | H162: 3.126 | I162: 21.35 | J162: 66.74
E163: MO sem LS => | F163: 31.66 | G163: LS => | H163: 36.24 | I163: MO com LS => | J163: 67.9
E164: Valor do BDI => | F164: 22.26 | H164: Valor com BDI => | J164: 114.68
A166: 3.3 | B166: Código | C166: Banco | D166: Descrição | E166: Tipo | G166: Und | H166: Quant. | I166: Valor Unit | J166: Total
A167: Composição | B167: 104737 | C167: SINAPI | D167: REATERRO MANUAL DE VALAS, COM PLACA VIBRATÓRIA. AF_08/2023 | E167: MOVT - MOVIMENTO DE TERRA | G167: m³ | H167: 1 | I167: 21.52 | J167: 21.52
A168: Composição Auxiliar | B168: 88316 | C168: SINAPI | D168: SERVENTE COM ENCARGOS COMPLEMENTARES | E168: SEDI - SERVIÇOS DIVERSOS | G168: H | H168: 0.8809 | I168: 21.35 | J168: 18.8
A169: Composição Auxiliar | B169: 5901 | C169: SINAPI | D169: CAMINHÃO PIPA 10.000 L TRUCADO, PESO BRUTO TOTAL 23.000 KG, CARGA ÚTIL MÁXIMA 15.935 KG, DISTÂNCIA ENTRE EIXOS 4,8 M, POTÊNCIA 230 CV, INCLUSIVE TANQUE DE AÇO PARA TRANSPORTE DE ÁGUA - CHP DIURNO. AF_06/2014 | E169: CHOR - CUSTOS HORÁRIOS DE MÁQUINAS E EQUIPAMENTOS | G169: CHP | H169: 0.0054 | I169: 315.85 | J169: 1.7
A170: Composição Auxiliar | B170: 5903 | C170: SINAPI | D170: CAMINHÃO PIPA 10.000 L TRUCADO, PESO BRUTO TOTAL 23.000 KG, CARGA ÚTIL MÁXIMA 15.935 KG, DISTÂNCIA ENTRE EIXOS 4,8 M, POTÊNCIA 230 CV, INCLUSIVE TANQUE DE AÇO PARA TRANSPORTE DE ÁGUA - CHI DIURNO. AF_06/2014 | E170: CHOR - CUSTOS HORÁRIOS DE MÁQUINAS E EQUIPAMENTOS | G170: CHI | H170: 0.0006 | I170: 72.59 | J170: 0.04
A171: Composição Auxiliar | B171: 91277 | C171: SINAPI | D171: PLACA VIBRATÓRIA REVERSÍVEL COM MOTOR 4 TEMPOS A GASOLINA, FORÇA CENTRÍFUGA DE 25 KN (2500 KGF), POTÊNCIA 5,5 CV - CHP DIURNO. AF_08/2015 | E171: CHOR - CUSTOS HORÁRIOS DE MÁQUINAS E EQUIPAMENTOS | G171: CHP | H171: 0.0942 | I171: 10.5 | J171: 0.98
E172: MO sem LS => | F172: 6.37 | G172: LS => | H172: 7.3 | I172: MO com LS => | J172: 13.67
E173: Valor do BDI => | F173: 5.18 | H173: Valor com BDI => | J173: 26.7
A175: 3.4 | B175: Código | C175: Banco | D175: Descrição | E175: Tipo | G175: Und | H175: Quant. | I175: Valor Unit | J175: Total
A176: Composição | B176: 100975 | C176: SINAPI | D176: CARGA, MANOBRA E DESCARGA DE SOLOS E MATERIAIS GRANULARES EM CAMINHÃO BASCULANTE 14 M³ - CARGA COM PÁ CARREGADEIRA (CAÇAMBA DE 1,7 A 2,8 M³ / 128 HP) E DESCARGA LIVRE (UNIDADE: M3). AF_07/2020 | E176: TRAN - TRANSPORTES, CARGAS E DESCARGAS | G176: m³ | H176: 1 | I176: 8.44 | J176: 8.44
A177: Composição Auxiliar | B177: 5942 | C177: SINAPI | D177: PÁ CARREGADEIRA SOBRE RODAS, POTÊNCIA LÍQUIDA 128 HP, CAPACIDADE DA CAÇAMBA 1,7 A 2,8 M3, PESO OPERACIONAL 11632 KG - CHI DIURNO. AF_06/2014 | E177: CHOR - CUSTOS HORÁRIOS DE MÁQUINAS E EQUIPAMENTOS | G177: CHI | H177: 0.0085 | I177: 70.19 | J177: 0.59
A178: Composição Auxiliar | B178: 5940 | C178: SINAPI | D178: PÁ CARREGADEIRA SOBRE RODAS, POTÊNCIA LÍQUIDA 128 HP, CAPACIDADE DA CAÇAMBA 1,7 A 2,8 M3, PESO OPERACIONAL 11632 KG - CHP DIURNO. AF_06/2014 | E178: CHOR - CUSTOS HORÁRIOS DE MÁQUINAS E EQUIPAMENTOS | G178: CHP | H178: 0.0083 | I178: 162.12 | J178: 1.34
A179: Composição Auxiliar | B179: 89877 | C179: SINAPI | D179: CAMINHÃO BASCULANTE 14 M3, COM CAVALO MECÂNICO DE CAPACIDADE MÁXIMA DE TRAÇÃO COMBINADO DE 36000 KG, POTÊNCIA 286 CV, INCLUSIVE SEMIREBOQUE COM CAÇAMBA METÁLICA - CHI DIURNO. AF_12/2014 | E179: CHOR - CUSTOS HORÁRIOS DE MÁQUINAS E EQUIPAMENTOS | G179: CHI | H179: 0.011 | I179: 86.78 | J179: 0.95
A180: Composição Auxiliar | B180: 89876 | C180: SINAPI | D180: CAMINHÃO BASCULANTE 14 M3, COM CAVALO MECÂNICO DE CAPACIDADE MÁXIMA DE TRAÇÃO COMBINADO DE 36000 KG, POTÊNCIA 286 CV, INCLUSIVE SEMIREBOQUE COM CAÇAMBA METÁLICA - CHP DIURNO. AF_12/2014 | E180: CHOR - CUSTOS HORÁRIOS DE MÁQUINAS E EQUIPAMENTOS | G180: CHP | H180: 0.0169 | I180: 329.02 | J180: 5.56
E181: MO sem LS => | F181: 0.43 | G181: LS => | H181: 0.51 | I181: MO com LS => | J181: 0.94
E182: Valor do BDI => | F182: 2.03 | H182: Valor com BDI => | J182: 10.47
A184: 4.1 | B184: Código | C184: Banco | D184: Descrição | E184: Tipo | G184: Und | H184: Quant. | I184: Valor Unit | J184: Total
A185: Composição | B185: 96619 | C185: SINAPI | D185: LASTRO DE CONCRETO MAGRO, APLICADO EM BLOCOS DE COROAMENTO OU SAPATAS, ESPESSURA DE 5 CM. AF_01/2024 | E185: FUES - FUNDAÇÕES E ESTRUTURAS | G185: m² | H185: 1 | I185: 38.25 | J185: 38.25
A186: Composição Auxiliar | B186: 88316 | C186: SINAPI | D186: SERVENTE COM ENCARGOS COMPLEMENTARES | E186: SEDI - SERVIÇOS DIVERSOS | G186: H | H186: 0.12265 | I186: 21.35 | J186: 2.61
A187: Composição Auxiliar | B187: 88309 | C187: SINAPI | D187: PEDREIRO COM ENCARGOS COMPLEMENTARES | E187: SEDI - SERVIÇOS DIVERSOS | G187: H | H187: 0.33905 | I187: 26.59 | J187: 9.01
A188: Composição Auxiliar | B188: 94968 | C188: SINAPI | D188: CONCRETO MAGRO PARA LASTRO, TRAÇO 1:4,5:4,5 (EM MASSA SECA DE CIMENTO/ AREIA MÉDIA/ BRITA 1) - PREPARO MECÂNICO COM BETONEIRA 600 L. AF_05/2021 | E188: FUES - FUNDAÇÕES E ESTRUTURAS | G188: m³ | H188: 0.069 | I188: 385.98 | J188: 26.63
E189: MO sem LS => | F189: 5.73 | G189: LS => | H189: 6.56 | I189: MO com LS => | J189: 12.29
E190: Valor do BDI => | F190: 9.21 | H190: Valor com BDI => | J190: 47.46
A192: 4.2 | B192: Código | C192: Banco | D192: Descrição | E192: Tipo | G192: Und | H192: Quant. | I192: Valor Unit | J192: Total
A193: Composição | B193: 104916 | C193: SINAPI | D193: ARMAÇÃO DE SAPATA ISOLADA, VIGA BALDRAME E SAPATA CORRIDA UTILIZANDO AÇO CA-60 DE 5 MM - MONTAGEM. AF_01/2024 | E193: FUES - FUNDAÇÕES E ESTRUTURAS | G193: KG | H193: 1 | I193: 18.26 | J193: 18.26
A194: Composição Auxiliar | B194: 88238 | C194: SINAPI | D194: AJUDANTE DE ARMADOR COM ENCARGOS COMPLEMENTARES | E194: SEDI - SERVIÇOS DIVERSOS | G194: H | H194: 0.064 | I194: 22.38 | J194: 1.43
A195: Composição Auxiliar | B195: 92800 | C195: SINAPI | D195: CORTE E DOBRA DE AÇO CA-60, DIÂMETRO DE 5,0 MM. AF_06/2022 | E195: FUES - FUNDAÇÕES E ESTRUTURAS | G195: KG | H195: 1 | I195: 11.63 | J195: 11.63
A196: Composição Auxiliar | B196: 88245 | C196: SINAPI | D196: ARMADOR COM ENCARGOS COMPLEMENTARES | E196: SEDI - SERVIÇOS DIVERSOS | G196: H | H196: 0.166 | I196: 26.4 | J196: 4.38
A197: Insumo | B197: 00043132 | C197: SINAPI | D197: ARAME RECOZIDO 16 BWG, D = 1,65 MM (0,016 KG/M) OU 18 BWG, D = 1,25 MM (0,01 KG/M) | E197: Material | G197: KG | H197: 0.025 | I197: 25.65 | J197: 0.64
A198: Insumo | B198: 00039017 | C198: SINAPI | D198: ESPACADOR / DISTANCIADOR CIRCULAR COM ENTRADA LATERAL, EM PLASTICO, PARA VERGALHAO *4,2 A 12,5* MM, COBRIMENTO 20 MM | E198: Material | G198: UN | H198: 0.819 | I198: 0.22 | J198: 0.18
E199: MO sem LS => | F199: 2.67 | G199: LS => | H199: 3.07 | I199: MO com LS => | J199: 5.74
E200: Valor do BDI => | F200: 4.39 | H200: Valor com BDI => | J200: 22.65
A202: 4.3 | B202: Código | C202: Banco | D202: Descrição | E202: Tipo | G202: Und | H202: Quant. | I202: Valor Unit | J202: Total
A203: Composição | B203: 104918 | C203: SINAPI | D203: ARMAÇÃO DE SAPATA ISOLADA, VIGA BALDRAME E SAPATA CORRIDA UTILIZANDO AÇO CA-50 DE 8 MM - MONTAGEM. AF_01/2024 | E203: FUES - FUNDAÇÕES E ESTRUTURAS | G203: KG | H203: 1 | I203: 16.29 | J203: 16.29
A204: Composição Auxiliar | B204: 88238 | C204: SINAPI | D204: AJUDANTE DE ARMADOR COM ENCARGOS COMPLEMENTARES | E204: SEDI - SERVIÇOS DIVERSOS | G204: H | H204: 0.039 | I204: 22.38 | J204: 0.87
A205: Composição Auxiliar | B205: 92802 | C205: SINAPI | D205: CORTE E DOBRA DE AÇO CA-50, DIÂMETRO DE 8,0 MM. AF_06/2022 | E205: FUES - FUNDAÇÕES E ESTRUTURAS | G205: KG | H205: 1 | I205: 11.98 | J205: 11.98
A206: Composição Auxiliar | B206: 88245 | C206: SINAPI | D206: ARMADOR COM ENCARGOS COMPLEMENTARES | E206: SEDI - SERVIÇOS DIVERSOS | G206: H | H206: 0.102 | I206: 26.4 | J206: 2.69
A207: Insumo | B207: 00043132 | C207: SINAPI | D207: ARAME RECOZIDO 16 BWG, D = 1,65 MM (0,016 KG/M) OU 18 BWG, D = 1,25 MM (0,01 KG/M) | E207: Material | G207: KG | H207: 0.025 | I207: 25.65 | J207: 0.64
A208: Insumo | B208: 00039017 | C208: SINAPI | D208: ESPACADOR / DISTANCIADOR CIRCULAR COM ENTRADA LATERAL, EM PLASTICO, PARA VERGALHAO *4,2 A 12,5* MM, COBRIMENTO 20 MM | E208: Material | G208: UN | H208: 0.503 | I208: 0.22 | J208: 0.11
E209: MO sem LS => | F209: 1.42 | G209: LS => | H209: 1.64 | I209: MO com LS => | J209: 3.06
E210: Valor do BDI => | F210: 3.92 | H210: Valor com BDI => | J210: 20.21
A212: 4.4 | B212: Código | C212: Banco | D212: Descrição | E212: Tipo | G212: Und | H212: Quant. | I212: Valor Unit | J212: Total
A213: Composição | B213: 104919 | C213: SINAPI | D213: ARMAÇÃO DE SAPATA ISOLADA, VIGA BALDRAME E SAPATA CORRIDA UTILIZANDO AÇO CA-50 DE 10 MM - MONTAGEM. AF_01/2024 | E213: FUES - FUNDAÇÕES E ESTRUTURAS | G213: KG | H213: 1 | I213: 14.65 | J213: 14.65
A214: Composição Auxiliar | B214: 92803 | C214: SINAPI | D214: CORTE E DOBRA DE AÇO CA-50, DIÂMETRO DE 10,0 MM. AF_06/2022 | E214: FUES - FUNDAÇÕES E ESTRUTURAS | G214: KG | H214: 1 | I214: 11.11 | J214: 11.11
A215: Composição Auxiliar | B215: 88245 | C215: SINAPI | D215: ARMADOR COM ENCARGOS COMPLEMENTARES | E215: SEDI - SERVIÇOS DIVERSOS | G215: H | H215: 0.081 | I215: 26.4 | J215: 2.13
A216: Composição Auxiliar | B216: 88238 | C216: SINAPI | D216: AJUDANTE DE ARMADOR COM ENCARGOS COMPLEMENTARES | E216: SEDI - SERVIÇOS DIVERSOS | G216: H | H216: 0.031 | I216: 22.38 | J216: 0.69
A217: Insumo | B217: 00043132 | C217: SINAPI | D217: ARAME RECOZIDO 16 BWG, D = 1,65 MM (0,016 KG/M) OU 18 BWG, D = 1,25 MM (0,01 KG/M) | E217: Material | G217: KG | H217: 0.025 | I217: 25.65 | J217: 0.64
A218: Insumo | B218: 00039017 | C218: SINAPI | D218: ESPACADOR / DISTANCIADOR CIRCULAR COM ENTRADA LATERAL, EM PLASTICO, PARA VERGALHAO *4,2 A 12,5* MM, COBRIMENTO 20 MM | E218: Material | G218: UN | H218: 0.399 | I218: 0.22 | J218: 0.08
E219: MO sem LS => | F219: 1.08 | G219: LS => | H219: 1.25 | I219: MO com LS => | J219: 2.33
E220: Valor do BDI => | F220: 3.52 | H220: Valor com BDI => | J220: 18.17
A222: 4.5 | B222: Código | C222: Banco | D222: Descrição | E222: Tipo | G222: Und | H222: Quant. | I222: Valor Unit | J222: Total
A223: Composição | B223: 104920 | C223: SINAPI | D223: ARMAÇÃO DE BLOCO, SAPATA ISOLADA, VIGA BALDRAME E SAPATA CORRIDA UTILIZANDO AÇO CA-50 DE 12,5 MM - MONTAGEM. AF_01/2024 | E223: FUES - FUNDAÇÕES E ESTRUTURAS | G223: KG | H223: 1 | I223: 12.46 | J223: 12.46
A224: Composição Auxiliar | B224: 88238 | C224: SINAPI | D224: AJUDANTE DE ARMADOR COM ENCARGOS COMPLEMENTARES | E224: SEDI - SERVIÇOS DIVERSOS | G224: H | H224: 0.025 | I224: 22.38 | J224: 0.55
... 4595 more rows

Sheet Curva ABC de Serviços
C1: Obra | D1: Bancos | E1: B.D.I. | H1: Encargos Sociais
C2: REFORMA DO MERCADO PÚBLICO MUNICIPAL DE SÃO MIGUEL DOS CAMPOS - AL | D2: SINAPI - 08/2025 - Alagoas SBC - 09/2025 - Alagoas SICRO3 - 07/2025 - Alagoas ORSE - 07/2025 - Sergipe | E2: 24,09% | H2: Não Desonerado: Horista: 114,41% Mensalista: 70,12%
A3: Curva ABC de Serviços
A4: Código | B4: Banco | C4: Descrição | D4: Tipo | E4: Und | F4: Quant. | G4: Valor Unit | H4: Total | I4: Peso (%) | J4: Peso Acumulado (%)
A5: 94216 | B5: SINAPI | C5: TELHAMENTO COM TELHA METÁLICA TERMOACÚSTICA E = 30 MM, COM ATÉ 2 ÁGUAS, INCLUSO IÇAMENTO. AF_07/2019 | D5: COBE - COBERTURA | E5: m² | F5: 7.246,29 | G5: 246,30 | H5: 1.784.761,22 | I5: 14,87 | J5: 14,87
A6: 506 | B6: Próprio | C6: ADMINISTRAÇÃO LOCAL / MANUTENÇÃO DO CANTEIRO DE OBRAS | E6: GLOBAL | F6: 1,0 | G6: 771.380,44 | H6: 771.380,44 | I6: 6,43 | J6: 21,30
A7: 104162 | B7: SINAPI | C7: PISO EM GRANILITE, MARMORITE OU GRANITINA EM AMBIENTES INTERNOS, COM ESPESSURA DE 8 MM, INCLUSO MISTURA EM BETONEIRA, COLOCAÇÃO DAS JUNTAS, APLICAÇÃO DO PISO, 4 POLIMENTOS COM POLITRIZ, ESTUCAMENTO, SELADOR E CERA. AF_06/2022 | D7: PISO - PISOS | E7: m² | F7: 5.989,3 | G7: 124,98 | H7: 748.542,71 | I7: 6,24 | J7: 27,54
A8: 4348 | B8: ORSE | C8: Estrutura Galpões em Pórticos Pré-Moldados de Concreto Armado, com Lanternim,montada e com telha de 6mm, inclusive fundação - Rev 05 - 09/2021 | D8: Estruturas Pre-Moldadas de Concreto | E8: m² | F8: 1.176,0 | G8: 561,82 | H8: 660.700,32 | I8: 5,51 | J8: 33,04
A9: 499 | B9: Próprio | C9: REVESTIMENTO CERÂMICO PARA PAREDES PLACAS ACETINADO 7x26cm NEUTAL GRAFITE, OU SIMILAR, FORNECIMENTO E INSTALAÇÃO | D9: Revestimentos Cerâmicos Externos | E9: m² | F9: 2.425,02 | G9: 265,03 | H9: 642.703,05 | I9: 5,36 | J9: 38,40
A10: 12710 | B10: ORSE | C10: Porta de enrolar, em perfil meia cana fechado, em chapa de aço galvanizado nº22 | D10: Esquadrias de Ferro | E10: m² | F10: 1.420,23 | G10: 442,20 | H10: 628.025,70 | I10: 5,23 | J10: 43,63
A11: 101750 | B11: SINAPI | C11: PISO CIMENTADO, TRAÇO 1:3 (CIMENTO E AREIA), ACABAMENTO RÚSTICO, ESPESSURA 4,0 CM, PREPARO MECÂNICO DA ARGAMASSA. AF_09/2020 | D11: PISO - PISOS | E11: m² | F11: 6.808,0 | G11: 64,34 | H11: 438.026,72 | I11: 3,65 | J11: 47,28
A12: 92580 | B12: SINAPI | C12: TRAMA DE AÇO COMPOSTA POR TERÇAS PARA TELHADOS DE ATÉ 2 ÁGUAS PARA TELHA ONDULADA DE FIBROCIMENTO, METÁLICA, PLÁSTICA OU TERMOACÚSTICA, INCLUSO TRANSPORTE VERTICAL. AF_07/2019 | D12: COBE - COBERTURA | E12: m² | F12: 7.246,29 | G12: 57,00 | H12: 413.038,53 | I12: 3,44 | J12: 50,73
A13: 100758 | B13: SINAPI | C13: PINTURA COM TINTA ALQUÍDICA DE ACABAMENTO (ESMALTE SINTÉTICO ACETINADO) APLICADA A ROLO OU PINCEL SOBRE SUPERFÍCIES METÁLICAS (EXCETO PERFIL) EXECUTADO EM OBRA (02 DEMÃOS). AF_01/2020 | D13: PINT - PINTURAS | E13: m² | F13: 5.652,86 | G13: 61,78 | H13: 349.233,69 | I13: 2,91 | J13: 53,64
A14: 10759 | B14: ORSE | C14: Bancada em granito cinza andorinha, e=2cm | D14: Conversão InfoWOrca | E14: m² | F14: 469,43 | G14: 688,60 | H14: 323.249,49 | I14: 2,69 | J14: 56,33
A15: 95241 | B15: SINAPI | C15: LASTRO DE CONCRETO MAGRO, APLICADO EM PISOS, LAJES SOBRE SOLO OU RADIERS, ESPESSURA DE 5 CM. AF_01/2024 | D15: FUES - FUNDAÇÕES E ESTRUTURAS | E15: m² | F15: 6.808,0 | G15: 43,85 | H15: 298.530,80 | I15: 2,49 | J15: 58,82
A16: 481 | B16: Próprio | C16: FONECIMENTO E INSTALAÇÃO DE ESTRUTURA METALICA EM METALON 50X30 MM, PARA FIXAÇÃO DE PLACA CIMENTICIA | D16: ESQV - ESQUADRIAS/FERRAGENS/VIDROS | E16: m² | F16: 1.564,62 | G16: 189,95 | H16: 297.199,56 | I16: 2,48 | J16: 61,30
A17: 95626 | B17: SINAPI | C17: APLICAÇÃO MANUAL DE TINTA LÁTEX ACRÍLICA EM PAREDE EXTERNAS DE CASAS, DUAS DEMÃOS. AF_03/2024 | D17: PINT - PINTURAS | E17: m² | F17: 14.183,03 | G17: 19,65 | H17: 278.696,53 | I17: 2,32 | J17: 63,62
A18: 96116 | B18: SINAPI | C18: FORRO EM RÉGUAS DE PVC, FRISADO, PARA AMBIENTES COMERCIAIS, INCLUSIVE ESTRUTURA BIDIRECIONAL DE FIXAÇÃO. AF_08/2023_PS | D18: REVE - REVESTIMENTO E TRATAMENTO DE SUPERFÍCIES | E18: m² | F18: 2.130,14 | G18: 98,97 | H18: 210.819,95 | I18: 1,76 | J18: 65,37
A19: 13135 | B19: ORSE | C19: Portão em chapa de ferro n.º 18(1,25mm), de correr, quadro em tubo de ferro galvanizado/inter horizontal de 2", inclusive trancas/ferrolho - Rev 01 | D19: Esquadrias de Ferro | E19: m² | F19: 170,0 | G19: 1.182,11 | H19: 200.958,70 | I19: 1,67 | J19: 67,05
A20: 7369 | B20: ORSE | C20: Concreto Armado fck=30,0MPa, usinado, bombeado, adensado e lançado, para uso Geral, com formas planas em compensado resinado 12mm (05 usos) | D20: Conversão InfoWOrca | E20: m³ | F20: 65,47 | G20: 3.045,39 | H20: 199.381,68 | I20: 1,66 | J20: 68,71
A21: 505 | B21: Próprio | C21: Projeto Executivo | E21: un | F21: 1,0 | G21: 187.094,77 | H21: 187.094,77 | I21: 1,56 | J21: 70,27
A22: 92336 | B22: SINAPI | C22: TUBO DE AÇO GALVANIZADO COM COSTURA, CLASSE MÉDIA, CONEXÃO RANHURADA, DN 65 (2 1/2"), INSTALADO EM PRUMADAS - FORNECIMENTO E INSTALAÇÃO. AF_10/2020 | D22: Instalações de Gás e Incêndio em Aço e Ferro Galvanizado | E22: M | F22: 1.220,0 | G22: 139,06 | H22: 169.653,20 | I22: 1,41 | J22: 71,68
A23: 88497 | B23: SINAPI | C23: EMASSAMENTO COM MASSA LÁTEX, APLICAÇÃO EM PAREDE, DUAS DEMÃOS, LIXAMENTO MANUAL. AF_04/2023 | D23: PINT - PINTURAS | E23: m² | F23: 7.985,03 | G23: 20,63 | H23: 164.731,16 | I23: 1,37 | J23: 73,06
A24: 12828 | B24: ORSE | C24: Placa cimentícia e =6mm, para fechamento da fachada (1 lado/face), juntas aparentes, fixada em estrutura metalica, exclusive esta (fornecimento e assentamento) | D24: Revestimentos em Laminados | E24: m² | F24: 1.564,62 | G24: 99,16 | H24: 155.147,71 | I24: 1,29 | J24: 74,35
A25: 031512 | B25: SBC | C25: ESTACA HELICE CONTINUA 30CM 40MPA LANC.MEC.BOMBEA.+FERRAGENS | D25: FUNDACOES INDIRETAS | E25: M | F25: 496,0 | G25: 299,41 | H25: 148.507,36 | I25: 1,24 | J25: 75,59
A26: 87273 | B26: SINAPI | C26: REVESTIMENTO CERÂMICO PARA PAREDES INTERNAS COM PLACAS TIPO ESMALTADA DE DIMENSÕES 33X45 CM APLICADAS NA ALTURA INTEIRA DAS PAREDES. AF_02/2023_PE | D26: REVE - REVESTIMENTO E TRATAMENTO DE SUPERFÍCIES | E26: m² | F26: 1.539,44 | G26: 82,20 | H26: 126.541,96 | I26: 1,05 | J26: 76,64
A27: 00010527 | B27: SINAPI | C27: LOCACAO DE ANDAIME METALICO TUBULAR DE ENCAIXE, TIPO DE TORRE, CADA PAINEL COM LARGURA DE 1 ATE 1,5 M E ALTURA DE *1,00* M, INCLUINDO DIAGONAL, BARRAS DE LIGACAO, SAPATAS OU RODIZIOS E DEMAIS ITENS NECESSARIOS A MONTAGEM (NAO INCLUI INSTALACAO) | D27: Equipamento | E27: MXMES | F27: 1.920,0 | G27: 54,60 | H27: 104.831,23 | I27: 0,87 | J27: 77,51
A28: 103328 | B28: SINAPI | C28: ALVENARIA DE VEDAÇÃO DE BLOCOS CERÂMICOS FURADOS NA HORIZONTAL DE 9X19X19 CM (ESPESSURA 9 CM) E ARGAMASSA DE ASSENTAMENTO COM PREPARO EM BETONEIRA. AF_12/2021 | D28: PARE - PAREDES/PAINEIS | E28: m² | F28: 897,41 | G28: 116,65 | H28: 104.682,87 | I28: 0,87 | J28: 78,39
A29: 9101 | B29: ORSE | C29: Calha em chapa de aluminio, desenvolvimento 85 cm | D29: Complementos | E29: m | F29: 542,5 | G29: 177,96 | H29: 96.543,30 | I29: 0,80 | J29: 79,19
A30: 98109 | B30: SINAPI | C30: CAIXA DE GORDURA ESPECIAL (CAPACIDADE: 312 L - PARA ATÉ 146 PESSOAS SERVIDAS NO PICO), RETANGULAR, EM ALVENARIA COM BLOCOS DE CONCRETO, DIMENSÕES INTERNAS = 0,4X1,2 M, ALTURA INTERNA = 1 M. AF_12/2020 | D30: INHI - INSTALAÇÕES HIDROS SANITÁRIAS | E30: UN | F30: 100,0 | G30: 963,28 | H30: 96.328,00 | I30: 0,80 | J30: 79,99
A31: 104951 | B31: SINAPI | C31: MASSA ÚNICA, EM ARGAMASSA TRAÇO 1:2:8, PREPARO MECÂNICO, APLICADA MANUALMENTE EM PAREDES INTERNAS DE AMBIENTES COM ÁREA MAIOR QUE 10M², E = 17,5MM, COM TALISCAS. AF_03/2024 | D31: REVE - REVESTIMENTO E TRATAMENTO DE SUPERFÍCIES | E31: m² | F31: 2.259,34 | G31: 38,90 | H31: 87.888,32 | I31: 0,73 | J31: 80,73
A32: 87547 | B32: SINAPI | C32: MASSA ÚNICA, EM ARGAMASSA TRAÇO 1:2:8, PREPARO MECÂNICO, APLICADA MANUALMENTE EM PAREDES INTERNAS DE AMBIENTES COM ÁREA ENTRE 5M² E 10M², E = 10MM, COM TALISCAS. AF_03/2024 | D32: REVE - REVESTIMENTO E TRATAMENTO DE SUPERFÍCIES | E32: m² | F32: 2.799,72 | G32: 30,82 | H32: 86.287,37 | I32: 0,72 | J32: 81,45
A33: 9077 | B33: ORSE | C33: Cumeeira termoacústica | D33: Telhamento | E33: m | F33: 443,68 | G33: 190,51 | H33: 84.525,47 | I33: 0,70 | J33: 82,15
A34: 86935 | B34: SINAPI | C34: CUBA DE EMBUTIR DE AÇO INOXIDÁVEL MÉDIA, INCLUSO VÁLVULA TIPO AMERICANA EM METAL CROMADO E SIFÃO FLEXÍVEL EM PVC - FORNECIMENTO E INSTALAÇÃO. AF_01/2020 | D34: INHI - INSTALAÇÕES HIDROS SANITÁRIAS | E34: UN | F34: 227,0 | G34: 366,18 | H34: 83.122,86 | I34: 0,69 | J34: 82,84
A35: 87263 | B35: SINAPI | C35: REVESTIMENTO CERÂMICO PARA PISO COM PLACAS TIPO PORCELANATO DE DIMENSÕES 60X60 CM APLICADA EM AMBIENTES DE ÁREA MAIOR QUE 10 M². AF_02/2023_PE | D35: PISO - PISOS | E35: m² | F35: 555,89 | G35: 146,24 | H35: 81.293,35 | I35: 0,68 | J35: 83,52
A36: 91926 | B36: SINAPI | C36: CABO DE COBRE FLEXÍVEL ISOLADO, 2,5 MM², ANTI-CHAMA 450/750 V, PARA CIRCUITOS TERMINAIS - FORNECIMENTO E INSTALAÇÃO. AF_03/2023 | D36: INEL - INSTALAÇÃO ELÉTRICA/ELETRIFICAÇÃO E ILUMINAÇÃO EXTERNA | E36: M | F36: 12.428,6 | G36: 6,34 | H36: 78.797,32 | I36: 0,66 | J36: 84,18
A37: 97633 | B37: SINAPI | C37: DEMOLIÇÃO DE REVESTIMENTO CERÂMICO, DE FORMA MANUAL, SEM REAPROVEITAMENTO. AF_09/2023 | D37: SERP - SERVIÇOS PRELIMINARES | E37: m² | F37: 2.799,72 | G37: 28,04 | H37: 78.504,14 | I37: 0,65 | J37: 84,83
A38: 92423 | B38: SINAPI | C38: MONTAGEM E DESMONTAGEM DE FÔRMA DE PILARES RETANGULARES E ESTRUTURAS SIMILARES, PÉ-DIREITO SIMPLES, EM CHAPA DE MADEIRA COMPENSADA RESINADA, 6 UTILIZAÇÕES. AF_09/2020 | D38: FUES - FUNDAÇÕES E ESTRUTURAS | E38: m² | F38: 588,49 | G38: 114,62 | H38: 67.452,72 | I38: 0,56 | J38: 85,39
A39: 98546 | B39: SINAPI | C39: IMPERMEABILIZAÇÃO DE SUPERFÍCIE COM MANTA ASFÁLTICA, UMA CAMADA, INCLUSIVE APLICAÇÃO DE PRIMER ASFÁLTICO, E=4MM. AF_09/2023 | D39: IMPE - IMPERMEABILIZAÇÕES E PROTEÇÕES DIVERSAS | E39: m² | F39: 406,84 | G39: 162,80 | H39: 66.233,55 | I39: 0,55 | J39: 85,95
A40: 104790 | B40: SINAPI | C40: DEMOLIÇÃO DE PISO DE CONCRETO SIMPLES, DE FORMA MECANIZADA COM MARTELETE, SEM REAPROVEITAMENTO. AF_09/2023 | D40: SERP - SERVIÇOS PRELIMINARES | E40: m³ | F40: 528,49 | G40: 121,33 | H40: 64.121,69 | I40: 0,53 | J40: 86,48
A41: 91996 | B41: SINAPI | C41: TOMADA MÉDIA DE EMBUTIR (1 MÓDULO), 2P+T 10 A, INCLUINDO SUPORTE E PLACA - FORNECIMENTO E INSTALAÇÃO. AF_03/2023 | D41: INEL - INSTALAÇÃO ELÉTRICA/ELETRIFICAÇÃO E ILUMINAÇÃO EXTERNA | E41: UN | F41: 1.088,0 | G41: 53,19 | H41: 57.870,72 | I41: 0,48 | J41: 86,96
A42: 96563 | B42: SINAPI | C42: SUPORTE PARA ELETROCALHA LISA OU PERFURADA EM AÇO GALVANIZADO, LARGURA 800 MM, EM PERFILADO COM COMPRIMENTO DE 85 CM FIXADO EM LAJE, POR METRO DE ELETROCALHA FIXADA. AF_09/2023 | D42: INHI - INSTALAÇÕES HIDROS SANITÁRIAS | E42: M | F42: 664,0 | G42: 84,21 | H42: 55.915,44 | I42: 0,47 | J42: 87,43
A43: 97236 | B43: SINAPI | C43: ELETROCALHA LISA OU PERFURADA EM AÇO GALVANIZADO, LARGURA 50MM E ALTURA 50MM, INCLUSIVE EMENDA E FIXAÇÃO - FORNECIMENTO E INSTALAÇÃO. AF_04/2023 | D43: Eletrocalhas | E43: M | F43: 498,0 | G43: 106,55 | H43: 53.061,90 | I43: 0,44 | J43: 87,87
A44: 500 | B44: Próprio | C44: FORNECIMENTO E INSTALAÇÃO DE PERGOLADO METALICO EM PERFIL "U" DE 5" | D44: ESQV - ESQUADRIAS/FERRAGENS/VIDROS | E44: m² | F44: 150,43 | G44: 350,52 | H44: 52.728,72 | I44: 0,44 | J44: 88,31
A45: I-25-0049 | B45: Próprio | C45: Estrutura em concreto pré-moldado para suporte de caixa d´água elevada em fibra de vidro 20.000l (h=8,50m). | D45: Equipamento | E45: Un | F45: 2,0 | G45: 25.686,63 | H45: 51.373,26 | I45: 0,43 | J45: 88,74
A46: 101959 | B46: SINAPI | C46: LAJE PRÉ-MOLDADA UNIDIRECIONAL COM VÃOS MAIORES QUE 3,0 M, BIAPOIADA, PARA PISO, ENCHIMENTO EM EPS, VIGOTA PROTENDIDA, ALTURA TOTAL DA LAJE "LT" = 12 CM (ENCHIMENTO+CAPA) = (8+4). AF_08/2025 | D46: Lajes Pré-Moldadas | E46: m² | F46: 475,91 | G46: 104,68 | H46: 49.818,25 | I46: 0,42 | J46: 89,15
A47: 96555 | B47: SINAPI | C47: CONCRETAGEM DE BLOCO DE COROAMENTO OU VIGA BALDRAME, FCK 30 MPA, COM USO DE JERICA - LANÇAMENTO, ADENSAMENTO E ACABAMENTO. AF_01/2024 | D47: FUES - FUNDAÇÕES E ESTRUTURAS | E47: m³ | F47: 51,52 | G47: 899,88 | H47: 46.361,81 | I47: 0,39 | J47: 89,54
A48: 89714 | B48: SINAPI | C48: TUBO PVC, SERIE NORMAL, ESGOTO PREDIAL, DN 100 MM, FORNECIDO E INSTALADO EM RAMAL DE DESCARGA OU RAMAL DE ESGOTO SANITÁRIO. AF_08/2022 | D48: INHI - INSTALAÇÕES HIDROS SANITÁRIAS | E48: M | F48: 900,0 | G48: 48,51 | H48: 43.659,00 | I48: 0,36 | J48: 89,90
A49: 86909 | B49: SINAPI | C49: TORNEIRA CROMADA TUBO MÓVEL, DE MESA, 1/2" OU 3/4", PARA PIA DE COZINHA, PADRÃO ALTO - FORNECIMENTO E INSTALAÇÃO. AF_01/2020 | D49: INHI - INSTALAÇÕES HIDROS SANITÁRIAS | E49: UN | F49: 227,0 | G49: 179,21 | H49: 40.680,67 | I49: 0,34 | J49: 90,24
A50: 91854 | B50: SINAPI | C50: ELETRODUTO FLEXÍVEL CORRUGADO, PVC, DN 25 MM (3/4"), PARA CIRCUITOS TERMINAIS, INSTALADO EM PAREDE - FORNECIMENTO E INSTALAÇÃO. AF_03/2023 | D50: INEL - INSTALAÇÃO ELÉTRICA/ELETRIFICAÇÃO E ILUMINAÇÃO EXTERNA | E50: M | F50: 2.866,53 | G50: 13,29 | H50: 38.096,18 | I50: 0,32 | J50: 90,56
A51: 87250 | B51: SINAPI | C51: REVESTIMENTO CERÂMICO PARA PISO COM PLACAS TIPO ESMALTADA DE DIMENSÕES 45X45 CM APLICADA EM AMBIENTES DE ÁREA ENTRE 5 M2 E 10 M2. AF_02/2023_PE | D51: PISO - PISOS | E51: m² | F51: 454,18 | G51: 77,46 | H51: 35.180,78 | I51: 0,29 | J51: 90,85
A52: 101565 | B52: SINAPI | C52: CABO DE COBRE FLEXÍVEL ISOLADO, 70 MM², 0,6/1,0 KV, PARA REDE AÉREA DE DISTRIBUIÇÃO DE ENERGIA ELÉTRICA DE BAIXA TENSÃO - FORNECIMENTO E INSTALAÇÃO. AF_07/2020 | D52: INEL - INSTALAÇÃO ELÉTRICA/ELETRIFICAÇÃO E ILUMINAÇÃO EXTERNA | E52: M | F52: 300,0 | G52: 113,10 | H52: 33.930,00 | I52: 0,28 | J52: 91,14
A53: 97914 | B53: SINAPI | C53: TRANSPORTE COM CAMINHÃO BASCULANTE DE 6 M³, EM VIA URBANA PAVIMENTADA, DMT ATÉ 30 KM (UNIDADE: M3XKM). AF_07/2020 | D53: Transporte, Carga e Descarga de Materiais | E53: M3XKM | F53: 9.063,51 | G53: 3,68 | H53: 33.353,71 | I53: 0,28 | J53: 91,41
A54: 97647 | B54: SINAPI | C54: REMOÇÃO DE TELHAS DE FIBROCIMENTO METÁLICA E CERÂMICA, DE FORMA MANUAL, SEM REAPROVEITAMENTO. AF_09/2023 | D54: SERP - SERVIÇOS PRELIMINARES | E54: m² | F54: 7.666,63 | G54: 4,35 | H54: 33.349,84 | I54: 0,28 | J54: 91,69
A55: 102621 | B55: SINAPI | C55: CAIXA D´ÁGUA EM POLIÉSTER REFORÇADO COM FIBRA DE VIDRO, 20000 LITROS - FORNECIMENTO E INSTALAÇÃO. AF_06/2021 | D55: Caixas de Água para Edificações | E55: UN | F55: 2,0 | G55: 16.031,65 | H55: 32.063,30 | I55: 0,27 | J55: 91,96
A56: 91940 | B56: SINAPI | C56: CAIXA RETANGULAR 4" X 2" MÉDIA (1,30 M DO PISO), PVC, INSTALADA EM PAREDE - FORNECIMENTO E INSTALAÇÃO. AF_03/2023 | D56: INEL - INSTALAÇÃO ELÉTRICA/ELETRIFICAÇÃO E ILUMINAÇÃO EXTERNA | E56: UN | F56: 1.380,0 | G56: 22,99 | H56: 31.726,20 | I56: 0,26 | J56: 92,22
A57: 102106 | B57: SINAPI | C57: TRANSFORMADOR DE DISTRIBUIÇÃO, 150 KVA, TRIFÁSICO, 60 HZ, CLASSE 15 KV, IMERSO EM ÓLEO MINERAL, INSTALAÇÃO EM POSTE (NÃO INCLUSO SUPORTE) - FORNECIMENTO E INSTALAÇÃO. AF_12/2020 | D57: INEL - INSTALAÇÃO ELÉTRICA/ELETRIFICAÇÃO E ILUMINAÇÃO EXTERNA | E57: UN | F57: 1,0 | G57: 30.815,05 | H57: 30.815,05 | I57: 0,26 | J57: 92,48
A58: 103669 | B58: SINAPI | C58: CONCRETAGEM DE PILARES, FCK = 25 MPA, COM USO DE BALDES - LANÇAMENTO, ADENSAMENTO E ACABAMENTO. AF_02/2022 | D58: FUES - FUNDAÇÕES E ESTRUTURAS | E58: m³ | F58: 25,08 | G58: 1.168,12 | H58: 29.296,44 | I58: 0,24 | J58: 92,72
A59: 89987 | B59: SINAPI | C59: REGISTRO DE GAVETA BRUTO, LATÃO, ROSCÁVEL, 3/4", COM ACABAMENTO E CANOPLA CROMADOS - FORNECIMENTO E INSTALAÇÃO. AF_08/2021 | D59: INHI - INSTALAÇÕES HIDROS SANITÁRIAS | E59: UN | F59: 227,0 | G59: 126,26 | H59: 28.661,02 | I59: 0,24 | J59: 92,96
A60: 98114 | B60: SINAPI | C60: TAMPA CIRCULAR PARA ESGOTO E DRENAGEM, EM FERRO FUNDIDO, DIÂMETRO INTERNO = 0,6 M. AF_12/2020 | D60: INHI - INSTALAÇÕES HIDROS SANITÁRIAS | E60: UN | F60: 38,0 | G60: 747,41 | H60: 28.401,58 | I60: 0,24 | J60: 93,20
A61: 97313 | B61: SINAPI | C61: TÊ HORIZONTAL 90º, PARA ELETROCALHA, LISA OU PERFURADA EM AÇO GALVANIZADO, LARGURA DE 50MM E ALTURA DE 50MM - FORNECIMENTO E INSTALAÇÃO. AF_04/2023 | D61: Eletrocalhas | E61: UN | F61: 191,0 | G61: 137,06 | H61: 26.178,46 | I61: 0,22 | J61: 93,42
A62: 96536 | B62: SINAPI | C62: FABRICAÇÃO, MONTAGEM E DESMONTAGEM DE FÔRMA PARA VIGA BALDRAME, EM MADEIRA SERRADA, E=25 MM, 4 UTILIZAÇÕES. AF_01/2024 | D62: FUES - FUNDAÇÕES E ESTRUTURAS | E62: m² | F62: 283,06 | G62: 91,31 | H62: 25.846,20 | I62: 0,22 | J62: 93,63
A63: 92984 | B63: SINAPI | C63: CABO DE COBRE FLEXÍVEL ISOLADO, 25 MM², ANTI-CHAMA 0,6/1,0 KV, PARA REDE ENTERRADA DE DISTRIBUIÇÃO DE ENERGIA ELÉTRICA - FORNECIMENTO E INSTALAÇÃO. AF_12/2021 | D63: INEL - INSTALAÇÃO ELÉTRICA/ELETRIFICAÇÃO E ILUMINAÇÃO EXTERNA | E63: M | F63: 600,0 | G63: 41,93 | H63: 25.158,00 | I63: 0,21 | J63: 93,84
A64: 98562 | B64: SINAPI | C64: IMPERMEABILIZAÇÃO DE SUPERFÍCIE COM ARGAMASSA DE CIMENTO E AREIA, COM ADITIVO IMPERMEABILIZANTE, E = 1,5CM. AF_09/2023 | D64: IMPE - IMPERMEABILIZAÇÕES E PROTEÇÕES DIVERSAS | E64: m² | F64: 406,84 | G64: 60,92 | H64: 24.784,69 | I64: 0,21 | J64: 94,05
A65: 104918 | B65: SINAPI | C65: ARMAÇÃO DE SAPATA ISOLADA, VIGA BALDRAME E SAPATA CORRIDA UTILIZANDO AÇO CA-50 DE 8 MM - MONTAGEM. AF_01/2024 | D65: FUES - FUNDAÇÕES E ESTRUTURAS | E65: KG | F65: 1.209,69 | G65: 20,21 | H65: 24.447,83 | I65: 0,20 | J65: 94,25
A66: 104108 | B66: SINAPI | C66: ARMAÇÃO DE PILAR OU VIGA DE ESTRUTURA DE CONCRETO ARMADO EMBUTIDA EM ALVENARIA DE VEDAÇÃO UTILIZANDO AÇO CA-50 DE 10,0 MM - MONTAGEM. AF_06/2022 | D66: FUES - FUNDAÇÕES E ESTRUTURAS | E66: KG | F66: 1.317,92 | G66: 18,26 | H66: 24.065,21 | I66: 0,20 | J66: 94,45
A67: 103682 | B67: SINAPI | C67: CONCRETAGEM DE VIGAS E LAJES, FCK=25 MPA, PARA QUALQUER TIPO DE LAJE COM BALDES EM EDIFICAÇÃO TÉRREA - LANÇAMENTO, ADENSAMENTO E ACABAMENTO. AF_02/2022 | D67: FUES - FUNDAÇÕES E ESTRUTURAS | E67: m³ | F67: 19,65 | G67: 1.189,87 | H67: 23.380,94 | I67: 0,19 | J67: 94,65
A68: 90447 | B68: SINAPI | C68: RASGO LINEAR MANUAL EM ALVENARIA, PARA ELETRODUTOS, DIÂMETROS MENORES OU IGUAIS A 40 MM. AF_09/2023 | D68: INHI - INSTALAÇÕES HIDROS SANITÁRIAS | E68: M | F68: 2.029,2 | G68: 11,30 | H68: 22.929,96 | I68: 0,19 | J68: 94,84
A69: 13319 | B69: ORSE | C69: Conjunto moto-bomba centrífuga, trifasica, motor 7.5 cv, 1 1/4", Schneider BC-22 R ou similar | D69: Aparelhos, Utensílios e Equipamentos Elétricos | E69: un | F69: 2,0 | G69: 11.086,21 | H69: 22.172,42 | I69: 0,18 | J69: 95,02
A70: 105118 | B70: SINAPI | C70: TAPUME EM CHAPA DE MADEIRA OSB. AF_03/2024 | D70: Instalações para Canteiros de Obras | E70: m² | F70: 260,0 | G70: 84,26 | H70: 21.907,60 | I70: 0,18 | J70: 95,21
A71: 101563 | B71: SINAPI | C71: CABO DE COBRE FLEXÍVEL ISOLADO, 35 MM², 0,6/1,0 KV, PARA REDE AÉREA DE DISTRIBUIÇÃO DE ENERGIA ELÉTRICA DE BAIXA TENSÃO - FORNECIMENTO E INSTALAÇÃO. AF_07/2020 | D71: INEL - INSTALAÇÃO ELÉTRICA/ELETRIFICAÇÃO E ILUMINAÇÃO EXTERNA | E71: M | F71: 400,0 | G71: 54,72 | H71: 21.888,00 | I71: 0,18 | J71: 95,39
A72: 104111 | B72: SINAPI | C72: ARMAÇÃO DE PILAR OU VIGA DE ESTRUTURA DE CONCRETO ARMADO EMBUTIDA EM ALVENARIA DE VEDAÇÃO UTILIZANDO AÇO CA-60 DE 5,0 MM - MONTAGEM. AF_06/2022 | D72: FUES - FUNDAÇÕES E ESTRUTURAS | E72: KG | F72: 803,52 | G72: 27,07 | H72: 21.751,28 | I72: 0,18 | J72: 95,57
A73: 89712 | B73: SINAPI | C73: TUBO PVC, SERIE NORMAL, ESGOTO PREDIAL, DN 50 MM, FORNECIDO E INSTALADO EM RAMAL DE DESCARGA OU RAMAL DE ESGOTO SANITÁRIO. AF_08/2022 | D73: INHI - INSTALAÇÕES HIDROS SANITÁRIAS | E73: M | F73: 585,0 | G73: 34,83 | H73: 20.375,55 | I73: 0,17 | J73: 95,74
A74: 100701 | B74: SINAPI | C74: PORTA DE FERRO, DE ABRIR, TIPO GRADE COM CHAPA, COM GUARNIÇÕES. AF_12/2019 | D74: ESQV - ESQUADRIAS/FERRAGENS/VIDROS | E74: m² | F74: 22,5 | G74: 864,73 | H74: 19.456,42 | I74: 0,16 | J74: 95,90
A75: 99268 | B75: SINAPI | C75: POÇO DE INSPEÇÃO CIRCULAR PARA DRENAGEM, EM CONCRETO PRÉ-MOLDADO, DIÂMETRO INTERNO = 0,60 M, PROFUNDIDADE = 0,90 M, EXCLUINDO TAMPÃO. AF_12/2020 | D75: DROP - DRENAGEM/OBRAS DE CONTENÇÃO / POÇOS DE VISITA E CAIXAS | E75: UN | F75: 38,0 | G75: 500,50 | H75: 19.019,00 | I75: 0,16 | J75: 96,06
A76: 97237 | B76: SINAPI | C76: ELETROCALHA LISA OU PERFURADA EM AÇO GALVANIZADO, LARGURA 75MM E ALTURA 50MM, INCLUSIVE EMENDA E FIXAÇÃO - FORNECIMENTO E INSTALAÇÃO. AF_04/2023 | D76: Eletrocalhas | E76: M | F76: 166,0 | G76: 108,10 | H76: 17.944,60 | I76: 0,15 | J76: 96,21
A77: 91852 | B77: SINAPI | C77: ELETRODUTO FLEXÍVEL CORRUGADO, PVC, DN 20 MM (1/2"), PARA CIRCUITOS TERMINAIS, INSTALADO EM PAREDE - FORNECIMENTO E INSTALAÇÃO. AF_03/2023 | D77: INEL - INSTALAÇÃO ELÉTRICA/ELETRIFICAÇÃO E ILUMINAÇÃO EXTERNA | E77: M | F77: 1.352,05 | G77: 12,30 | H77: 16.630,21 | I77: 0,14 | J77: 96,35
A78: 98557 | B78: SINAPI | C78: IMPERMEABILIZAÇÃO DE SUPERFÍCIE COM EMULSÃO ASFÁLTICA, 2 DEMÃOS. AF_09/2023 | D78: IMPE - IMPERMEABILIZAÇÕES E PROTEÇÕES DIVERSAS | E78: m² | F78: 271,82 | G78: 59,72 | H78: 16.233,09 | I78: 0,14 | J78: 96,48
A79: 99814 | B79: SINAPI | C79: LIMPEZA DE SUPERFÍCIE COM JATO DE ALTA PRESSÃO. AF_04/2019 | D79: Limpeza de Obra | E79: m² | F79: 6.507,0 | G79: 2,44 | H79: 15.877,08 | I79: 0,13 | J79: 96,62
A80: 105036 | B80: SINAPI | C80: VERGA PRÉ-FABRICADA COM ATÉ 1,5 M DE VÃO, ESPESSURA DE *15* CM. AF_03/2024 | D80: FUES - FUNDAÇÕES E ESTRUTURAS | E80: M | F80: 267,6 | G80: 58,52 | H80: 15.659,95 | I80: 0,13 | J80: 96,75
A81: 89356 | B81: SINAPI | C81: TUBO, PVC, SOLDÁVEL, DE 25MM, INSTALADO EM RAMAL OU SUB-RAMAL DE ÁGUA - FORNECIMENTO E INSTALAÇÃO. AF_06/2022 | D81: INHI - INSTALAÇÕES HIDROS SANITÁRIAS | E81: M | F81: 500,0 | G81: 30,82 | H81: 15.410,00 | I81: 0,13 | J81: 96,88
A82: 91924 | B82: SINAPI | C82: CABO DE COBRE FLEXÍVEL ISOLADO, 1,5 MM², ANTI-CHAMA 450/750 V, PARA CIRCUITOS TERMINAIS - FORNECIMENTO E INSTALAÇÃO. AF_03/2023 | D82: INEL - INSTALAÇÃO ELÉTRICA/ELETRIFICAÇÃO E ILUMINAÇÃO EXTERNA | E82: M | F82: 3.221,8 | G82: 4,33 | H82: 13.950,39 | I82: 0,12 | J82: 96,99
A83: 100981 | B83: SINAPI | C83: CARGA, MANOBRA E DESCARGA DE ENTULHO EM CAMINHÃO BASCULANTE 6 M³ - CARGA COM ESCAVADEIRA HIDRÁULICA (CAÇAMBA DE 0,80 M³ / 111 HP) E DESCARGA LIVRE (UNIDADE: M3). AF_07/2020 | D83: Transporte, Carga e Descarga de Materiais | E83: m³ | F83: 1.208,47 | G83: 11,54 | H83: 13.945,74 | I83: 0,12 | J83: 97,11
A84: 4654 | B84: ORSE | C84: Locação de container - Almoxarifado sem banheiro - 6,00 x 2,40m - Rev 02_02/2022 | D84: Mobilização / Instalações Provisórias / Desmobilização | E84: mês | F84: 14,0 | G84: 992,72 | H84: 13.898,08 | I84: 0,12 | J84: 97,22
A85: 99059 | B85: SINAPI | C85: LOCAÇÃO CONVENCIONAL DE OBRA, UTILIZANDO GABARITO DE TÁBUAS CORRIDAS PONTALETADAS A CADA 2,00M - 2 UTILIZAÇÕES. AF_03/2024 | D85: SERT - SERVIÇOS TÉCNICOS | E85: M | F85: 181,74 | G85: 74,57 | H85: 13.552,35 | I85: 0,11 | J85: 97,34
A86: 92761 | B86: SINAPI | C86: ARMAÇÃO DE PILAR OU VIGA DE ESTRUTURA CONVENCIONAL DE CONCRETO ARMADO UTILIZANDO AÇO CA-50 DE 8,0 MM - MONTAGEM. AF_06/2022 | D86: FUES - FUNDAÇÕES E ESTRUTURAS | E86: KG | F86: 690,17 | G86: 17,94 | H86: 12.381,64 | I86: 0,10 | J86: 97,44
A87: 87879 | B87: SINAPI | C87: CHAPISCO APLICADO EM ALVENARIAS E ESTRUTURAS DE CONCRETO INTERNAS, COM COLHER DE PEDREIRO. ARGAMASSA TRAÇO 1:3 COM PREPARO EM BETONEIRA 400L. AF_10/2022 | D87: REVE - REVESTIMENTO E TRATAMENTO DE SUPERFÍCIES | E87: m² | F87: 2.259,34 | G87: 5,33 | H87: 12.042,28 | I87: 0,10 | J87: 97,54
A88: 96765 | B88: SINAPI | C88: ABRIGO PARA HIDRANTE, 90X60X17CM, COM REGISTRO GLOBO ANGULAR 45 GRAUS 2 1/2", ADAPTADOR STORZ 2 1/2", MANGUEIRA DE INCÊNDIO 20M, REDUÇÃO 2 1/2" X 1 1/2" E ESGUICHO EM LATÃO 1 1/2" - FORNECIMENTO E INSTALAÇÃO. AF_10/2020 | D88: Instalações de Gás e Incêndio em Aço e Ferro Galvanizado | E88: UN | F88: 5,0 | G88: 2.371,94 | H88: 11.859,70 | I88: 0,10 | J88: 97,64
A89: 104919 | B89: SINAPI | C89: ARMAÇÃO DE SAPATA ISOLADA, VIGA BALDRAME E SAPATA CORRIDA UTILIZANDO AÇO CA-50 DE 10 MM - MONTAGEM. AF_01/2024 | D89: FUES - FUNDAÇÕES E ESTRUTURAS | E89: KG | F89: 632,79 | G89: 18,17 | H89: 11.497,79 | I89: 0,10 | J89: 97,73
A90: 97314 | B90: SINAPI | C90: TÊ HORIZONTAL 90º, PARA ELETROCALHA, LISA OU PERFURADA EM AÇO GALVANIZADO, LARGURA DE 75MM E ALTURA DE 50MM - FORNECIMENTO E INSTALAÇÃO. AF_04/2023 | D90: Eletrocalhas | E90: UN | F90: 79,0 | G90: 141,72 | H90: 11.195,88 | I90: 0,09 | J90: 97,83
A91: 91953 | B91: SINAPI | C91: INTERRUPTOR SIMPLES (1 MÓDULO), 10A/250V, INCLUINDO SUPORTE E PLACA - FORNECIMENTO E INSTALAÇÃO. AF_03/2023 | D91: Instalações Elétricas - Eletrodutos Embutidos, Cabos, Caixas, Tomadas e Interruptores | E91: UN | F91: 237,0 | G91: 45,60 | H91: 10.807,20 | I91: 0,09 | J91: 97,92
A92: 104916 | B92: SINAPI | C92: ARMAÇÃO DE SAPATA ISOLADA, VIGA BALDRAME E SAPATA CORRIDA UTILIZANDO AÇO CA-60 DE 5 MM - MONTAGEM. AF_01/2024 | D92: FUES - FUNDAÇÕES E ESTRUTURAS | E92: KG | F92: 460,54 | G92: 22,65 | H92: 10.431,23 | I92: 0,09 | J92: 98,00
A93: 90456 | B93: SINAPI | C93: QUEBRA EM ALVENARIA PARA INSTALAÇÃO DE CAIXA DE TOMADA (4X4 OU 4X2). AF_09/2023 | D93: INHI - INSTALAÇÕES HIDROS SANITÁRIAS | E93: UN | F93: 1.380,0 | G93: 7,48 | H93: 10.322,40 | I93: 0,09 | J93: 98,09
A94: 103782 | B94: SINAPI | C94: LUMINÁRIA TIPO PLAFON CIRCULAR, DE SOBREPOR, COM LED DE 12/13 W - FORNECIMENTO E INSTALAÇÃO. AF_09/2024 | D94: INEL - INSTALAÇÃO ELÉTRICA/ELETRIFICAÇÃO E ILUMINAÇÃO EXTERNA | E94: UN | F94: 247,0 | G94: 40,77 | H94: 10.070,19 | I94: 0,08 | J94: 98,17
A95: 105941 | B95: SINAPI | C95: REVESTIMENTO NÃO ADERIDO DE PAREDES EXTERNAS COM PLACAS DE GRANITO DE ÁREA MAIOR QUE 10000 CM2, FIXADAS COM INSERTE METÁLICO. AF_03/2025 | D95: Fachadas com Placas Cerâmicas e Granito - Insertadas | E95: m² | F95: 182,06 | G95: 52,19 | H95: 9.501,71 | I95: 0,08 | J95: 98,25
A96: 97064 | B96: SINAPI | C96: MONTAGEM E DESMONTAGEM DE ANDAIME TUBULAR TIPO "TORRE" (EXCLUSIVE ANDAIME E LIMPEZA). AF_03/2024 | D96: Equipamentos de Proteção Coletiva | E96: M | F96: 320,0 | G96: 28,54 | H96: 9.132,80 | I96: 0,08 | J96: 98,33
A97: 89797 | B97: SINAPI | C97: JUNÇÃO SIMPLES, PVC, SERIE NORMAL, ESGOTO PREDIAL, DN 100 X 100 MM, JUNTA ELÁSTICA, FORNECIDO E INSTALADO EM RAMAL DE DESCARGA OU RAMAL DE ESGOTO SANITÁRIO. AF_08/2022 | D97: INHI - INSTALAÇÕES HIDROS SANITÁRIAS | E97: UN | F97: 140,0 | G97: 64,91 | H97: 9.087,40 | I97: 0,08 | J97: 98,41
A98: 13535 | B98: ORSE | C98: Montagem de acessórios para subestação transformadora em poste com elo fusível 3H, em poste com 11 m | D98: Subestação Transformadora em Poste | E98: un | F98: 1,0 | G98: 9.043,24 | H98: 9.043,24 | I98: 0,08 | J98: 98,48
A99: 91936 | B99: SINAPI | C99: CAIXA OCTOGONAL 4" X 4", PVC, INSTALADA EM LAJE - FORNECIMENTO E INSTALAÇÃO. AF_03/2023 | D99: INEL - INSTALAÇÃO ELÉTRICA/ELETRIFICAÇÃO E ILUMINAÇÃO EXTERNA | E99: UN | F99: 379,0 | G99: 21,14 | H99: 8.012,06 | I99: 0,07 | J99: 98,55
A100: 89512 | B100: SINAPI | C100: TUBO PVC, SÉRIE R, ÁGUA PLUVIAL, DN 100 MM, FORNECIDO E INSTALADO EM RAMAL DE ENCAMINHAMENTO. AF_06/2022 | D100: INHI - INSTALAÇÕES HIDROS SANITÁRIAS | E100: M | F100: 125,0 | G100: 62,02 | H100: 7.752,50 | I100: 0,06 | J100: 98,61
A101: 89731 | B101: SINAPI | C101: JOELHO 90 GRAUS, PVC, SERIE NORMAL, ESGOTO PREDIAL, DN 50 MM, JUNTA ELÁSTICA, FORNECIDO E INSTALADO EM RAMAL DE DESCARGA OU RAMAL DE ESGOTO SANITÁRIO. AF_08/2022 | D101: INHI - INSTALAÇÕES HIDROS SANITÁRIAS | E101: UN | F101: 390,0 | G101: 19,44 | H101: 7.581,60 | I101: 0,06 | J101: 98,68
A102: 2935 | B102: ORSE | C102: Poste de concreto duplo T (DT) 10/1000 - fornecimento | D102: Fornecimento de Materiais para Redes de Energia Elétrica e Iluminação | E102: un | F102: 2,0 | G102: 3.548,97 | H102: 7.097,94 | I102: 0,06 | J102: 98,73
A103: 96619 | B103: SINAPI | C103: LASTRO DE CONCRETO MAGRO, APLICADO EM BLOCOS DE COROAMENTO OU SAPATAS, ESPESSURA DE 5 CM. AF_01/2024 | D103: FUES - FUNDAÇÕES E ESTRUTURAS | E103: m² | F103: 144,53 | G103: 47,46 | H103: 6.859,39 | I103: 0,06 | J103: 98,79
A104: 96523 | B104: SINAPI | C104: ESCAVAÇÃO MANUAL PARA BLOCO DE COROAMENTO OU SAPATA (INCLUINDO ESCAVAÇÃO PARA COLOCAÇÃO DE FÔRMAS). AF_01/2024 | D104: MOVT - MOVIMENTO DE TERRA | E104: m³ | F104: 58,7 | G104: 114,68 | H104: 6.731,71 | I104: 0,06 | J104: 98,85
A105: 104328 | B105: SINAPI | C105: CAIXA SIFONADA, COM GRELHA QUADRADA, PVC, DN 150 X 150 X 50 MM, JUNTA SOLDÁVEL, FORNECIDA E INSTALADA EM RAMAL DE DESCARGA OU EM RAMAL DE ESGOTO SANITÁRIO. AF_08/2022 | D105: INHI - INSTALAÇÕES HIDROS SANITÁRIAS | E105: UN | F105: 76,0 | G105: 79,85 | H105: 6.068,60 | I105: 0,05 | J105: 98,90
A106: 101560 | B106: SINAPI | C106: CABO DE COBRE FLEXÍVEL ISOLADO, 10 MM², 0,6/1,0 KV, PARA REDE AÉREA DE DISTRIBUIÇÃO DE ENERGIA ELÉTRICA DE BAIXA TENSÃO - FORNECIMENTO E INSTALAÇÃO. AF_07/2020 | D106: INEL - INSTALAÇÃO ELÉTRICA/ELETRIFICAÇÃO E ILUMINAÇÃO EXTERNA | E106: M | F106: 360,0 | G106: 15,75 | H106: 5.670,00 | I106: 0,05 | J106: 98,95
A107: 101908 | B107: SINAPI | C107: EXTINTOR DE INCÊNDIO PORTÁTIL COM CARGA DE PQS DE 4 KG, CLASSE BC - FORNECIMENTO E INSTALAÇÃO. AF_10/2020_PE | D107: Instalações de Gás e Incêndio em Aço e Ferro Galvanizado | E107: UN | F107: 16,0 | G107: 323,04 | H107: 5.168,64 | I107: 0,04 | J107: 98,99
A108: 89357 | B108: SINAPI | C108: TUBO, PVC, SOLDÁVEL, DE 32MM, INSTALADO EM RAMAL OU SUB-RAMAL DE ÁGUA - FORNECIMENTO E INSTALAÇÃO. AF_06/2022 | D108: INHI - INSTALAÇÕES HIDROS SANITÁRIAS | E108: M | F108: 100,0 | G108: 42,16 | H108: 4.216,00 | I108: 0,04 | J108: 99,02
A109: 100606 | B109: SINAPI | C109: ASSENTAMENTO DE POSTE DE CONCRETO COM COMPRIMENTO NOMINAL DE 10 M, CARGA NOMINAL DE 1000 DAN, ENGASTAMENTO BASE CONCRETADA COM 1 M DE CONCRETO E 0,6 M DE SOLO (NÃO INCLUI FORNECIMENTO). AF_04/2025 | D109: INEL - INSTALAÇÃO ELÉTRICA/ELETRIFICAÇÃO E ILUMINAÇÃO EXTERNA | E109: UN | F109: 2,0 | G109: 2.086,83 | H109: 4.173,66 | I109: 0,03 | J109: 99,06
A110: 97253 | B110: SINAPI | C110: REDUÇÃO PARA ELETROCALHA, LISA OU PERFURADA EM AÇO GALVANIZADO, 75X50MM E ALTURA 50MM - FORNECIMENTO E INSTALAÇÃO. AF_04/2023 | D110: Eletrocalhas | E110: UN | F110: 47,0 | G110: 88,24 | H110: 4.147,28 | I110: 0,03 | J110: 99,09
A111: 100910 | B111: SINAPI | C111: LUMINÁRIA TIPO CALHA, DE SOBREPOR, COM 2 LÂMPADAS TUBULARES LED DE 18 W, SEM REATOR - FORNECIMENTO E INSTALAÇÃO. AF_09/2024 | D111: Iluminação Predial e Monitoramento | E111: UN | F111: 74,0 | G111: 54,93 | H111: 4.064,82 | I111: 0,03 | J111: 99,13
A112: 89732 | B112: SINAPI | C112: JOELHO 45 GRAUS, PVC, SERIE NORMAL, ESGOTO PREDIAL, DN 50 MM, JUNTA ELÁSTICA, FORNECIDO E INSTALADO EM RAMAL DE DESCARGA OU RAMAL DE ESGOTO SANITÁRIO. AF_08/2022 | D112: INHI - INSTALAÇÕES HIDROS SANITÁRIAS | E112: UN | F112: 195,0 | G112: 20,33 | H112: 3.964,35 | I112: 0,03 | J112: 99,16
A113: 106025 | B113: SINAPI | C113: QUADRO DE DISTRIBUIÇÃO DE ENERGIA EM CHAPA DE AÇO GALVANIZADO, DE SOBREPOR, COM BARRAMENTO TRIFÁSICO, PARA 36 DISJUNTORES DIN 100A - FORNECIMENTO E INSTALAÇÃO. AF_07/2025 | D113: Instalações Elétricas - Quadros, Cabos, Disjuntores, Contatores e Barramentos Blindados | E113: UN | F113: 3,0 | G113: 1.219,28 | H113: 3.657,84 | I113: 0,03 | J113: 99,19
A114: 104793 | B114: SINAPI | C114: REMOÇÃO DE CABOS ELÉTRICOS, COM SEÇÃO MAIOR QUE 2,5 MM² E MENOR QUE 10 MM², DE FORMA MANUAL, SEM REAPROVEITAMENTO. AF_09/2023 | D114: SERP - SERVIÇOS PRELIMINARES | E114: M | F114: 5.220,8 | G114: 0,70 | H114: 3.654,56 | I114: 0,03 | J114: 99,22
A115: 103689 | B115: SINAPI | C115: FORNECIMENTO E INSTALAÇÃO DE PLACA DE OBRA COM CHAPA GALVANIZADA E ESTRUTURA DE MADEIRA. AF_03/2022_PS | D115: Sinalização Vertical Viária | E115: m² | F115: 6,0 | G115: 577,15 | H115: 3.462,90 | I115: 0,03 | J115: 99,25
A116: 86885 | B116: SINAPI | C116: ENGATE FLEXÍVEL EM PLÁSTICO BRANCO, 1/2" X 40CM - FORNECIMENTO E INSTALAÇÃO. AF_01/2020 | D116: INHI - INSTALAÇÕES HIDROS SANITÁRIAS | E116: UN | F116: 227,0 | G116: 14,81 | H116: 3.361,87 | I116: 0,03 | J116: 99,28
A117: 90373 | B117: SINAPI | C117: JOELHO 90 GRAUS COM BUCHA DE LATÃO, PVC, SOLDÁVEL, DN 25MM, X 1/2 INSTALADO EM RAMAL OU SUB-RAMAL DE ÁGUA - FORNECIMENTO E INSTALAÇÃO. AF_06/2022 | D117: INHI - INSTALAÇÕES HIDROS SANITÁRIAS | E117: UN | F117: 195,0 | G117: 16,49 | H117: 3.215,55 | I117: 0,03 | J117: 99,31
A118: 1510 | B118: ORSE | C118: Fornecimento e instalação de adaptador storz para engate rápido 2 1/2" x 2 1/2" com tampão e corrente (incêndio) | D118: Equipamentos para Combate a Incêndio | E118: un | F118: 5,0 | G118: 633,21 | H118: 3.166,05 | I118: 0,03 | J118: 99,33
A119: 11381 | B119: ORSE | C119: Quadro de medição indireta para transformadores de até 225 kva | D119: Conversão InfoWOrca | E119: un | F119: 1,0 | G119: 3.144,49 | H119: 3.144,49 | I119: 0,03 | J119: 99,36
A120: 104803 | B120: SINAPI | C120: REMOÇÃO CALHAS E RUFOS, DE FORMA MANUAL, SEM REAPROVEITAMENTO. AF_09/2023 | D120: SERP - SERVIÇOS PRELIMINARES | E120: M | F120: 542,5 | G120: 5,58 | H120: 3.027,15 | I120: 0,03 | J120: 99,38
A121: 91870 | B121: SINAPI | C121: ELETRODUTO RÍGIDO ROSCÁVEL, PVC, DN 20 MM (1/2"), PARA CIRCUITOS TERMINAIS, INSTALADO EM PAREDE - FORNECIMENTO E INSTALAÇÃO. AF_03/2023 | D121: INEL - INSTALAÇÃO ELÉTRICA/ELETRIFICAÇÃO E ILUMINAÇÃO EXTERNA | E121: M | F121: 169,1 | G121: 17,47 | H121: 2.954,17 | I121: 0,02 | J121: 99,41
A122: 96527 | B122: SINAPI | C122: ESCAVAÇÃO MANUAL PARA VIGA BALDRAME OU SAPATA CORRIDA (INCLUINDO ESCAVAÇÃO PARA COLOCAÇÃO DE FÔRMAS). AF_01/2024 | D122: MOVT - MOVIMENTO DE TERRA | E122: m³ | F122: 23,15 | G122: 126,23 | H122: 2.922,22 | I122: 0,02 | J122: 99,43
A123: 89585 | B123: SINAPI | C123: JOELHO 45 GRAUS, PVC, SERIE R, ÁGUA PLUVIAL, DN 100 MM, JUNTA ELÁSTICA, FORNECIDO E INSTALADO EM CONDUTORES VERTICAIS DE ÁGUAS PLUVIAIS. AF_06/2022 | D123: INHI - INSTALAÇÕES HIDROS SANITÁRIAS | E123: UN | F123: 50,0 | G123: 56,99 | H123: 2.849,50 | I123: 0,02 | J123: 99,46
A124: 12136 | B124: ORSE | C124: Central de alarme de incendio com sistema de 04 laços para até 396 dispositivos, marca JFL, modelo Vulcano - 400 ou similar | D124: Equipamentos para Combate a Incêndio | E124: un | F124: 1,0 | G124: 2.791,25 | H124: 2.791,25 | I124: 0,02 | J124: 99,48
A125: 97250 | B125: SINAPI | C125: EMENDA PARA ELETROCALHA, LISA OU PERFURADA EM AÇO GALVANIZADO, LARGURA 75MM E ALTURA 50MM - FORNECIMENTO E INSTALAÇÃO. AF_04/2023 | D125: Eletrocalhas | E125: UN | F125: 29,0 | G125: 89,40 | H125: 2.592,60 | I125: 0,02 | J125: 99,50
A126: 97640 | B126: SINAPI | C126: REMOÇÃO DE FORROS DE DRYWALL, PVC E FIBROMINERAL, DE FORMA MANUAL, SEM REAPROVEITAMENTO. AF_09/2023 | D126: SERP - SERVIÇOS PRELIMINARES | E126: m² | F126: 1.042,8 | G126: 2,30 | H126: 2.398,44 | I126: 0,02 | J126: 99,52
A127: 89362 | B127: SINAPI | C127: JOELHO 90 GRAUS, PVC, SOLDÁVEL, DN 25MM, INSTALADO EM RAMAL OU SUB-RAMAL DE ÁGUA - FORNECIMENTO E INSTALAÇÃO. AF_06/2022 | D127: INHI - INSTALAÇÕES HIDROS SANITÁRIAS | E127: UN | F127: 195,0 | G127: 12,06 | H127: 2.351,70 | I127: 0,02 | J127: 99,54
A128: 101905 | B128: SINAPI | C128: EXTINTOR DE INCÊNDIO PORTÁTIL COM CARGA DE ÁGUA PRESSURIZADA DE 10 L, CLASSE A - FORNECIMENTO E INSTALAÇÃO. AF_10/2020_PE | D128: Instalações de Gás e Incêndio em Aço e Ferro Galvanizado | E128: UN | F128: 7,0 | G128: 332,98 | H128: 2.330,86 | I128: 0,02 | J128: 99,56
A129: 94962 | B129: SINAPI | C129: CONCRETO MAGRO PARA LASTRO, TRAÇO 1:4,5:4,5 (EM MASSA SECA DE CIMENTO/ AREIA MÉDIA/ BRITA 1) - PREPARO MECÂNICO COM BETONEIRA 400 L. AF_05/2021 | D129: FUES - FUNDAÇÕES E ESTRUTURAS | E129: m³ | F129: 4,77 | G129: 482,35 | H129: 2.300,80 | I129: 0,02 | J129: 99,58
A130: 99625 | B130: SINAPI | C130: VÁLVULA DE RETENÇÃO HORIZONTAL, DE BRONZE, ROSCÁVEL, 3" - FORNECIMENTO E INSTALAÇÃO. AF_08/2021 | D130: Válvulas e Registros para Sistemas Prediais | E130: UN | F130: 2,0 | G130: 1.134,38 | H130: 2.268,76 | I130: 0,02 | J130: 99,60
A131: 92337 | B131: SINAPI | C131: TUBO DE AÇO GALVANIZADO COM COSTURA, CLASSE MÉDIA, CONEXÃO RANHURADA, DN 80 (3"), INSTALADO EM PRUMADAS - FORNECIMENTO E INSTALAÇÃO. AF_10/2020 | D131: Instalações de Gás e Incêndio em Aço e Ferro Galvanizado | E131: M | F131: 12,0 | G131: 182,80 | H131: 2.193,60 | I131: 0,02 | J131: 99,62
A132: 94473 | B132: SINAPI | C132: COTOVELO 90 GRAUS, EM FERRO GALVANIZADO, CONEXÃO ROSQUEADA, DN 65 MM (2 1/2"), INSTALADO EM RESERVAÇÃO PREDIAL DE ÁGUA - FORNECIMENTO E INSTALAÇÃO. AF_04/2024 | D132: Instalações Hidráulicas - Reservação e Bombas de Recalque | E132: UN | F132: 14,0 | G132: 154,40 | H132: 2.161,60 | I132: 0,02 | J132: 99,63
A133: 91993 | B133: SINAPI | C133: TOMADA ALTA DE EMBUTIR (1 MÓDULO), 2P+T 20 A, INCLUINDO SUPORTE E PLACA - FORNECIMENTO E INSTALAÇÃO. AF_03/2023 | D133: Instalações Elétricas - Eletrodutos Embutidos, Cabos, Caixas, Tomadas e Interruptores | E133: UN | F133: 30,0 | G133: 70,54 | H133: 2.116,20 | I133: 0,02 | J133: 99,65
A134: 10446 | B134: ORSE | C134: Avisador sonoro tipo sirene para incêndio - Fornecimento | D134: Equipamentos para Combate a Incêndio | E134: un | F134: 5,0 | G134: 409,50 | H134: 2.047,50 | I134: 0,02 | J134: 99,67
A135: 97488 | B135: SINAPI | C135: CURVA 90 GRAUS, EM AÇO, CONEXÃO SOLDADA, DN 65 (2 1/2"), INSTALADO EM REDE DE ALIMENTAÇÃO PARA HIDRANTE - FORNECIMENTO E INSTALAÇÃO. AF_10/2020 | D135: Instalações de Gás e Incêndio em Aço e Ferro Galvanizado | E135: UN | F135: 5,0 | G135: 404,47 | H135: 2.022,35 | I135: 0,02 | J135: 99,69
A136: 103979 | B136: SINAPI | C136: TUBO, PVC, SOLDÁVEL, DE 50MM, INSTALADO EM RAMAL DE DISTRIBUIÇÃO DE ÁGUA - FORNECIMENTO E INSTALAÇÃO. AF_06/2022 | D136: INHI - INSTALAÇÕES HIDROS SANITÁRIAS | E136: M | F136: 50,0 | G136: 38,49 | H136: 1.924,50 | I136: 0,02 | J136: 99,70
A137: 89746 | B137: SINAPI | C137: JOELHO 45 GRAUS, PVC, SERIE NORMAL, ESGOTO PREDIAL, DN 100 MM, JUNTA ELÁSTICA, FORNECIDO E INSTALADO EM RAMAL DE DESCARGA OU RAMAL DE ESGOTO SANITÁRIO. AF_08/2022 | D137: INHI - INSTALAÇÕES HIDROS SANITÁRIAS | E137: UN | F137: 50,0 | G137: 36,29 | H137: 1.814,50 | I137: 0,02 | J137: 99,72
A138: 89395 | B138: SINAPI | C138: TE, PVC, SOLDÁVEL, DN 25MM, INSTALADO EM RAMAL OU SUB-RAMAL DE ÁGUA - FORNECIMENTO E INSTALAÇÃO. AF_06/2022 | D138: INHI - INSTALAÇÕES HIDROS SANITÁRIAS | E138: UN | F138: 100,0 | G138: 16,57 | H138: 1.657,00 | I138: 0,01 | J138: 99,73
A139: 11894 | B139: ORSE | C139: Hidrante de recalque incluindo caixa em alvenaria de tijolos maciços esp. = 0,12m, dim. int. = 0.40 x 0.60 x 0.35m, com tampa em ferro fundido 0,40 x 0,60 e fundo com brita | D139: Conversão InfoWOrca | E139: un | F139: 1,0 | G139: 1.575,34 | H139: 1.575,34 | I139: 0,01 | J139: 99,74
A140: 94499 | B140: SINAPI | C140: REGISTRO DE GAVETA BRUTO, LATÃO, ROSCÁVEL, 2 1/2" - FORNECIMENTO E INSTALAÇÃO. AF_08/2021 | D140: Válvulas e Registros para Sistemas Prediais | E140: UN | F140: 4,0 | G140: 389,10 | H140: 1.556,40 | I140: 0,01 | J140: 99,76
A141: 89584 | B141: SINAPI | C141: JOELHO 90 GRAUS, PVC, SERIE R, ÁGUA PLUVIAL, DN 100 MM, JUNTA ELÁSTICA, FORNECIDO E INSTALADO EM CONDUTORES VERTICAIS DE ÁGUAS PLUVIAIS. AF_06/2022 | D141: INHI - INSTALAÇÕES HIDROS SANITÁRIAS | E141: UN | F141: 25,0 | G141: 55,74 | H141: 1.393,50 | I141: 0,01 | J141: 99,77
A142: 97622 | B142: SINAPI | C142: DEMOLIÇÃO DE ALVENARIA DE BLOCO FURADO, DE FORMA MANUAL, SEM REAPROVEITAMENTO. AF_09/2023 | D142: SERP - SERVIÇOS PRELIMINARES | E142: m³ | F142: 19,75 | G142: 69,83 | H142: 1.379,14 | I142: 0,01 | J142: 99,78
A143: 97607 | B143: SINAPI | C143: LUMINÁRIA ARANDELA TIPO TARTARUGA, DE SOBREPOR, COM 1 LÂMPADA LED DE 6 W, SEM REATOR - FORNECIMENTO E INSTALAÇÃO. AF_09/2024 | D143: Iluminação Predial e Monitoramento | E143: UN | F143: 9,0 | G143: 134,99 | H143: 1.214,91 | I143: 0,01 | J143: 99,79
A144: 10363 | B144: ORSE | C144: Placa de sinalização em acrílico, dimensões 0.12 x 0.12 m, e=2mm | D144: Sinalização Vertical | E144: un | F144: 32,0 | G144: 34,72 | H144: 1.111,04 | I144: 0,01 | J144: 99,80
A145: 89744 | B145: SINAPI | C145: JOELHO 90 GRAUS, PVC, SERIE NORMAL, ESGOTO PREDIAL, DN 100 MM, JUNTA ELÁSTICA, FORNECIDO E INSTALADO EM RAMAL DE DESCARGA OU RAMAL DE ESGOTO SANITÁRIO. AF_08/2022 | D145: INHI - INSTALAÇÕES HIDROS SANITÁRIAS | E145: UN | F145: 30,0 | G145: 35,27 | H145: 1.058,10 | I145: 0,01 | J145: 99,81
A146: 92763 | B146: SINAPI | C146: ARMAÇÃO DE PILAR OU VIGA DE ESTRUTURA CONVENCIONAL DE CONCRETO ARMADO UTILIZANDO AÇO CA-50 DE 12,5 MM - MONTAGEM. AF_06/2022 | D146: FUES - FUNDAÇÕES E ESTRUTURAS | E146: KG | F146: 77,04 | G146: 13,66 | H146: 1.052,36 | I146: 0,01 | J146: 99,82
A147: 100975 | B147: SINAPI | C147: CARGA, MANOBRA E DESCARGA DE SOLOS E MATERIAIS GRANULARES EM CAMINHÃO BASCULANTE 14 M³ - CARGA COM PÁ CARREGADEIRA (CAÇAMBA DE 1,7 A 2,8 M³ / 128 HP) E DESCARGA LIVRE (UNIDADE: M3). AF_07/2020 | D147: TRAN - TRANSPORTES, CARGAS E DESCARGAS | E147: m³ | F147: 99,85 | G147: 10,47 | H147: 1.045,42 | I147: 0,01 | J147: 99,83
A148: 89367 | B148: SINAPI | C148: JOELHO 90 GRAUS, PVC, SOLDÁVEL, DN 32MM, INSTALADO EM RAMAL OU SUB-RAMAL DE ÁGUA - FORNECIMENTO E INSTALAÇÃO. AF_06/2022 | D148: INHI - INSTALAÇÕES HIDROS SANITÁRIAS | E148: UN | F148: 60,0 | G148: 16,56 | H148: 993,60 | I148: 0,01 | J148: 99,83
A149: 93655 | B149: SINAPI | C149: DISJUNTOR MONOPOLAR TIPO DIN, CORRENTE NOMINAL DE 20A - FORNECIMENTO E INSTALAÇÃO. AF_07/2025 | D149: INEL - INSTALAÇÃO ELÉTRICA/ELETRIFICAÇÃO E ILUMINAÇÃO EXTERNA | E149: UN | F149: 53,0 | G149: 18,10 | H149: 959,30 | I149: 0,01 | J149: 99,84
A150: 7861 | B150: ORSE | C150: Acionador manual (botoeira) tipo quebra-vidro, p/instal. incendio | D150: Equipamentos para Combate a Incêndio | E150: un | F150: 5,0 | G150: 191,83 | H150: 959,15 | I150: 0,01 | J150: 99,85
A151: 97249 | B151: SINAPI | C151: EMENDA PARA ELETROCALHA, LISA OU PERFURADA EM AÇO GALVANIZADO, LARGURA 50MM E ALTURA 50MM - FORNECIMENTO E INSTALAÇÃO. AF_04/2023 | D151: Eletrocalhas | E151: UN | F151: 11,0 | G151: 87,07 | H151: 957,77 | I151: 0,01 | J151: 99,86
A152: 94500 | B152: SINAPI | C152: REGISTRO DE GAVETA BRUTO, LATÃO, ROSCÁVEL, 3" - FORNECIMENTO E INSTALAÇÃO. AF_08/2021 | D152: Válvulas e Registros para Sistemas Prediais | E152: UN | F152: 2,0 | G152: 472,32 | H152: 944,64 | I152: 0,01 | J152: 99,87
A153: 97274 | B153: SINAPI | C153: CURVA HORIZONTAL 90º PARA ELETROCALHA, LISA OU PERFURADA EM AÇO GALVANIZADO, LARGURA DE 50MM E ALTURA DE 50MM - FORNECIMENTO E INSTALAÇÃO. AF_04/2023 | D153: Eletrocalhas | E153: UN | F153: 10,0 | G153: 93,51 | H153: 935,10 | I153: 0,01 | J153: 99,87
A154: 101896 | B154: SINAPI | C154: DISJUNTOR TERMOMAGNÉTICO TRIPOLAR, CORRENTE NOMINAL DE 200A - FORNECIMENTO E INSTALAÇÃO. AF_07/2025 | D154: INEL - INSTALAÇÃO ELÉTRICA/ELETRIFICAÇÃO E ILUMINAÇÃO EXTERNA | E154: UN | F154: 1,0 | G154: 916,44 | H154: 916,44 | I154: 0,01 | J154: 99,88
A155: 2662 | B155: ORSE | C155: Fornecimento e assentamento de tampão de ferro fundido TDA-600mm, 300kg/cm², para poço de visita e caixas de passagem | D155: Poços de Visita para Redes de Esgoto | E155: un | F155: 1,0 | G155: 889,94 | H155: 889,94 | I155: 0,01 | J155: 99,89
A156: 97665 | B156: SINAPI | C156: REMOÇÃO DE LUMINÁRIAS, DE FORMA MANUAL, SEM REAPROVEITAMENTO. AF_09/2023 | D156: SERP - SERVIÇOS PRELIMINARES | E156: UN | F156: 379,0 | G156: 2,34 | H156: 886,86 | I156: 0,01 | J156: 99,90
A157: 104737 | B157: SINAPI | C157: REATERRO MANUAL DE VALAS, COM PLACA VIBRATÓRIA. AF_08/2023 | D157: MOVT - MOVIMENTO DE TERRA | E157: m³ | F157: 31,93 | G157: 26,70 | H157: 852,53 | I157: 0,01 | J157: 99,90
A158: 97599 | B158: SINAPI | C158: LUMINÁRIA DE EMERGÊNCIA, COM 30 LÂMPADAS LED DE 2 W, SEM REATOR - FORNECIMENTO E INSTALAÇÃO. AF_09/2024 | D158: Iluminação Predial e Monitoramento | E158: UN | F158: 30,0 | G158: 27,32 | H158: 819,60 | I158: 0,01 | J158: 99,91
A159: 92897 | B159: SINAPI | C159: UNIÃO, EM FERRO GALVANIZADO, DN 80 (3"), CONEXÃO ROSQUEADA, INSTALADO EM REDE DE ALIMENTAÇÃO PARA HIDRANTE - FORNECIMENTO E INSTALAÇÃO. AF_10/2020 | D159: Instalações de Gás e Incêndio em Aço e Ferro Galvanizado | E159: UN | F159: 2,0 | G159: 393,15 | H159: 786,30 | I159: 0,01 | J159: 99,92
A160: 12138 | B160: ORSE | C160: Placa de indicativa de "EXTINTOR" em pvc, dim.: 20 x 20 cm | D160: Sinalização Vertical | E160: Un | F160: 25,0 | G160: 30,77 | H160: 769,25 | I160: 0,01 | J160: 99,92
A161: 91959 | B161: SINAPI | C161: INTERRUPTOR SIMPLES (2 MÓDULOS), 10A/250V, INCLUINDO SUPORTE E PLACA - FORNECIMENTO E INSTALAÇÃO. AF_03/2023 | D161: Instalações Elétricas - Eletrodutos Embutidos, Cabos, Caixas, Tomadas e Interruptores | E161: UN | F161: 10,0 | G161: 69,98 | H161: 699,80 | I161: 0,01 | J161: 99,93
A162: 89398 | B162: SINAPI | C162: TE, PVC, SOLDÁVEL, DN 32MM, INSTALADO EM RAMAL OU SUB-RAMAL DE ÁGUA - FORNECIMENTO E INSTALAÇÃO. AF_06/2022 | D162: INHI - INSTALAÇÕES HIDROS SANITÁRIAS | E162: UN | F162: 30,0 | G162: 23,05 | H162: 691,50 | I162: 0,01 | J162: 99,93
A163: 91890 | B163: SINAPI | C163: CURVA 90 GRAUS PARA ELETRODUTO, PVC, ROSCÁVEL, DN 25 MM (3/4"), PARA CIRCUITOS TERMINAIS, INSTALADA EM FORRO - FORNECIMENTO E INSTALAÇÃO. AF_03/2023 | D163: INEL - INSTALAÇÃO ELÉTRICA/ELETRIFICAÇÃO E ILUMINAÇÃO EXTERNA | E163: UN | F163: 41,0 | G163: 16,78 | H163: 687,98 | I163: 0,01 | J163: 99,94
A164: 101895 | B164: SINAPI | C164: DISJUNTOR TERMOMAGNÉTICO TRIPOLAR, CORRENTE NOMINAL DE 125A - FORNECIMENTO E INSTALAÇÃO. AF_07/2025 | D164: INEL - INSTALAÇÃO ELÉTRICA/ELETRIFICAÇÃO E ILUMINAÇÃO EXTERNA | E164: UN | F164: 1,0 | G164: 607,58 | H164: 607,58 | I164: 0,01 | J164: 99,94
A165: 063104 | B165: SBC | C165: ABERTURA E FECHAMENTO DE ELETROCALHA | D165: INSTALACOES ELETRICAS - LEITOS E CABOS | E165: M | F165: 4,0 | G165: 151,11 | H165: 604,44 | I165: 0,01 | J165: 99,95
A166: 97277 | B166: SINAPI | C166: CURVA HORIZONTAL 90º, PARA ELETROCALHA, LISA OU PERFURADA EM AÇO GALVANIZADO, LARGURA DE 75MM E ALTURA DE 50MM - FORNECIMENTO E INSTALAÇÃO. AF_04/2023 | D166: Eletrocalhas | E166: UN | F166: 5,0 | G166: 97,00 | H166: 485,00 | I166: 0,00 | J166: 99,95
A167: 104920 | B167: SINAPI | C167: ARMAÇÃO DE BLOCO, SAPATA ISOLADA, VIGA BALDRAME E SAPATA CORRIDA UTILIZANDO AÇO CA-50 DE 12,5 MM - MONTAGEM. AF_01/2024 | D167: FUES - FUNDAÇÕES E ESTRUTURAS | E167: KG | F167: 27,73 | G167: 15,46 | H167: 428,70 | I167: 0,00 | J167: 99,96
A168: 94475 | B168: SINAPI | C168: COTOVELO 90 GRAUS, EM FERRO GALVANIZADO, CONEXÃO ROSQUEADA, DN 80 MM (3"), INSTALADO EM RESERVAÇÃO PREDIAL DE ÁGUA - FORNECIMENTO E INSTALAÇÃO. AF_04/2024 | D168: Instalações Hidráulicas - Reservação e Bombas de Recalque | E168: UN | F168: 2,0 | G168: 209,29 | H168: 418,58 | I168: 0,00 | J168: 99,96
A169: 13835 | B169: ORSE | C169: Manômetro D. 63mm (2.1/2"), 0-250kgf/cm², rosca 1/4" NPT-M, ligação vertical,com enchimento de glicerina, caixa inox - fornecimento e instalação | D169: Diversos | E169: un | F169: 1,0 | G169: 409,98 | H169: 409,98 | I169: 0,00 | J169: 99,96
A170: 8693 | B170: ORSE | C170: Bateria industrial para acionamento de sirene (p/penitenciária) | D170: Aparelhos, Utensílios e Equipamentos Elétricos | E170: un | F170: 1,0 | G170: 377,25 | H170: 377,25 | I170: 0,00 | J170: 99,97
A171: 104004 | B171: SINAPI | C171: TE, PVC, SOLDÁVEL, DN 50MM, INSTALADO EM RAMAL DE DISTRIBUIÇÃO DE ÁGUA - FORNECIMENTO E INSTALAÇÃO. AF_06/2022 | D171: INHI - INSTALAÇÕES HIDROS SANITÁRIAS | E171: UN | F171: 10,0 | G171: 36,81 | H171: 368,10 | I171: 0,00 | J171: 99,97
A172: 91862 | B172: SINAPI | C172: ELETRODUTO RÍGIDO ROSCÁVEL, PVC, DN 20 MM (1/2"), PARA CIRCUITOS TERMINAIS, INSTALADO EM FORRO - FORNECIMENTO E INSTALAÇÃO. AF_03/2023 | D172: INEL - INSTALAÇÃO ELÉTRICA/ELETRIFICAÇÃO E ILUMINAÇÃO EXTERNA | E172: M | F172: 27,22 | G172: 13,48 | H172: 366,92 | I172: 0,00 | J172: 99,97
A173: 101874 | B173: SINAPI | C173: QUADRO DE DISTRIBUIÇÃO DE LUZ EM PVC PARA 24 DISJUNTORES - FORNECIMENTO E INSTALAÇÃO. AF_07/2025 | D173: Instalações Elétricas - Quadros, Cabos, Disjuntores, Contatores e Barramentos Blindados | E173: UN | F173: 1,0 | G173: 360,00 | H173: 360,00 | I173: 0,00 | J173: 99,98
A174: 102110 | B174: SINAPI | C174: SUPORTE PARA TRANSFORMADOR EM POSTE DE CONCRETO DUPLO T - FORNECIMENTO E INSTALAÇÃO. AF_12/2020 | D174: INEL - INSTALAÇÃO ELÉTRICA/ELETRIFICAÇÃO E ILUMINAÇÃO EXTERNA | E174: UN | F174: 1,0 | G174: 354,43 | H174: 354,43 | I174: 0,00 | J174: 99,98
A175: 92379 | B175: SINAPI | C175: NIPLE, EM FERRO GALVANIZADO, DN 80 (3"), CONEXÃO ROSQUEADA, INSTALADO EM REDE DE ALIMENTAÇÃO PARA HIDRANTE - FORNECIMENTO E INSTALAÇÃO. AF_10/2020 | D175: Instalações de Gás e Incêndio em Aço e Ferro Galvanizado | E175: UN | F175: 2,0 | G175: 168,66 | H175: 337,32 | I175: 0,00 | J175: 99,98
A176: 103984 | B176: SINAPI | C176: JOELHO 90 GRAUS, PVC, SOLDÁVEL, DN 50MM, INSTALADO EM RAMAL DE DISTRIBUIÇÃO DE ÁGUA - FORNECIMENTO E INSTALAÇÃO. AF_06/2022 | D176: INHI - INSTALAÇÕES HIDROS SANITÁRIAS | E176: UN | F176: 12,0 | G176: 24,38 | H176: 292,56 | I176: 0,00 | J176: 99,98
A177: 93654 | B177: SINAPI | C177: DISJUNTOR MONOPOLAR TIPO DIN, CORRENTE NOMINAL DE 16A - FORNECIMENTO E INSTALAÇÃO. AF_07/2025 | D177: INEL - INSTALAÇÃO ELÉTRICA/ELETRIFICAÇÃO E ILUMINAÇÃO EXTERNA | E177: UN | F177: 17,0 | G177: 16,90 | H177: 287,30 | I177: 0,00 | J177: 99,99
A178: 11283 | B178: ORSE | C178: Flange sextavado de ferro galvanizado, com rosca bsp, de 4" | D178: Tubos e Conexões de PVC Rígido Roscável | E178: un | F178: 1,0 | G178: 271,90 | H178: 271,90 | I178: 0,00 | J178: 99,99
A179: 101894 | B179: SINAPI | C179: DISJUNTOR TRIPOLAR TIPO NEMA, CORRENTE NOMINAL DE 60 ATÉ 100A - FORNECIMENTO E INSTALAÇÃO. AF_07/2025 | D179: INEL - INSTALAÇÃO ELÉTRICA/ELETRIFICAÇÃO E ILUMINAÇÃO EXTERNA | E179: UN | F179: 1,0 | G179: 221,71 | H179: 221,71 | I179: 0,00 | J179: 99,99
A180: 063052 | B180: SBC | C180: CURVA VERTICAL EXTERNA PARA ELETROCALHA 100X50mm | D180: INSTALACOES ELETRICAS - LEITOS E CABOS | E180: UN | F180: 4,0 | G180: 53,22 | H180: 212,88 | I180: 0,00 | J180: 99,99
A181: 91856 | B181: SINAPI | C181: ELETRODUTO FLEXÍVEL CORRUGADO, PVC, DN 32 MM (1"), PARA CIRCUITOS TERMINAIS, INSTALADO EM PAREDE - FORNECIMENTO E INSTALAÇÃO. AF_03/2023 | D181: INEL - INSTALAÇÃO ELÉTRICA/ELETRIFICAÇÃO E ILUMINAÇÃO EXTERNA | E181: M | F181: 8,95 | G181: 17,27 | H181: 154,56 | I181: 0,00 | J181: 99,99
A182: 106020 | B182: SINAPI | C182: DISJUNTOR TRIPOLAR DIN 63A - FORNECIMENTO E INSTALAÇÃO. AF_07/2025 | D182: Instalações Elétricas - Quadros, Cabos, Disjuntores, Contatores e Barramentos Blindados | E182: UN | F182: 1,0 | G182: 154,41 | H182: 154,41 | I182: 0,00 | J182: 100,00
A183: 92377 | B183: SINAPI | C183: NIPLE, EM FERRO GALVANIZADO, DN 65 (2 1/2"), CONEXÃO ROSQUEADA, INSTALADO EM REDE DE ALIMENTAÇÃO PARA HIDRANTE - FORNECIMENTO E INSTALAÇÃO. AF_10/2020 | D183: Instalações de Gás e Incêndio em Aço e Ferro Galvanizado | E183: UN | F183: 1,0 | G183: 118,86 | H183: 118,86 | I183: 0,00 | J183: 100,00
A184: 053778 | B184: SBC | C184: SUPORTE SUSPENSAO VERTICAL PARA ELETROCALHA 75 x 50 mm | D184: INSTALACOES HIDRAULICAS - ESGOTO | E184: UN | F184: 20,0 | G184: 5,78 | H184: 115,60 | I184: 0,00 | J184: 100,00
A185: 91887 | B185: SINAPI | C185: CURVA 90 GRAUS PARA ELETRODUTO, PVC, ROSCÁVEL, DN 20 MM (1/2"), PARA CIRCUITOS TERMINAIS, INSTALADA EM FORRO - FORNECIMENTO E INSTALAÇÃO. AF_03/2023 | D185: INEL - INSTALAÇÃO ELÉTRICA/ELETRIFICAÇÃO E ILUMINAÇÃO EXTERNA | E185: UN | F185: 7,0 | G185: 15,10 | H185: 105,70 | I185: 0,00 | J185: 100,00
A186: 91864 | B186: SINAPI | C186: ELETRODUTO RÍGIDO ROSCÁVEL, PVC, DN 32 MM (1"), PARA CIRCUITOS TERMINAIS, INSTALADO EM FORRO - FORNECIMENTO E INSTALAÇÃO. AF_03/2023 | D186: INEL - INSTALAÇÃO ELÉTRICA/ELETRIFICAÇÃO E ILUMINAÇÃO EXTERNA | E186: M | F186: 3,93 | G186: 21,79 | H186: 85,63 | I186: 0,00 | J186: 100,00
A187: 106031 | B187: SINAPI | C187: DISJUNTOR TRIPOLAR DIN 80A - FORNECIMENTO E INSTALAÇÃO. AF_07/2025 | D187: Instalações Elétricas - Quadros, Cabos, Disjuntores, Contatores e Barramentos Blindados | E187: UN | F187: 1,0 | G187: 61,51 | H187: 61,51 | I187: 0,00 | J187: 100,00
A188: 91893 | B188: SINAPI | C188: CURVA 90 GRAUS PARA ELETRODUTO, PVC, ROSCÁVEL, DN 32 MM (1"), PARA CIRCUITOS TERMINAIS, INSTALADA EM FORRO - FORNECIMENTO E INSTALAÇÃO. AF_03/2023 | D188: INEL - INSTALAÇÃO ELÉTRICA/ELETRIFICAÇÃO E ILUMINAÇÃO EXTERNA | E188: UN | F188: 2,0 | G188: 20,47 | H188: 40,94 | I188: 0,00 | J188: 100,00
F190: Total sem BDI | H190: 9671013.51
F191: Total do BDI | H191: 2328960.22
F192: Total Geral | H192: 11999973.73

Sheet MEMORIAL
B2: MEMORIAL DE CALCULO REFERENTE A REFORMA DO MERCADO PÚBLICO MUNICIPAL DE SÃO MIGUEL DOS CAMPOS - AL
B5: DEMOLIÇÃO DE ALVENARIA
B6: COMPRIMENTO | C6: ALTURA | D6: ESPESSURA | E6: QTDE | F6: TOTAL
B7: 10.21 | C7: 3 | D7: 0.15 | E7: 1 | F7: =B7*C7*D7*E7 -> 4.5945
B8: 4 | C8: 3 | D8: 0.15 | E8: 1 | F8: =B8*C8*D8*E8 -> 1.8
B9: 15.15 | C9: 3 | D9: 0.15 | E9: 1 | F9: 6.8175
B10: 2.42 | C10: 3 | D10: 0.15 | E10: 6 | F10: 6.534
E11: TOTAL | F11: =SUM(F7:F10) -> 19.746
B13: DEMOLIÇÃO DE REVESTIMENTO
B14: PERIMETRO | C14: ALTURA | D14: QTDE | E14: TOTAL
A15: AÇOUGUE INTE | B15: =3+2.1+2.1+2.25 -> 9.45 | C15: 1.2 | D15: 100 | E15: =B15*C15*D15 -> 1134
A16: AÇOUGUE EXT | B16: =((15.11+4.8)*2*10)-(0.75*100) -> 323.2 | C16: 1.2 | D16: 1 | E16: =B16*C16*D16 -> 387.84
A17: AÇOUG PILAR | B17: =0.45*2 -> 0.9 | C17: 1.25 | D17: =18*10 -> 180 | E17: 202.5
A18: AÇOUG VIGA | B18: =(15.15+4.2)*2 -> 38.7 | C18: 0.9 | D18: 10 | E18: 348.3
B19: 0.9 | C19: 4.65 | D19: 40 | E19: 167.4
A20: AÇOU 2 | B20: =2.22+1.8+2.3+2.3 -> 8.62 | C20: 1.2 | D20: 1 | E20: 10.344
A21: AÇOU 3 | B21: =2.62+1.8+2.3+2.3 -> 9.02 | C21: 1.2 | D21: 1 | E21: 10.824
A22: AÇOU 4 | B22: =2.9+2.15+2.3+2.3 -> 9.65 | C22: 1.2 | D22: 29 | E22: 335.82
A23: AÇOU 5 | B23: =3+2.15+2.32+2.32 -> 9.79 | C23: 1.2 | D23: 1 | E23: 11.748
A24: AÇOU 6 | B24: =2.78+2.15+2.32+2.32 -> 9.57 | C24: 1.2 | D24: 1 | E24: 11.484
A25: EXTERN 2-6 | B25: =99.6-(33*0.75) -> 74.85 | C25: 1.2 | D25: 1 | E25: 89.82
A26: VIGA 2-6 | B26: 99.6 | C26: 0.9 | D26: 1 | E26: 89.64
D27: TOTAL | E27: =SUM(E15:E26) -> 2799.72
B29: DEMOLIÇÃO DE PISO
B30: COMPRIMENTO | C30: LARGURA | D30: (-) PISO WC | E30: TOTAL | F30: ESPESSURA | G30: TOT GERAL
B31: 62.25 | C31: 108.4 | D31: =23.98*5.91 -> 141.7218 | E31: =(B31*C31)-D31 -> 6606.1782 | F31: 0.08 | G31: =E31*F31 -> 528.494256
B33: REMOÇÃO DE CALHAS
B34: COMPRIMENTO | C34: QTDE | D34: TOTAL
B35: 108.5 | C35: 5 | D35: =B35*C35 -> 542.5
B37: REMOÇÃO DE FORRO
B38: COMPRIMENTO | C38: LARGURA | D38: QTDE | E38: TOTAL
A39: LOJAS 01 | B39: 18 | C39: 4.4 | D39: 9 | E39: =B39*C39*D39 -> 712.8
B40: 15 | C40: 4.4 | D40: 5 | E40: =B40*C40*D40 -> 330
D41: TOTAL | E41: =SUM(E39:E40) -> 1042.8
B43: REMOÇÃO DE CABOS
B44: TIPO | C44: COMPRIMENTO
B45: 1,5MM | C45: 2021.8
B46: 2,5MM | C46: 3199
B47: TOTAL | C47: =SUM(C45:C46) -> 5220.8
B49: REMOÇÃO DE LUMINARIA
B50: QTDE | C50: 379
B52: REMOÇÃO DE COBERTA
B53: COMPRIMENTO | C53: LARGURA | D53: TOTAL
B54: 110.92 | C54: 62.7 | D54: =B54*C54 -> 6954.684
B55: 24.1 | C55: 6.05 | D55: =B55*C55 -> 145.805
B56: 24.1 | C56: 6.05 | D56: 145.805
B57: FACHADA FRONTAL | D57: 180.02
B58: FACHADA FUNDOS | D58: 180.02
B59: 24.1 | C59: 1 | D59: =B59*C59 -> 24.1
B60: 24.1 | C60: 1 | D60: =B60*C60 -> 24.1
B61: 6.05 | C61: 1 | D61: 6.05
B62: 6.05 | C62: 1 | D62: 6.05
C63: TOTAL | D63: =SUM(D54:D62) -> 7666.634
B65: CARGA MANOBRA E DESCARGA
B66: VOLUME | C66: INDICE | D66: TOTAL
A67: ALVENARIA | B67: 19.75 | C67: 2 | D67: =B67*C67 -> 39.5
A68: REVESTIMENTO | B68: 55.99 | C68: 2 | D68: =B68*C68 -> 111.98
A69: PISO | B69: =G31 -> 528.494256 | C69: 2 | D69: 1056.988512
C70: TOTAL | D70: =SUM(D67:D69) -> 1208.468512
B72: TRANSPORTE DE ENTULHO
B73: VOLUME | C73: DISTÂNCIA | D73: TOTAL
B74: =D70 -> 1208.468512 | C74: 7.5 | D74: =B74*C74 -> 9063.51384
B76: LOCAÇÃO DA OBRA
B77: COMPRIMENTO | C77: =142.6+39.14 -> 181.74
B79: LOCAÇÃO DE CONTAINER
B80: MESES | C80: 14
B82: TAPUME
B83: COMPRIMENTO | C83: ALTURA | D83: TOTAL
B84: 130 | C84: 2 | D84: =B84*C84 -> 260
B86: ESCAVAÇÃO BALDRAME
B87: COMPRIMENTO | C87: LARGURA | D87: PROFUNDIDADE | E87: QTDE | F87: TOTAL
A88: QUIOS FUNDOS | B88: 6.77 | C88: 0.3 | D88: 0.3 | E88: 6 | F88: =B88*C88*D88*E88 -> 3.6558
B89: 14.25 | C89: 0.3 | D89: 0.3 | E89: 6 | F89: =B89*C89*D89*E89 -> 7.695
B90: 2.35 | C90: 0.3 | D90: 0.3 | E90: 18 | F90: 3.807
B91: 2.07 | C91: 0.3 | D91: 0.3 | E91: 18 | F91: 3.3534
A92: QUIOS LATERA | B92: 41.69 | C92: 0 | D92: 0 | E92: 1 | F92: 0
B93: 63.9 | C93: 0 | D93: 0 | E93: 1 | F93: 0
B94: 2 | C94: 0 | D94: 0 | E94: 37 | F94: 0
A95: QUIOS INTERN | B95: 15 | C95: 0.3 | D95: 0.3 | E95: 2 | F95: 2.7
B96: 2.3 | C96: 0.3 | D96: 0.3 | E96: 5 | F96: 1.035
B97: 10.05 | C97: 0.3 | D97: 0.3 | E97: 1 | F97: 0.9045
E98: TOTAL | F98: =SUM(F88:F97) -> 23.1507
B100: ESCAVAÇÃO BLOCOS DE COROAMENTO
B101: COMPRIMENTO | C101: LARGURA | D101: PROFUNDIDADE | E101: QTDE | F101: TOTAL
B102: 0.6 | C102: 0.6 | D102: 0.8 | E102: 168 | F102: =B102*C102*D102*E102 -> 48.384
B103: 1.2 | C103: 1.2 | D103: 1.5 | E103: 2 | F103: =B103*C103*D103*E103 -> 4.32
B104: 2 | C104: 2 | D104: 1.5 | E104: 1 | F104: 6
E105: TOTAL | F105: =SUM(F102:F104) -> 58.704
B107: REATERRO
B108: AREA | C108: QTDE | D108: TOTAL
B109: 106.42 | C109: 0.3 | D109: =B109*C109 -> 31.926
B111: CARGA MANORA E DESCARGA
B112: ESCAVADO | C112: REATERRO | D112: INDICE | E112: TOTAL
B113: =F98+F105 -> 81.8547 | C113: =D109 -> 31.926 | D113: 2 | E113: =(B113-C113)*D113 -> 99.8574
B115: LASTRO DE CONCRETO
B116: COMPRIMENTO | C116: LARGURA | D116: QTDE | E116: TOTAL | H116: COMPRIMENTO GERAL
A117: BALDRAME | B117: =B88 -> 6.77 | C117: 0.3 | D117: =E88 -> 6 | E117: =B117*C117*D117 -> 12.186 | H117: =B117*D117 -> 40.62
B118: =B89 -> 14.25 | C118: 0.3 | D118: =E89 -> 6 | E118: =B118*C118*D118 -> 25.65 | H118: =B118*D118 -> 85.5
B119: 2.35 | C119: 0.3 | D119: 18 | E119: 12.69 | H119: 42.3
B120: 2.07 | C120: 0.3 | D120: 18 | E120: 11.178 | H120: 37.26
B121: =B95 -> 15 | C121: 0.3 | D121: =E95 -> 2 | E121: 9 | H121: 30
B122: =B96 -> 2.3 | C122: 0.3 | D122: =E96 -> 5 | E122: 3.45 | H122: 11.5
B123: 10.05 | C123: 0.3 | D123: 1 | E123: 3.015 | H123: 10.05
A124: BLOCOS | B124: 0.6 | C124: 0.6 | D124: =E102 -> 168 | E124: 60.48 | H124: 100.8
B125: 1.2 | C125: 1.2 | D125: =E103 -> 2 | E125: 2.88 | H125: 2.4
B126: 2 | C126: 2 | D126: 1 | E126: 4 | H126: 2
D127: TOTAL | E127: =SUM(E117:E126) -> 144.529 | H127: =SUM(H117:H126) -> 362.43
B129: FERRAGENS INFRAESTRUTURA
B130: BITOLA | C130: KG/M | D130: COMPRIMENTO | E130: QTDE/PÇ | F130: QTDE DE PÇ | G130: TOTAL
A131: BALDRAME | B131: 5MM | C131: 0.154 | D131: 0.8 | E131: =D135/0.15 -> 2416.2 | F131: 1 | G131: =C131*D131*E131*F131 -> 297.67584
A132: ARRAN 15X30 | B132: 5MM | C132: 0.154 | D132: 0.8 | E132: =D137/0.15 -> 7.333333333 | F132: =E102 -> 168 | G132: =C132*D132*E132*F132 -> 151.7824
A133: ARRAN 20X60 | B133: 5MM | C133: 0.154 | D133: 1.5 | E133: 12 | F133: =E103 -> 2 | G133: 5.544
A134: ARRAN 20X60 | B134: 5MM | C134: 0.154 | D134: 1.5 | E134: 12 | F134: 2 | G134: 5.544
A135: BALDRAME | B135: 8MM | C135: 0.395 | D135: =H127 -> 362.43 | E135: 4 | F135: =F131 -> 1 | G135: 572.6394
A136: BLOCOS 60X60 | B136: 8MM | C136: 0.395 | D136: 0.8 | E136: 12 | F136: =F137 -> 168 | G136: 637.056
A137: ARRAN 15X30 | B137: 10MM | C137: 0.617 | D137: 1.1 | E137: 4 | F137: =F132 -> 168 | G137: 456.0864
A138: ARRAN 20X60 | B138: 10MM | C138: 0.617 | D138: 1.8 | E138: 6 | F138: =F133 -> 2 | G138: 13.3272
A139: ARRAN 20X60 | B139: 10MM | C139: 0.617 | D139: 1.8 | E139: 6 | F139: =F134 -> 2 | G139: 13.3272
A140: BLOCO 120X120 | B140: 10MM | C140: 0.617 | D140: 1.4 | E140: 24 | F140: =F138 -> 2 | G140: 41.4624
A141: BLOCO 200X200 | B141: 10MM | C141: 0.617 | D141: 2.2 | E141: 40 | F141: 2 | G141: 108.592
A142: ARRAN 20X60 | B142: 12,5MM | C142: 0.963 | D142: 1.8 | E142: 4 | F142: =F138+F139 -> 4 | G142: 27.7344
F143: TOTAL 5MM | G143: =SUM(G131:G134) -> 460.54624
F144: TOTAL 8MM | G144: =SUM(G135:G136) -> 1209.6954
F145: TOTAL 10MM | G145: =SUM(G137:G141) -> 632.7952
F146: TOTAL 12,5MM | G146: =G142 -> 27.7344
B148: FORMAS INFRAESTRUTURA
B149: COMPRIMENTO | C149: LARGURA | D149: LADOS | E149: QTDE | F149: TOTAL
A150: BALDRAME | B150: =D135 -> 362.43 | C150: 0.3 | D150: 2 | E150: =F131 -> 1 | F150: =B150*C150*D150*E150 -> 217.458
A151: ARRAN 15X30 | B151: 0.4 | C151: 0.45 | D151: 2 | E151: =F132 -> 168 | F151: =B151*C151*D151*E151 -> 60.48
A152: ARRAN 20X60 | B152: 0.8 | C152: 0.8 | D152: 2 | E152: 2 | F152: 2.56
A153: ARRAN 20X60 | B153: 0.8 | C153: 0.8 | D153: 2 | E153: =F141 -> 2 | F153: 2.56
E154: TOTAL | F154: =SUM(F150:F153) -> 283.058
B156: CONCRETAGEM INFRAESTRUTURA
B157: COMPRIMENTO | C157: LARGURA | D157: ESPESSURA | E157: QTDE | F157: TOTAL
A158: BALDRAME | B158: =B150 -> 362.43 | C158: 0.3 | D158: 0.15 | E158: 1 | F158: =B158*C158*D158*E158 -> 16.30935
A159: BLOCOS 60X60 | B159: 0.6 | C159: 0.6 | D159: 0.4 | E159: =E151 -> 168 | F159: =B159*C159*D159*E159 -> 24.192
A160: BLOCO 120X120 | B160: 1.2 | C160: 1.2 | D160: 0.7 | E160: =E152 -> 2 | F160: 2.016
A161: BLOCO 200X200 | B161: 2 | C161: 2 | D161: 0.7 | E161: 2 | F161: 5.6
A162: ARRAN 15X30 | B162: =B151 -> 0.4 | C162: 0.3 | D162: 0.15 | E162: =E159 -> 168 | F162: 3.024
A163: ARRAN 20X60 | B163: =B152 -> 0.8 | C163: 0.6 | D163: 0.2 | E163: =E160 -> 2 | F163: 0.192
A164: ARRAN 20X60 | B164: 0.8 | C164: 0.6 | D164: 0.2 | E164: 2 | F164: 0.192
E165: TOTAL | F165: =SUM(F158:F164) -> 51.52535
B167: IMPERMEABILIZAÇÃO
B168: COMPRIMENTO | C168: LARGURA | D168: TOTAL
B169: =B158 -> 362.43 | C169: 0.75 | D169: =B169*C169 -> 271.8225
B171: ESTACAS
B172: COMPRIMENTO | C172: QTDE | D172: TOTAL
B173: 8 | C173: =72-4-4-2 -> 62 | D173: =B173*C173 -> 496
B175: CONCRETO MAGRO
B176: LASTRO | C176: QTDE | D176: PERC 10% | E176: TOTAL
B177: 0.14 | C177: 31 | D177: 1.1 | E177: =B177*C177*D177 -> 4.774
B179: CONCRETO ARMADO
B180: LASTRO | C180: QTDE | D180: PERC 10% | E180: TOTAL
B181: 1.92 | C181: 31 | D181: 1.1 | E181: =B181*C181*D181 -> 65.472
B183: ALVENARIA DE VEDAÇÃO
B184: COMPRIMENTO | C184: ALTUIRA | D184: TOTAL
B185: =B88*E88 -> 40.62 | C185: 3 | D185: =B185*C185 -> 121.86
B186: 85.5 | C186: 3 | D186: =B186*C186 -> 256.5
B187: 42.3 | C187: 3 | D187: 126.9
B188: 37.26 | C188: 3 | D188: 111.78
B189: 41.69 | C189: 3 | D189: 125.07
B190: 63.9 | C190: 3 | D190: 191.7
B191: 74 | C191: 3 | D191: 222
B192: 30 | C192: 3 | D192: 90
B193: 11.5 | C193: 3 | D193: 34.5
B194: 10.05 | C194: 3 | D194: 30.15
C195: TOTAL | D195: =SUM(D185:D194) -> 1310.46
C196: DESCONTO | D196: =(14*2.5*2.1*2)+(14*2.5*2.1)+(35*2.1*2.1)+(6*2*1.1)+(2.5*2*5) -> 413.05
C197: TOTAL GERAL | D197: =D195-D196 -> 897.41
B199: FERRAGENS SUPERESTRUTURA
B200: BITOLA | C200: KG/M | D200: COMPRIMENTO | E200: QTDE/PÇ | F200: QTDE DE PÇ | G200: TOTAL
A201: BALDRAME | B201: 5MM | C201: 0.154 | D201: 0.8 | E201: =D205/0.15 -> 2912.133333 | F201: =F131 -> 1 | G201: =C201*D201*E201*F201 -> 358.7748267
A202: ARRAN 15X30 | B202: 5MM | C202: 0.154 | D202: 0.8 | E202: =D206/0.15 -> 20 | F202: =F132 -> 168 | G202: =C202*D202*E202*F202 -> 413.952
A203: ARRAN 20X60 | B203: 5MM | C203: 0.154 | D203: 1.5 | E203: 33.33333333 | F203: =F133 -> 2 | G203: 15.4
A204: ARRAN 20X60 | B204: 5MM | C204: 0.154 | D204: 1.5 | E204: 33.33333333 | F204: =F134 -> 2 | G204: 15.4
A205: BALDRAME | B205: 8MM | C205: 0.395 | D205: =SUM(B185:B194) -> 436.82 | E205: 4 | F205: =F135 -> 1 | G205: 690.1756
A206: ARRAN 15X30 | B206: 10MM | C206: 0.617 | D206: 3 | E206: 4 | F206: =F137 -> 168 | G206: 1243.872
A207: ARRAN 20X60 | B207: 10MM | C207: 0.617 | D207: 5 | E207: 6 | F207: =F138 -> 2 | G207: 37.02
A208: ARRAN 20X60 | B208: 10MM | C208: 0.617 | D208: 5 | E208: 6 | F208: =F139 -> 2 | G208: 37.02
A209: ARRAN 20X60 | B209: 12,5MM | C209: 0.963 | D209: 5 | E209: 4 | F209: =F142 -> 4 | G209: 77.04
F210: TOTAL 5MM | G210: =SUM(G201:G204) -> 803.5268267
F211: TOTAL 8MM | G211: =G205 -> 690.1756
F212: TOTAL 10MM | G212: =SUM(G206:G208) -> 1317.912
F213: TOTAL 12,5MM | G213: =G209 -> 77.04
B215: FORMAS SUPERESTRUTURAS
B216: COMPRIMENTO | C216: LARGURA | D216: LADOS | E216: QTDE | F216: TOTAL
A217: VIGAS | B217: =D205 -> 436.82 | C217: 0.3 | D217: 2 | E217: =F205 -> 1 | F217: =B217*C217*D217*E217 -> 262.092
A218: PILAR 15X30 | B218: 3 | C218: 0.3 | D218: 2 | E218: =F206 -> 168 | F218: =B218*C218*D218*E218 -> 302.4
A219: PILAR 20X60 | B219: 5 | C219: 0.6 | D219: 2 | E219: 2 | F219: 12
A220: PILAR 20X60 | B220: 5 | C220: 0.6 | D220: 2 | E220: 2 | F220: 12
E221: TOTAL | F221: =SUM(F217:F220) -> 588.492
B223: CONCRETAGEM INFRAESTRUTURA
B224: COMPRIMENTO | C224: LARGURA | D224: ESPESSURA | E224: QTDE | F224: TOTAL
A225: VIGAS | B225: =B217 -> 436.82 | C225: 0.3 | D225: 0.15 | E225: =E217 -> 1 | F225: =B225*C225*D225*E225 -> 19.6569
A226: PILAR 15X30 | B226: =B218 -> 3 | C226: 0.3 | D226: 0.15 | E226: =E218 -> 168 | F226: =B226*C226*D226*E226 -> 22.68
A227: PILAR 20X60 | B227: 5 | C227: 0.6 | D227: 0.2 | E227: 2 | F227: 1.2
A228: PILAR 20X60 | B228: 5 | C228: 0.6 | D228: 0.2 | E228: 2 | F228: 1.2
E229: TOTAL PILAR | F229: =SUM(F226:F228) -> 25.08
E230: TOTAL VIGAS | F230: =F225 -> 19.6569
B232: VERGA
... 312 more rows
